Organisation Name,Organisation Code,Date Paid,Transaction Number,Amount,Supplier Name,Supplier ID,Supplier post code (first 4 digits),Directorate,Service Area,General Ledger code Description,BVACOP class,Revenue/ Capital Spend
Wiltshire,http://opendatacommunities.org/id/unitary-authority/wiltshire,05/02/2020,1902503749,2360,2 Care UK Ltd ,110002,BH7 ,Community Services,MH AOWA South Locali,Supported Living,Third Party Payments,REVENUE
Wiltshire,http://opendatacommunities.org/id/unitary-authority/wiltshire,05/02/2020,1902503750,2360,2 Care UK Ltd ,110002,BH7 ,Community Services,MH AOWA South Locali,Supported Living,Third Party Payments,REVENUE
Wiltshire,http://opendatacommunities.org/id/unitary-authority/wiltshire,05/02/2020,1902503751,2360,2 Care UK Ltd ,110002,BH7 ,Community Services,MH AOWA South Locali,Supported Living,Third Party Payments,REVENUE
Wiltshire,http://opendatacommunities.org/id/unitary-authority/wiltshire,05/02/2020,1902503752,2360,2 Care UK Ltd ,110002,BH7 ,Community Services,MH AOWA South Locali,Supported Living,Third Party Payments,REVENUE
Wiltshire,http://opendatacommunities.org/id/unitary-authority/wiltshire,05/02/2020,1902503753,2360,2 Care UK Ltd ,110002,BH7 ,Community Services,MH AOWA South Locali,Supported Living,Third Party Payments,REVENUE
Wiltshire,http://opendatacommunities.org/id/unitary-authority/wiltshire,12/02/2020,5107401631,1116.39,24-7 Staffing ,140662,SN15,Children & Education,Learning Resources,Agency Staff,Employee Related,REVENUE
Wiltshire,http://opendatacommunities.org/id/unitary-authority/wiltshire,18/02/2020,1902513758,652.38,2get2 Taxi Services Ltd ,101102,SP4 ,Neighbourhood & Planning,SEN Primary Transprt,Transport Contracts,Third Party Payments,REVENUE
Wiltshire,http://opendatacommunities.org/id/unitary-authority/wiltshire,18/02/2020,1902513758,2087.62,2get2 Taxi Services Ltd ,101102,SP4 ,Neighbourhood & Planning,SEN Secondary Tspt,Transport Contracts,Third Party Payments,REVENUE
Wiltshire,http://opendatacommunities.org/id/unitary-authority/wiltshire,18/02/2020,1902513759,2200,2get2 Taxi Services Ltd ,101102,SP4 ,Neighbourhood & Planning,SEN Primary Transprt,Transport Contracts,Third Party Payments,REVENUE
Wiltshire,http://opendatacommunities.org/id/unitary-authority/wiltshire,06/02/2020,1902505068,2939.29,4K Travel ,146614,SN2 ,Neighbourhood & Planning,Mainstream Secondary,Transport Contracts,Third Party Payments,REVENUE
Wiltshire,http://opendatacommunities.org/id/unitary-authority/wiltshire,06/02/2020,1902505070,2730,4K Travel ,146614,SN2 ,Neighbourhood & Planning,Mainstream Secondary,Transport Contracts,Third Party Payments,REVENUE
Wiltshire,http://opendatacommunities.org/id/unitary-authority/wiltshire,06/02/2020,1902505071,4181.2,4K Travel ,146614,SN2 ,Neighbourhood & Planning,Mainstream Secondary,Transport Contracts,Third Party Payments,REVENUE
Wiltshire,http://opendatacommunities.org/id/unitary-authority/wiltshire,06/02/2020,1902505073,3049.39,4K Travel ,146614,SN2 ,Neighbourhood & Planning,Mainstream Secondary,Transport Contracts,Third Party Payments,REVENUE
Wiltshire,http://opendatacommunities.org/id/unitary-authority/wiltshire,06/02/2020,1902505074,3233.5,4K Travel ,146614,SN2 ,Neighbourhood & Planning,Mainstream Secondary,Transport Contracts,Third Party Payments,REVENUE
Wiltshire,http://opendatacommunities.org/id/unitary-authority/wiltshire,06/02/2020,1902505075,3233.5,4K Travel ,146614,SN2 ,Neighbourhood & Planning,Mainstream Primary,Transport Contracts,Third Party Payments,REVENUE
Wiltshire,http://opendatacommunities.org/id/unitary-authority/wiltshire,06/02/2020,1902505076,2336.82,4K Travel ,146614,SN2 ,Neighbourhood & Planning,Mainstream Secondary,Transport Contracts,Third Party Payments,REVENUE
Wiltshire,http://opendatacommunities.org/id/unitary-authority/wiltshire,06/02/2020,1902505078,4336.67,4K Travel ,146614,SN2 ,Neighbourhood & Planning,Mainstream Secondary,Transport Contracts,Third Party Payments,REVENUE
Wiltshire,http://opendatacommunities.org/id/unitary-authority/wiltshire,06/02/2020,1902505079,2261,4K Travel ,146614,SN2 ,Neighbourhood & Planning,SEN Secondary Tspt,Transport Contracts,Third Party Payments,REVENUE
Wiltshire,http://opendatacommunities.org/id/unitary-authority/wiltshire,06/02/2020,1902505082,635.49,4K Travel ,146614,SN2 ,Community Services,North Care Packages,Transport Contracts,Third Party Payments,REVENUE
Wiltshire,http://opendatacommunities.org/id/unitary-authority/wiltshire,06/02/2020,1902505082,2570.85,4K Travel ,146614,SN2 ,Community Services,CTPLD Placements,Transport Contracts,Third Party Payments,REVENUE
Wiltshire,http://opendatacommunities.org/id/unitary-authority/wiltshire,06/02/2020,1902505086,264,4K Travel ,146614,SN2 ,Neighbourhood & Planning,Public Transport,Transport Contracts,Third Party Payments,REVENUE
Wiltshire,http://opendatacommunities.org/id/unitary-authority/wiltshire,18/02/2020,1902513767,2333.33,4K Travel ,146614,SN2 ,Neighbourhood & Planning,Mainstream Primary,Transport Contracts,Third Party Payments,REVENUE
Wiltshire,http://opendatacommunities.org/id/unitary-authority/wiltshire,24/02/2020,1902515384,433.83,4K Travel ,146614,SN2 ,Neighbourhood & Planning,SEN Primary Transprt,Transport Contracts,Third Party Payments,REVENUE
Wiltshire,http://opendatacommunities.org/id/unitary-authority/wiltshire,24/02/2020,1902515384,2169.17,4K Travel ,146614,SN2 ,Neighbourhood & Planning,SEN Secondary Tspt,Transport Contracts,Third Party Payments,REVENUE
Wiltshire,http://opendatacommunities.org/id/unitary-authority/wiltshire,24/02/2020,1902515385,733.9,4K Travel ,146614,SN2 ,Neighbourhood & Planning,SEN Primary Transprt,Transport Contracts,Third Party Payments,REVENUE
Wiltshire,http://opendatacommunities.org/id/unitary-authority/wiltshire,24/02/2020,1902515385,2781.1,4K Travel ,146614,SN2 ,Neighbourhood & Planning,SEN Secondary Tspt,Transport Contracts,Third Party Payments,REVENUE
Wiltshire,http://opendatacommunities.org/id/unitary-authority/wiltshire,24/02/2020,1902515416,268.62,4K Travel ,146614,SN2 ,Neighbourhood & Planning,Concessionary Fares,Concessionary fares,Third Party Payments,REVENUE
Wiltshire,http://opendatacommunities.org/id/unitary-authority/wiltshire,13/02/2020,1902510927,1639.85,A & T Salisbury (Ltd) ,134373,SP1 ,Community Services,West Care Packages,Adult Domiciliary Care,Third Party Payments,REVENUE
Wiltshire,http://opendatacommunities.org/id/unitary-authority/wiltshire,13/02/2020,1902510928,562.08,A & T Salisbury (Ltd) ,134373,SP1 ,Community Services,South Care Packages,Adult Domiciliary Care Contribution,Income,REVENUE
Wiltshire,http://opendatacommunities.org/id/unitary-authority/wiltshire,13/02/2020,1902510929,786.36,A & T Salisbury (Ltd) ,134373,SP1 ,Community Services,South Care Packages,Adult Domiciliary Care Contribution,Income,REVENUE
Wiltshire,http://opendatacommunities.org/id/unitary-authority/wiltshire,13/02/2020,1902510930,625.52,A & T Salisbury (Ltd) ,134373,SP1 ,Community Services,South Care Packages,Adult Domiciliary Care,Third Party Payments,REVENUE
Wiltshire,http://opendatacommunities.org/id/unitary-authority/wiltshire,13/02/2020,1902510931,539.4,A & T Salisbury (Ltd) ,134373,SP1 ,Community Services,South Care Packages,Adult Domiciliary Care Contribution,Income,REVENUE
Wiltshire,http://opendatacommunities.org/id/unitary-authority/wiltshire,13/02/2020,1902510932,625.52,A & T Salisbury (Ltd) ,134373,SP1 ,Community Services,South Care Packages,Adult Domiciliary Care,Third Party Payments,REVENUE
Wiltshire,http://opendatacommunities.org/id/unitary-authority/wiltshire,18/02/2020,1902513637,1064.16,A & T Salisbury (Ltd) ,134373,SP1 ,Community Services,South Care Packages,Adult Domiciliary Care,Third Party Payments,REVENUE
Wiltshire,http://opendatacommunities.org/id/unitary-authority/wiltshire,11/02/2020,1902505977,291,A G Minibuses Ltd ,100878,BA12,Community Services,West Care Packages,Transport Contracts,Third Party Payments,REVENUE
Wiltshire,http://opendatacommunities.org/id/unitary-authority/wiltshire,11/02/2020,1902505981,2255.89,A G Minibuses Ltd ,100878,BA12,Neighbourhood & Planning,Mainstream Primary,Transport Contracts,Third Party Payments,REVENUE
Wiltshire,http://opendatacommunities.org/id/unitary-authority/wiltshire,11/02/2020,1902505984,2676.4,A G Minibuses Ltd ,100878,BA12,Neighbourhood & Planning,SEN Primary Transprt,Transport Contracts,Third Party Payments,REVENUE
Wiltshire,http://opendatacommunities.org/id/unitary-authority/wiltshire,11/02/2020,1902505985,2736,A G Minibuses Ltd ,100878,BA12,Neighbourhood & Planning,SEN Secondary Tspt,Transport Contracts,Third Party Payments,REVENUE
Wiltshire,http://opendatacommunities.org/id/unitary-authority/wiltshire,11/02/2020,1902505986,951.42,A G Minibuses Ltd ,100878,BA12,Neighbourhood & Planning,SEN Primary Transprt,Transport Contracts,Third Party Payments,REVENUE
Wiltshire,http://opendatacommunities.org/id/unitary-authority/wiltshire,11/02/2020,1902505986,1502.24,A G Minibuses Ltd ,100878,BA12,Neighbourhood & Planning,SEN Secondary Tspt,Transport Contracts,Third Party Payments,REVENUE
Wiltshire,http://opendatacommunities.org/id/unitary-authority/wiltshire,11/02/2020,1902505990,910,A G Minibuses Ltd ,100878,BA12,Neighbourhood & Planning,SEN Primary Transprt,Transport Contracts,Third Party Payments,REVENUE
Wiltshire,http://opendatacommunities.org/id/unitary-authority/wiltshire,11/02/2020,1902505990,910,A G Minibuses Ltd ,100878,BA12,Neighbourhood & Planning,SEN Secondary Tspt,Transport Contracts,Third Party Payments,REVENUE
Wiltshire,http://opendatacommunities.org/id/unitary-authority/wiltshire,11/02/2020,1902505990,910,A G Minibuses Ltd ,100878,BA12,Neighbourhood & Planning,SEN 16+ Transport,Transport Contracts,Third Party Payments,REVENUE
Wiltshire,http://opendatacommunities.org/id/unitary-authority/wiltshire,11/02/2020,1902505992,342,A G Minibuses Ltd ,100878,BA12,Neighbourhood & Planning,SEN Primary Transprt,Transport Contracts,Third Party Payments,REVENUE
Wiltshire,http://opendatacommunities.org/id/unitary-authority/wiltshire,11/02/2020,1902505992,2052,A G Minibuses Ltd ,100878,BA12,Neighbourhood & Planning,SEN Secondary Tspt,Transport Contracts,Third Party Payments,REVENUE
Wiltshire,http://opendatacommunities.org/id/unitary-authority/wiltshire,11/02/2020,1902505993,2641,A G Minibuses Ltd ,100878,BA12,Neighbourhood & Planning,SEN Secondary Tspt,Transport Contracts,Third Party Payments,REVENUE
Wiltshire,http://opendatacommunities.org/id/unitary-authority/wiltshire,11/02/2020,1902505994,499,A G Minibuses Ltd ,100878,BA12,Neighbourhood & Planning,SEN Primary Transprt,Transport Contracts,Third Party Payments,REVENUE
Wiltshire,http://opendatacommunities.org/id/unitary-authority/wiltshire,11/02/2020,1902505994,2495,A G Minibuses Ltd ,100878,BA12,Neighbourhood & Planning,SEN Secondary Tspt,Transport Contracts,Third Party Payments,REVENUE
Wiltshire,http://opendatacommunities.org/id/unitary-authority/wiltshire,11/02/2020,1902505995,3732,A G Minibuses Ltd ,100878,BA12,Neighbourhood & Planning,SEN Secondary Tspt,Transport Contracts,Third Party Payments,REVENUE
Wiltshire,http://opendatacommunities.org/id/unitary-authority/wiltshire,11/02/2020,1902505996,2620,A G Minibuses Ltd ,100878,BA12,Neighbourhood & Planning,Mainstream Secondary,Transport Contracts,Third Party Payments,REVENUE
Wiltshire,http://opendatacommunities.org/id/unitary-authority/wiltshire,11/02/2020,1902505997,977.29,A G Minibuses Ltd ,100878,BA12,Neighbourhood & Planning,SEN Primary Transprt,Transport Contracts,Third Party Payments,REVENUE
Wiltshire,http://opendatacommunities.org/id/unitary-authority/wiltshire,11/02/2020,1902505997,1465.92,A G Minibuses Ltd ,100878,BA12,Neighbourhood & Planning,SEN Secondary Tspt,Transport Contracts,Third Party Payments,REVENUE
Wiltshire,http://opendatacommunities.org/id/unitary-authority/wiltshire,11/02/2020,1902505998,2885.34,A G Minibuses Ltd ,100878,BA12,Neighbourhood & Planning,SEN Secondary Tspt,Transport Contracts,Third Party Payments,REVENUE
Wiltshire,http://opendatacommunities.org/id/unitary-authority/wiltshire,11/02/2020,1902505999,548.91,A G Minibuses Ltd ,100878,BA12,Neighbourhood & Planning,SEN Primary Transprt,Transport Contracts,Third Party Payments,REVENUE
Wiltshire,http://opendatacommunities.org/id/unitary-authority/wiltshire,11/02/2020,1902505999,2195.64,A G Minibuses Ltd ,100878,BA12,Neighbourhood & Planning,SEN Secondary Tspt,Transport Contracts,Third Party Payments,REVENUE
Wiltshire,http://opendatacommunities.org/id/unitary-authority/wiltshire,11/02/2020,1902506000,2854.4,A G Minibuses Ltd ,100878,BA12,Neighbourhood & Planning,SEN Secondary Tspt,Transport Contracts,Third Party Payments,REVENUE
Wiltshire,http://opendatacommunities.org/id/unitary-authority/wiltshire,11/02/2020,1902506001,555.92,A G Minibuses Ltd ,100878,BA12,Neighbourhood & Planning,SEN 16+ Transport,Transport Contracts,Third Party Payments,REVENUE
Wiltshire,http://opendatacommunities.org/id/unitary-authority/wiltshire,11/02/2020,1902506001,1111.84,A G Minibuses Ltd ,100878,BA12,Neighbourhood & Planning,SEN Primary Transprt,Transport Contracts,Third Party Payments,REVENUE
Wiltshire,http://opendatacommunities.org/id/unitary-authority/wiltshire,11/02/2020,1902506001,1111.84,A G Minibuses Ltd ,100878,BA12,Neighbourhood & Planning,SEN Secondary Tspt,Transport Contracts,Third Party Payments,REVENUE
Wiltshire,http://opendatacommunities.org/id/unitary-authority/wiltshire,11/02/2020,1902506002,855,A G Minibuses Ltd ,100878,BA12,Neighbourhood & Planning,SEN Secondary Tspt,Transport Contracts,Third Party Payments,REVENUE
Wiltshire,http://opendatacommunities.org/id/unitary-authority/wiltshire,11/02/2020,1902506002,855,A G Minibuses Ltd ,100878,BA12,Neighbourhood & Planning,SEN 16+ Transport,Transport Contracts,Third Party Payments,REVENUE
Wiltshire,http://opendatacommunities.org/id/unitary-authority/wiltshire,11/02/2020,1902506002,1710,A G Minibuses Ltd ,100878,BA12,Neighbourhood & Planning,SEN Primary Transprt,Transport Contracts,Third Party Payments,REVENUE
Wiltshire,http://opendatacommunities.org/id/unitary-authority/wiltshire,11/02/2020,1902506003,2578.3,A G Minibuses Ltd ,100878,BA12,Neighbourhood & Planning,SEN Primary Transprt,Transport Contracts,Third Party Payments,REVENUE
Wiltshire,http://opendatacommunities.org/id/unitary-authority/wiltshire,11/02/2020,1902506004,1489.1,A G Minibuses Ltd ,100878,BA12,Neighbourhood & Planning,SEN Primary Transprt,Transport Contracts,Third Party Payments,REVENUE
Wiltshire,http://opendatacommunities.org/id/unitary-authority/wiltshire,11/02/2020,1902506004,1489.1,A G Minibuses Ltd ,100878,BA12,Neighbourhood & Planning,SEN Secondary Tspt,Transport Contracts,Third Party Payments,REVENUE
Wiltshire,http://opendatacommunities.org/id/unitary-authority/wiltshire,11/02/2020,1902506005,2812,A G Minibuses Ltd ,100878,BA12,Neighbourhood & Planning,SEN Secondary Tspt,Transport Contracts,Third Party Payments,REVENUE
Wiltshire,http://opendatacommunities.org/id/unitary-authority/wiltshire,11/02/2020,1902506006,3781.8,A G Minibuses Ltd ,100878,BA12,Neighbourhood & Planning,SEN Secondary Tspt,Transport Contracts,Third Party Payments,REVENUE
Wiltshire,http://opendatacommunities.org/id/unitary-authority/wiltshire,18/02/2020,1902513742,997.5,A G Minibuses Ltd ,100878,BA12,Neighbourhood & Planning,Mainstream Primary,Transport Contracts,Third Party Payments,REVENUE
Wiltshire,http://opendatacommunities.org/id/unitary-authority/wiltshire,18/02/2020,1902513742,3416.27,A G Minibuses Ltd ,100878,BA12,Neighbourhood & Planning,Public Transport,Transport Contracts,Third Party Payments,REVENUE
Wiltshire,http://opendatacommunities.org/id/unitary-authority/wiltshire,18/02/2020,1902513743,1583.33,A G Minibuses Ltd ,100878,BA12,Neighbourhood & Planning,Mainstream Secondary,Transport Contracts,Third Party Payments,REVENUE
Wiltshire,http://opendatacommunities.org/id/unitary-authority/wiltshire,18/02/2020,1902513743,4261.72,A G Minibuses Ltd ,100878,BA12,Neighbourhood & Planning,Public Transport,Transport Contracts,Third Party Payments,REVENUE
Wiltshire,http://opendatacommunities.org/id/unitary-authority/wiltshire,27/02/2020,1902517952,2420,A G Minibuses Ltd ,100878,BA12,Community Services,CTPLD Placements,Transport Contracts,Third Party Payments,REVENUE
Wiltshire,http://opendatacommunities.org/id/unitary-authority/wiltshire,11/02/2020,1902506058,1500,A1 Cab Company ,101233,SP4 ,Neighbourhood & Planning,SEN Primary Transprt,Transport Contracts,Third Party Payments,REVENUE
Wiltshire,http://opendatacommunities.org/id/unitary-authority/wiltshire,11/02/2020,1902506059,331.67,A1 Cab Company ,101233,SP4 ,Neighbourhood & Planning,SEN Secondary Tspt,Transport Contracts,Third Party Payments,REVENUE
Wiltshire,http://opendatacommunities.org/id/unitary-authority/wiltshire,11/02/2020,1902506059,1658.33,A1 Cab Company ,101233,SP4 ,Neighbourhood & Planning,Mainstream Secondary,Transport Contracts,Third Party Payments,REVENUE
Wiltshire,http://opendatacommunities.org/id/unitary-authority/wiltshire,25/02/2020,5107404548,265.9,A2B Office Technology ,113249,BL8 ,Neighbourhood & Planning,Pass Transport Group,Stationery,Supplies and Services,REVENUE
Wiltshire,http://opendatacommunities.org/id/unitary-authority/wiltshire,10/02/2020,1902505743,476,A2B Taxis (Dorset) ,143353,SP8 ,Community Services,CTPLD Placements,Transport Contracts,Third Party Payments,REVENUE
Wiltshire,http://opendatacommunities.org/id/unitary-authority/wiltshire,10/02/2020,1902505746,720,A2B Taxis (Dorset) ,143353,SP8 ,Community Services,West Care Packages,Transport Contracts,Third Party Payments,REVENUE
Wiltshire,http://opendatacommunities.org/id/unitary-authority/wiltshire,10/02/2020,1902505749,1400,A2B Taxis (Dorset) ,143353,SP8 ,Neighbourhood & Planning,Mainstream Secondary,Transport Contracts,Third Party Payments,REVENUE
Wiltshire,http://opendatacommunities.org/id/unitary-authority/wiltshire,10/02/2020,1902505752,1119.84,A2B Taxis (Dorset) ,143353,SP8 ,Neighbourhood & Planning,SEN 16+ Transport,Transport Contracts,Third Party Payments,REVENUE
Wiltshire,http://opendatacommunities.org/id/unitary-authority/wiltshire,10/02/2020,1902505586,443,AAP Taxis and Private Hire Ltd ,143342,SN10,Neighbourhood & Planning,Mainstream Primary,Transport Contracts,Third Party Payments,REVENUE
Wiltshire,http://opendatacommunities.org/id/unitary-authority/wiltshire,10/02/2020,1902505590,920,AAP Taxis and Private Hire Ltd ,143342,SN10,Neighbourhood & Planning,SEN Secondary Tspt,Transport Contracts,Third Party Payments,REVENUE
Wiltshire,http://opendatacommunities.org/id/unitary-authority/wiltshire,10/02/2020,1902505590,1840,AAP Taxis and Private Hire Ltd ,143342,SN10,Neighbourhood & Planning,SEN Primary Transprt,Transport Contracts,Third Party Payments,REVENUE
Wiltshire,http://opendatacommunities.org/id/unitary-authority/wiltshire,10/02/2020,1902505591,1040,AAP Taxis and Private Hire Ltd ,143342,SN10,Neighbourhood & Planning,SEN Primary Transprt,Transport Contracts,Third Party Payments,REVENUE
Wiltshire,http://opendatacommunities.org/id/unitary-authority/wiltshire,10/02/2020,1902505595,1520,AAP Taxis and Private Hire Ltd ,143342,SN10,Children & Education,CIC Team South,Transport Contracts,Third Party Payments,REVENUE
Wiltshire,http://opendatacommunities.org/id/unitary-authority/wiltshire,06/02/2020,5107401558,37599.44,Aareon Uk Ltd ,113252,CV8 ,Community Services,HRA System Supp Perf,ICT - Support arrangements,Supplies and Services,REVENUE
Wiltshire,http://opendatacommunities.org/id/unitary-authority/wiltshire,06/02/2020,5107401571,38039.96,Aareon Uk Ltd ,113252,CV8 ,Community Services,HRA System Supp Perf,ICT - Support arrangements,Supplies and Services,REVENUE
Wiltshire,http://opendatacommunities.org/id/unitary-authority/wiltshire,17/02/2020,1902512194,13429.5,AB Learning and Education ,125864,SN8 ,Children & Education,Free Enttlmnt 3 & 4y,Childcare Free Entitlement Early Years,Supplies and Services,REVENUE
Wiltshire,http://opendatacommunities.org/id/unitary-authority/wiltshire,17/02/2020,1902512195,292.6,AB Learning and Education ,125864,SN8 ,Children & Education,Free Entitlement 2 Y,Childcare Free Entitlement Early Years,Supplies and Services,REVENUE
Wiltshire,http://opendatacommunities.org/id/unitary-authority/wiltshire,14/02/2020,1902511443,1900,Abbey Taxis (Swindon) Ltd ,100920,SN2 ,Neighbourhood & Planning,SEN Secondary Tspt,Transport Contracts,Third Party Payments,REVENUE
Wiltshire,http://opendatacommunities.org/id/unitary-authority/wiltshire,14/02/2020,1902511446,696.67,Abbey Taxis (Swindon) Ltd ,100920,SN2 ,Neighbourhood & Planning,SEN Secondary Tspt,Transport Contracts,Third Party Payments,REVENUE
Wiltshire,http://opendatacommunities.org/id/unitary-authority/wiltshire,14/02/2020,1902511446,1393.33,Abbey Taxis (Swindon) Ltd ,100920,SN2 ,Neighbourhood & Planning,SEN Primary Transprt,Transport Contracts,Third Party Payments,REVENUE
Wiltshire,http://opendatacommunities.org/id/unitary-authority/wiltshire,14/02/2020,1902511447,357,Abbey Taxis (Swindon) Ltd ,100920,SN2 ,Neighbourhood & Planning,Mainstream Primary,Transport Contracts,Third Party Payments,REVENUE
Wiltshire,http://opendatacommunities.org/id/unitary-authority/wiltshire,14/02/2020,1902511447,1785,Abbey Taxis (Swindon) Ltd ,100920,SN2 ,Neighbourhood & Planning,SEN Primary Transprt,Transport Contracts,Third Party Payments,REVENUE
Wiltshire,http://opendatacommunities.org/id/unitary-authority/wiltshire,14/02/2020,1902511448,2014,Abbey Taxis (Swindon) Ltd ,100920,SN2 ,Neighbourhood & Planning,SEN Secondary Tspt,Transport Contracts,Third Party Payments,REVENUE
Wiltshire,http://opendatacommunities.org/id/unitary-authority/wiltshire,14/02/2020,1902511449,2640,Abbey Taxis (Swindon) Ltd ,100920,SN2 ,Neighbourhood & Planning,SEN Secondary Tspt,Transport Contracts,Third Party Payments,REVENUE
Wiltshire,http://opendatacommunities.org/id/unitary-authority/wiltshire,14/02/2020,1902511450,3000,Abbey Taxis (Swindon) Ltd ,100920,SN2 ,Neighbourhood & Planning,SEN Primary Transprt,Transport Contracts,Third Party Payments,REVENUE
Wiltshire,http://opendatacommunities.org/id/unitary-authority/wiltshire,14/02/2020,1902511451,948.2,Abbey Taxis (Swindon) Ltd ,100920,SN2 ,Neighbourhood & Planning,SEN Primary Transprt,Transport Contracts,Third Party Payments,REVENUE
Wiltshire,http://opendatacommunities.org/id/unitary-authority/wiltshire,14/02/2020,1902511451,1871.4,Abbey Taxis (Swindon) Ltd ,100920,SN2 ,Neighbourhood & Planning,SEN Secondary Tspt,Transport Contracts,Third Party Payments,REVENUE
Wiltshire,http://opendatacommunities.org/id/unitary-authority/wiltshire,14/02/2020,1902511452,2660,Abbey Taxis (Swindon) Ltd ,100920,SN2 ,Neighbourhood & Planning,SEN Secondary Tspt,Transport Contracts,Third Party Payments,REVENUE
Wiltshire,http://opendatacommunities.org/id/unitary-authority/wiltshire,14/02/2020,1902511453,1171.59,Abbey Taxis (Swindon) Ltd ,100920,SN2 ,Neighbourhood & Planning,SEN Secondary Tspt,Transport Contracts,Third Party Payments,REVENUE
Wiltshire,http://opendatacommunities.org/id/unitary-authority/wiltshire,14/02/2020,1902511453,1562.13,Abbey Taxis (Swindon) Ltd ,100920,SN2 ,Neighbourhood & Planning,SEN Primary Transprt,Transport Contracts,Third Party Payments,REVENUE
Wiltshire,http://opendatacommunities.org/id/unitary-authority/wiltshire,14/02/2020,1902511454,825,Abbey Taxis (Swindon) Ltd ,100920,SN2 ,Neighbourhood & Planning,SEN Secondary Tspt,Transport Contracts,Third Party Payments,REVENUE
Wiltshire,http://opendatacommunities.org/id/unitary-authority/wiltshire,14/02/2020,1902511455,2812,Abbey Taxis (Swindon) Ltd ,100920,SN2 ,Neighbourhood & Planning,SEN Secondary Tspt,Transport Contracts,Third Party Payments,REVENUE
Wiltshire,http://opendatacommunities.org/id/unitary-authority/wiltshire,14/02/2020,1902511457,860,Abbey Taxis (Swindon) Ltd ,100920,SN2 ,Neighbourhood & Planning,SEN Secondary Tspt,Transport Contracts,Third Party Payments,REVENUE
Wiltshire,http://opendatacommunities.org/id/unitary-authority/wiltshire,14/02/2020,1902511459,475,Abbey Taxis (Swindon) Ltd ,100920,SN2 ,Neighbourhood & Planning,SEN Primary Transprt,Transport Contracts,Third Party Payments,REVENUE
Wiltshire,http://opendatacommunities.org/id/unitary-authority/wiltshire,14/02/2020,1902511459,2850,Abbey Taxis (Swindon) Ltd ,100920,SN2 ,Neighbourhood & Planning,SEN Secondary Tspt,Transport Contracts,Third Party Payments,REVENUE
Wiltshire,http://opendatacommunities.org/id/unitary-authority/wiltshire,14/02/2020,1902511460,407.14,Abbey Taxis (Swindon) Ltd ,100920,SN2 ,Neighbourhood & Planning,SEN Primary Transprt,Transport Contracts,Third Party Payments,REVENUE
Wiltshire,http://opendatacommunities.org/id/unitary-authority/wiltshire,14/02/2020,1902511460,2442.86,Abbey Taxis (Swindon) Ltd ,100920,SN2 ,Neighbourhood & Planning,SEN Secondary Tspt,Transport Contracts,Third Party Payments,REVENUE
Wiltshire,http://opendatacommunities.org/id/unitary-authority/wiltshire,14/02/2020,1902511461,1159,Abbey Taxis (Swindon) Ltd ,100920,SN2 ,Neighbourhood & Planning,Mainstream Secondary,Transport Contracts,Third Party Payments,REVENUE
Wiltshire,http://opendatacommunities.org/id/unitary-authority/wiltshire,14/02/2020,1902511462,640,Abbey Taxis (Swindon) Ltd ,100920,SN2 ,Neighbourhood & Planning,Mainstream Primary,Transport Contracts,Third Party Payments,REVENUE
Wiltshire,http://opendatacommunities.org/id/unitary-authority/wiltshire,14/02/2020,1902511462,2560,Abbey Taxis (Swindon) Ltd ,100920,SN2 ,Neighbourhood & Planning,SEN Primary Transprt,Transport Contracts,Third Party Payments,REVENUE
Wiltshire,http://opendatacommunities.org/id/unitary-authority/wiltshire,14/02/2020,1902511463,366.67,Abbey Taxis (Swindon) Ltd ,100920,SN2 ,Neighbourhood & Planning,SEN Secondary Tspt,Transport Contracts,Third Party Payments,REVENUE
Wiltshire,http://opendatacommunities.org/id/unitary-authority/wiltshire,14/02/2020,1902511463,1833.33,Abbey Taxis (Swindon) Ltd ,100920,SN2 ,Neighbourhood & Planning,Mainstream Secondary,Transport Contracts,Third Party Payments,REVENUE
Wiltshire,http://opendatacommunities.org/id/unitary-authority/wiltshire,14/02/2020,1902511464,1040,Abbey Taxis (Swindon) Ltd ,100920,SN2 ,Neighbourhood & Planning,SEN Secondary Tspt,Transport Contracts,Third Party Payments,REVENUE
Wiltshire,http://opendatacommunities.org/id/unitary-authority/wiltshire,14/02/2020,1902511465,2660,Abbey Taxis (Swindon) Ltd ,100920,SN2 ,Neighbourhood & Planning,SEN Primary Transprt,Transport Contracts,Third Party Payments,REVENUE
Wiltshire,http://opendatacommunities.org/id/unitary-authority/wiltshire,14/02/2020,1902511466,960,Abbey Taxis (Swindon) Ltd ,100920,SN2 ,Neighbourhood & Planning,SEN 16+ Transport,Transport Contracts,Third Party Payments,REVENUE
Wiltshire,http://opendatacommunities.org/id/unitary-authority/wiltshire,14/02/2020,1902511467,402.43,Abbey Taxis (Swindon) Ltd ,100920,SN2 ,Neighbourhood & Planning,SEN Secondary Tspt,Transport Contracts,Third Party Payments,REVENUE
Wiltshire,http://opendatacommunities.org/id/unitary-authority/wiltshire,14/02/2020,1902511467,2529.57,Abbey Taxis (Swindon) Ltd ,100920,SN2 ,Neighbourhood & Planning,SEN Primary Transprt,Transport Contracts,Third Party Payments,REVENUE
Wiltshire,http://opendatacommunities.org/id/unitary-authority/wiltshire,14/02/2020,1902511468,1140,Abbey Taxis (Swindon) Ltd ,100920,SN2 ,Neighbourhood & Planning,SEN Primary Transprt,Transport Contracts,Third Party Payments,REVENUE
Wiltshire,http://opendatacommunities.org/id/unitary-authority/wiltshire,14/02/2020,1902511468,1140,Abbey Taxis (Swindon) Ltd ,100920,SN2 ,Neighbourhood & Planning,SEN Secondary Tspt,Transport Contracts,Third Party Payments,REVENUE
Wiltshire,http://opendatacommunities.org/id/unitary-authority/wiltshire,14/02/2020,1902511469,2090,Abbey Taxis (Swindon) Ltd ,100920,SN2 ,Neighbourhood & Planning,SEN 16+ Transport,Transport Contracts,Third Party Payments,REVENUE
Wiltshire,http://opendatacommunities.org/id/unitary-authority/wiltshire,14/02/2020,1902511470,2394,Abbey Taxis (Swindon) Ltd ,100920,SN2 ,Neighbourhood & Planning,SEN 16+ Transport,Transport Contracts,Third Party Payments,REVENUE
Wiltshire,http://opendatacommunities.org/id/unitary-authority/wiltshire,14/02/2020,1902511471,3150,Abbey Taxis (Swindon) Ltd ,100920,SN2 ,Neighbourhood & Planning,SEN 16+ Transport,Transport Contracts,Third Party Payments,REVENUE
Wiltshire,http://opendatacommunities.org/id/unitary-authority/wiltshire,14/02/2020,1902511472,2431,Abbey Taxis (Swindon) Ltd ,100920,SN2 ,Neighbourhood & Planning,SEN 16+ Transport,Transport Contracts,Third Party Payments,REVENUE
Wiltshire,http://opendatacommunities.org/id/unitary-authority/wiltshire,21/02/2020,1902515131,3025,Abbey Taxis (Swindon) Ltd ,100920,SN2 ,Community Services,CTPLD Placements,Transport Contracts,Third Party Payments,REVENUE
Wiltshire,http://opendatacommunities.org/id/unitary-authority/wiltshire,21/02/2020,1902515138,2731,Abbey Taxis (Swindon) Ltd ,100920,SN2 ,Neighbourhood & Planning,SEN Primary Transprt,Transport Contracts,Third Party Payments,REVENUE
Wiltshire,http://opendatacommunities.org/id/unitary-authority/wiltshire,27/02/2020,1902517953,2101,Abbey Taxis (Swindon) Ltd ,100920,SN2 ,Community Services,CTPLD Placements,Transport Contracts,Third Party Payments,REVENUE
Wiltshire,http://opendatacommunities.org/id/unitary-authority/wiltshire,17/02/2020,1902512337,11811.8,ABC Day Nursery 1027 ,110028,SN12,Children & Education,Free Enttlmnt 3 & 4y,Childcare Free Entitlement Early Years,Supplies and Services,REVENUE
Wiltshire,http://opendatacommunities.org/id/unitary-authority/wiltshire,17/02/2020,1902512338,1463,ABC Day Nursery 1027 ,110028,SN12,Children & Education,Free Entitlement 2 Y,Childcare Free Entitlement Early Years,Supplies and Services,REVENUE
Wiltshire,http://opendatacommunities.org/id/unitary-authority/wiltshire,17/02/2020,1902512390,13088,ABC Nursery ,143051,SN13,Children & Education,Free Enttlmnt 3 & 4y,Childcare Free Entitlement Early Years,Supplies and Services,REVENUE
Wiltshire,http://opendatacommunities.org/id/unitary-authority/wiltshire,17/02/2020,1902512391,2633.4,ABC Nursery ,143051,SN13,Children & Education,Free Entitlement 2 Y,Childcare Free Entitlement Early Years,Supplies and Services,REVENUE
Wiltshire,http://opendatacommunities.org/id/unitary-authority/wiltshire,26/02/2020,1902517082,2720.86,Abicare Services (CareMatch) ,148189,SP2 ,Community Services,South Care Packages,Adult Domiciliary Care Contribution,Income,REVENUE
Wiltshire,http://opendatacommunities.org/id/unitary-authority/wiltshire,26/02/2020,1902517083,1394.58,Abicare Services (CareMatch) ,148189,SP2 ,Community Services,South Care Packages,Adult Domiciliary Care,Third Party Payments,REVENUE
Wiltshire,http://opendatacommunities.org/id/unitary-authority/wiltshire,26/02/2020,1902517084,1941.39,Abicare Services (CareMatch) ,148189,SP2 ,Community Services,South Care Packages,Adult Domiciliary Care,Third Party Payments,REVENUE
Wiltshire,http://opendatacommunities.org/id/unitary-authority/wiltshire,04/02/2020,1902500134,379.36,Abicare Services Ltd Homecare ,110031,SP2 ,Community Services,West Care Packages,Adult Domiciliary Care Contribution,Income,REVENUE
Wiltshire,http://opendatacommunities.org/id/unitary-authority/wiltshire,12/02/2020,1902506246,937.04,Abicare Services Ltd Homecare ,110031,SP2 ,Community Services,MH OP South Locality,Adult Domiciliary Care,Third Party Payments,REVENUE
Wiltshire,http://opendatacommunities.org/id/unitary-authority/wiltshire,12/02/2020,1902506247,561.96,Abicare Services Ltd Homecare ,110031,SP2 ,Community Services,South Care Packages,Adult Domiciliary Care,Third Party Payments,REVENUE
Wiltshire,http://opendatacommunities.org/id/unitary-authority/wiltshire,12/02/2020,1902506248,475.86,Abicare Services Ltd Homecare ,110031,SP2 ,Community Services,South Care Packages,Adult Domiciliary Care,Third Party Payments,REVENUE
Wiltshire,http://opendatacommunities.org/id/unitary-authority/wiltshire,13/02/2020,1902511161,1116.36,Abicare Services Ltd Homecare ,110031,SP2 ,Community Services,South Care Packages,Adult Domiciliary Care,Third Party Payments,REVENUE
Wiltshire,http://opendatacommunities.org/id/unitary-authority/wiltshire,13/02/2020,1902511162,1116.36,Abicare Services Ltd Homecare ,110031,SP2 ,Community Services,South Care Packages,Adult Domiciliary Care,Third Party Payments,REVENUE
Wiltshire,http://opendatacommunities.org/id/unitary-authority/wiltshire,18/02/2020,1902513614,1708.1,Abicare Services Ltd Homecare ,110031,SP2 ,Community Services,CTPLD Placements,Adult Domiciliary Care,Third Party Payments,REVENUE
Wiltshire,http://opendatacommunities.org/id/unitary-authority/wiltshire,25/02/2020,1902515467,1814.12,Abicare Services Ltd Homecare ,110031,SP2 ,Community Services,West Care Packages,Adult Domiciliary Care,Third Party Payments,REVENUE
Wiltshire,http://opendatacommunities.org/id/unitary-authority/wiltshire,25/02/2020,1902515469,1814.12,Abicare Services Ltd Homecare ,110031,SP2 ,Community Services,West Care Packages,Adult Domiciliary Care,Third Party Payments,REVENUE
Wiltshire,http://opendatacommunities.org/id/unitary-authority/wiltshire,25/02/2020,1902515470,1814.12,Abicare Services Ltd Homecare ,110031,SP2 ,Community Services,West Care Packages,Adult Domiciliary Care,Third Party Payments,REVENUE
Wiltshire,http://opendatacommunities.org/id/unitary-authority/wiltshire,25/02/2020,1902515472,1814.12,Abicare Services Ltd Homecare ,110031,SP2 ,Community Services,West Care Packages,Adult Domiciliary Care,Third Party Payments,REVENUE
Wiltshire,http://opendatacommunities.org/id/unitary-authority/wiltshire,25/02/2020,1902515473,971.85,Abicare Services Ltd Homecare ,110031,SP2 ,Community Services,West Care Packages,Adult Domiciliary Care,Third Party Payments,REVENUE
Wiltshire,http://opendatacommunities.org/id/unitary-authority/wiltshire,26/02/2020,1902517001,587.15,Abicare Services Ltd Homecare ,110031,SP2 ,Community Services,West Care Packages,Adult Domiciliary Care,Third Party Payments,REVENUE
Wiltshire,http://opendatacommunities.org/id/unitary-authority/wiltshire,26/02/2020,1902517002,869.44,Abicare Services Ltd Homecare ,110031,SP2 ,Community Services,MH AOWA West Localit,Adult Domiciliary Care,Third Party Payments,REVENUE
Wiltshire,http://opendatacommunities.org/id/unitary-authority/wiltshire,26/02/2020,1902517003,1390.64,Abicare Services Ltd Homecare ,110031,SP2 ,Community Services,West Care Packages,Adult Domiciliary Care,Third Party Payments,REVENUE
Wiltshire,http://opendatacommunities.org/id/unitary-authority/wiltshire,26/02/2020,1902517004,937.04,Abicare Services Ltd Homecare ,110031,SP2 ,Community Services,MH OP South Locality,Adult Domiciliary Care,Third Party Payments,REVENUE
Wiltshire,http://opendatacommunities.org/id/unitary-authority/wiltshire,26/02/2020,1902517005,2743.7,Abicare Services Ltd Homecare ,110031,SP2 ,Community Services,South Care Packages,Adult Domiciliary Care Contribution,Income,REVENUE
Wiltshire,http://opendatacommunities.org/id/unitary-authority/wiltshire,26/02/2020,1902517007,1280.29,Abicare Services Ltd Homecare ,110031,SP2 ,Community Services,South Care Packages,Adult Domiciliary Care,Third Party Payments,REVENUE
Wiltshire,http://opendatacommunities.org/id/unitary-authority/wiltshire,26/02/2020,1902517011,2223.56,Abicare Services Ltd Homecare ,110031,SP2 ,Community Services,South Care Packages,Adult Domiciliary Care Contribution,Income,REVENUE
Wiltshire,http://opendatacommunities.org/id/unitary-authority/wiltshire,27/02/2020,1902518087,600.61,Abicare Services Ltd Homecare ,110031,SP2 ,Community Services,West Care Packages,Adult Domiciliary Care Contribution,Income,REVENUE
Wiltshire,http://opendatacommunities.org/id/unitary-authority/wiltshire,27/02/2020,1902518088,2127.17,Abicare Services Ltd Homecare ,110031,SP2 ,Community Services,West Care Packages,Adult Domiciliary Care Contribution,Income,REVENUE
Wiltshire,http://opendatacommunities.org/id/unitary-authority/wiltshire,27/02/2020,1902518089,275.15,Abicare Services Ltd Homecare ,110031,SP2 ,Community Services,South Care Packages,Adult Domiciliary Care Contribution,Income,REVENUE
Wiltshire,http://opendatacommunities.org/id/unitary-authority/wiltshire,27/02/2020,1902518090,608.14,Abicare Services Ltd Homecare ,110031,SP2 ,Community Services,South Care Packages,Adult Domiciliary Care,Third Party Payments,REVENUE
Wiltshire,http://opendatacommunities.org/id/unitary-authority/wiltshire,21/02/2020,1902496925,3307.84,Abicare Services Ltd Live in Care. ,113071,SP2 ,Community Services,South Care Packages,Adult Domiciliary Care,Third Party Payments,REVENUE
Wiltshire,http://opendatacommunities.org/id/unitary-authority/wiltshire,21/02/2020,1902496926,3566.76,Abicare Services Ltd Live in Care. ,113071,SP2 ,Community Services,West Care Packages,Adult Domiciliary Care Contribution,Income,REVENUE
Wiltshire,http://opendatacommunities.org/id/unitary-authority/wiltshire,21/02/2020,1902496927,2628.36,Abicare Services Ltd Live in Care. ,113071,SP2 ,Community Services,North Care Packages,Adult Domiciliary Care,Third Party Payments,REVENUE
Wiltshire,http://opendatacommunities.org/id/unitary-authority/wiltshire,21/02/2020,1902497009,3566.76,Abicare Services Ltd Live in Care. ,113071,SP2 ,Community Services,West Care Packages,Adult Domiciliary Care,Third Party Payments,REVENUE
Wiltshire,http://opendatacommunities.org/id/unitary-authority/wiltshire,21/02/2020,1902497010,3628.24,Abicare Services Ltd Live in Care. ,113071,SP2 ,Community Services,MH AOWA West Localit,Adult Domiciliary Care,Third Party Payments,REVENUE
Wiltshire,http://opendatacommunities.org/id/unitary-authority/wiltshire,21/02/2020,1902497011,3628.24,Abicare Services Ltd Live in Care. ,113071,SP2 ,Community Services,South Care Packages,Adult Domiciliary Care,Third Party Payments,REVENUE
Wiltshire,http://opendatacommunities.org/id/unitary-authority/wiltshire,21/02/2020,1902497012,3820.88,Abicare Services Ltd Live in Care. ,113071,SP2 ,Community Services,West Care Packages,Adult Domiciliary Care,Third Party Payments,REVENUE
Wiltshire,http://opendatacommunities.org/id/unitary-authority/wiltshire,21/02/2020,1902497013,3820.88,Abicare Services Ltd Live in Care. ,113071,SP2 ,Community Services,North Care Packages,Adult Domiciliary Care,Third Party Payments,REVENUE
Wiltshire,http://opendatacommunities.org/id/unitary-authority/wiltshire,21/02/2020,1902498109,3628.24,Abicare Services Ltd Live in Care. ,113071,SP2 ,Community Services,South Care Packages,Adult Domiciliary Care,Third Party Payments,REVENUE
Wiltshire,http://opendatacommunities.org/id/unitary-authority/wiltshire,21/02/2020,1902499953,3307.84,Abicare Services Ltd Live in Care. ,113071,SP2 ,Community Services,South Care Packages,Adult Domiciliary Care Contribution,Income,REVENUE
Wiltshire,http://opendatacommunities.org/id/unitary-authority/wiltshire,21/02/2020,1902501494,3820.88,Abicare Services Ltd Live in Care. ,113071,SP2 ,Community Services,MH OP West Locality,Adult Domiciliary Care,Third Party Payments,REVENUE
Wiltshire,http://opendatacommunities.org/id/unitary-authority/wiltshire,21/02/2020,1902501495,3820.88,Abicare Services Ltd Live in Care. ,113071,SP2 ,Community Services,MH OP West Locality,Adult Domiciliary Care,Third Party Payments,REVENUE
Wiltshire,http://opendatacommunities.org/id/unitary-authority/wiltshire,21/02/2020,1902506266,2977.04,Abicare Services Ltd Live in Care. ,113071,SP2 ,Community Services,West Care Packages,Adult Domiciliary Care Contribution,Income,REVENUE
Wiltshire,http://opendatacommunities.org/id/unitary-authority/wiltshire,21/02/2020,1902513625,2977.04,Abicare Services Ltd Live in Care. ,113071,SP2 ,Community Services,West Care Packages,Adult Domiciliary Care,Third Party Payments,REVENUE
Wiltshire,http://opendatacommunities.org/id/unitary-authority/wiltshire,21/02/2020,1902514992,3209.88,Abicare Services Ltd Live in Care. ,113071,SP2 ,Community Services,North Care Packages,Adult Domiciliary Care Contribution,Income,REVENUE
Wiltshire,http://opendatacommunities.org/id/unitary-authority/wiltshire,21/02/2020,1902515170,3209.88,Abicare Services Ltd Live in Care. ,113071,SP2 ,Community Services,North Care Packages,Adult Domiciliary Care,Third Party Payments,REVENUE
Wiltshire,http://opendatacommunities.org/id/unitary-authority/wiltshire,21/02/2020,1902515171,3209.88,Abicare Services Ltd Live in Care. ,113071,SP2 ,Community Services,North Care Packages,Adult Domiciliary Care Contribution,Income,REVENUE
Wiltshire,http://opendatacommunities.org/id/unitary-authority/wiltshire,27/02/2020,1902517913,3307.84,Abicare Services Ltd Live in Care. ,113071,SP2 ,Community Services,South Care Packages,Adult Domiciliary Care Contribution,Income,REVENUE
Wiltshire,http://opendatacommunities.org/id/unitary-authority/wiltshire,27/02/2020,1902517914,3628.24,Abicare Services Ltd Live in Care. ,113071,SP2 ,Community Services,South Care Packages,Adult Domiciliary Care,Third Party Payments,REVENUE
Wiltshire,http://opendatacommunities.org/id/unitary-authority/wiltshire,27/02/2020,1902517942,3566.76,Abicare Services Ltd Live in Care. ,113071,SP2 ,Community Services,West Care Packages,Adult Domiciliary Care Contribution,Income,REVENUE
Wiltshire,http://opendatacommunities.org/id/unitary-authority/wiltshire,27/02/2020,1902517943,3820.88,Abicare Services Ltd Live in Care. ,113071,SP2 ,Community Services,MH OP West Locality,Adult Domiciliary Care,Third Party Payments,REVENUE
Wiltshire,http://opendatacommunities.org/id/unitary-authority/wiltshire,27/02/2020,1902517944,3628.24,Abicare Services Ltd Live in Care. ,113071,SP2 ,Community Services,MH AOWA West Localit,Adult Domiciliary Care,Third Party Payments,REVENUE
Wiltshire,http://opendatacommunities.org/id/unitary-authority/wiltshire,27/02/2020,1902517945,3934.68,Abicare Services Ltd Live in Care. ,113071,SP2 ,Community Services,South Care Packages,Adult Domiciliary Care Contribution,Income,REVENUE
Wiltshire,http://opendatacommunities.org/id/unitary-authority/wiltshire,27/02/2020,1902517947,3628.24,Abicare Services Ltd Live in Care. ,113071,SP2 ,Community Services,South Care Packages,Adult Domiciliary Care,Third Party Payments,REVENUE
Wiltshire,http://opendatacommunities.org/id/unitary-authority/wiltshire,27/02/2020,1902517948,3820.88,Abicare Services Ltd Live in Care. ,113071,SP2 ,Community Services,West Care Packages,Adult Domiciliary Care,Third Party Payments,REVENUE
Wiltshire,http://opendatacommunities.org/id/unitary-authority/wiltshire,27/02/2020,1902517949,3820.88,Abicare Services Ltd Live in Care. ,113071,SP2 ,Community Services,North Care Packages,Adult Domiciliary Care,Third Party Payments,REVENUE
Wiltshire,http://opendatacommunities.org/id/unitary-authority/wiltshire,27/02/2020,1902518102,2977.04,Abicare Services Ltd Live in Care. ,113071,SP2 ,Community Services,West Care Packages,Adult Domiciliary Care Contribution,Income,REVENUE
Wiltshire,http://opendatacommunities.org/id/unitary-authority/wiltshire,05/02/2020,1902503744,443.44,ABLE ,101029,BA14,Community Services,MH AOWA N&E Locality,Supported Living,Third Party Payments,REVENUE
Wiltshire,http://opendatacommunities.org/id/unitary-authority/wiltshire,05/02/2020,1902503745,443.44,ABLE ,101029,BA14,Community Services,MH AOWA N&E Locality,Supported Living,Third Party Payments,REVENUE
Wiltshire,http://opendatacommunities.org/id/unitary-authority/wiltshire,05/02/2020,1902503746,443.44,ABLE ,101029,BA14,Community Services,MH AOWA N&E Locality,Supported Living,Third Party Payments,REVENUE
Wiltshire,http://opendatacommunities.org/id/unitary-authority/wiltshire,05/02/2020,1902503747,443.44,ABLE ,101029,BA14,Community Services,MH AOWA N&E Locality,Supported Living,Third Party Payments,REVENUE
Wiltshire,http://opendatacommunities.org/id/unitary-authority/wiltshire,05/02/2020,1902503748,443.44,ABLE ,101029,BA14,Community Services,MH AOWA N&E Locality,Supported Living,Third Party Payments,REVENUE
Wiltshire,http://opendatacommunities.org/id/unitary-authority/wiltshire,18/02/2020,5107403905,3353.76,ABLE ,101029,BA14,Community Services,MH Commissioned Cont,Grants Expenditure,Supplies and Services,REVENUE
Wiltshire,http://opendatacommunities.org/id/unitary-authority/wiltshire,05/02/2020,1902503285,414.2,ABLE ,110034,BA14,Community Services,MH AOWA West Localit,Adult Residential Place - Spot Purchase,Income,REVENUE
Wiltshire,http://opendatacommunities.org/id/unitary-authority/wiltshire,05/02/2020,1902503286,3120,ABLE ,110034,BA14,Community Services,MH OP West Locality,Adult Residential Placements - Spot Purchase,Third Party Payments,REVENUE
Wiltshire,http://opendatacommunities.org/id/unitary-authority/wiltshire,05/02/2020,1902503287,3194.88,ABLE ,110034,BA14,Community Services,MH AOWA West Localit,Adult Residential Placements - Spot Purchase,Third Party Payments,REVENUE
Wiltshire,http://opendatacommunities.org/id/unitary-authority/wiltshire,05/02/2020,1902503288,3194.88,ABLE ,110034,BA14,Community Services,MH AOWA West Localit,Adult Residential Placements - Spot Purchase,Third Party Payments,REVENUE
Wiltshire,http://opendatacommunities.org/id/unitary-authority/wiltshire,05/02/2020,1902503289,4136.96,ABLE ,110034,BA14,Community Services,MH AOWA West Localit,Adult Residential Placements - Spot Purchase,Third Party Payments,REVENUE
Wiltshire,http://opendatacommunities.org/id/unitary-authority/wiltshire,06/02/2020,1902505286,600,Able Hands Together CIC ,144783,SP11,Community Services,CTPLD Placements,Adult Day Care Contracts,Third Party Payments,REVENUE
Wiltshire,http://opendatacommunities.org/id/unitary-authority/wiltshire,06/02/2020,1902505287,540,Able Hands Together CIC ,144783,SP11,Community Services,CTPLD Placements,Adult Day Care - Spot Income Contribution,Income,REVENUE
Wiltshire,http://opendatacommunities.org/id/unitary-authority/wiltshire,06/02/2020,1902505288,480,Able Hands Together CIC ,144783,SP11,Community Services,CTPLD Placements,Adult Day Care Contracts,Third Party Payments,REVENUE
Wiltshire,http://opendatacommunities.org/id/unitary-authority/wiltshire,06/02/2020,1902505289,300,Able Hands Together CIC ,144783,SP11,Community Services,CTPLD Placements,Adult Day Care Contracts,Third Party Payments,REVENUE
Wiltshire,http://opendatacommunities.org/id/unitary-authority/wiltshire,14/02/2020,1902511691,780,Able Hands Together CIC ,144783,SP11,Community Services,CTPLD Placements,Adult Domiciliary Care,Third Party Payments,REVENUE
Wiltshire,http://opendatacommunities.org/id/unitary-authority/wiltshire,18/02/2020,1902513649,360,Able Hands Together CIC ,144783,SP11,Community Services,CTPLD Placements,Adult Day Care Contracts,Third Party Payments,REVENUE
Wiltshire,http://opendatacommunities.org/id/unitary-authority/wiltshire,04/02/2020,1902500188,704.64,Abney & Baker (Bath) Ltd ,146229,BA1 ,Community Services,North Care Packages,Adult Domiciliary Care,Third Party Payments,REVENUE
Wiltshire,http://opendatacommunities.org/id/unitary-authority/wiltshire,04/02/2020,1902500189,985.81,Abney & Baker (Bath) Ltd ,146229,BA1 ,Community Services,West Care Packages,Adult Domiciliary Care,Third Party Payments,REVENUE
Wiltshire,http://opendatacommunities.org/id/unitary-authority/wiltshire,04/02/2020,1902500190,1840.52,Abney & Baker (Bath) Ltd ,146229,BA1 ,Community Services,West Care Packages,Adult Domiciliary Care Contribution,Income,REVENUE
Wiltshire,http://opendatacommunities.org/id/unitary-authority/wiltshire,04/02/2020,1902500191,1619.3,Abney & Baker (Bath) Ltd ,146229,BA1 ,Community Services,West Care Packages,Adult Domiciliary Care,Third Party Payments,REVENUE
Wiltshire,http://opendatacommunities.org/id/unitary-authority/wiltshire,04/02/2020,1902500192,914.86,Abney & Baker (Bath) Ltd ,146229,BA1 ,Community Services,West Care Packages,Adult Domiciliary Care,Third Party Payments,REVENUE
Wiltshire,http://opendatacommunities.org/id/unitary-authority/wiltshire,04/02/2020,1902500193,1978.67,Abney & Baker (Bath) Ltd ,146229,BA1 ,Community Services,West Care Packages,Adult Domiciliary Care Contribution,Income,REVENUE
Wiltshire,http://opendatacommunities.org/id/unitary-authority/wiltshire,04/02/2020,1902500195,1122.95,Abney & Baker (Bath) Ltd ,146229,BA1 ,Community Services,North Care Packages,Adult Domiciliary Care,Third Party Payments,REVENUE
Wiltshire,http://opendatacommunities.org/id/unitary-authority/wiltshire,04/02/2020,1902500196,1888.84,Abney & Baker (Bath) Ltd ,146229,BA1 ,Community Services,West Care Packages,Adult Domiciliary Care,Third Party Payments,REVENUE
Wiltshire,http://opendatacommunities.org/id/unitary-authority/wiltshire,04/02/2020,1902500197,440.18,Abney & Baker (Bath) Ltd ,146229,BA1 ,Community Services,West Care Packages,Adult Domiciliary Care Contribution,Income,REVENUE
Wiltshire,http://opendatacommunities.org/id/unitary-authority/wiltshire,04/02/2020,1902500198,2177.9,Abney & Baker (Bath) Ltd ,146229,BA1 ,Community Services,West Care Packages,Adult Domiciliary Care Contribution,Income,REVENUE
Wiltshire,http://opendatacommunities.org/id/unitary-authority/wiltshire,04/02/2020,1902500199,1520.11,Abney & Baker (Bath) Ltd ,146229,BA1 ,Community Services,West Care Packages,Adult Domiciliary Care,Third Party Payments,REVENUE
Wiltshire,http://opendatacommunities.org/id/unitary-authority/wiltshire,04/02/2020,1902500200,1932.65,Abney & Baker (Bath) Ltd ,146229,BA1 ,Community Services,West Care Packages,Adult Domiciliary Care Contribution,Income,REVENUE
Wiltshire,http://opendatacommunities.org/id/unitary-authority/wiltshire,04/02/2020,1902500201,1717.83,Abney & Baker (Bath) Ltd ,146229,BA1 ,Community Services,West Care Packages,Adult Domiciliary Care Contribution,Income,REVENUE
Wiltshire,http://opendatacommunities.org/id/unitary-authority/wiltshire,04/02/2020,1902500202,309.78,Abney & Baker (Bath) Ltd ,146229,BA1 ,Community Services,West Care Packages,Adult Domiciliary Care,Third Party Payments,REVENUE
Wiltshire,http://opendatacommunities.org/id/unitary-authority/wiltshire,04/02/2020,1902500203,568.98,Abney & Baker (Bath) Ltd ,146229,BA1 ,Community Services,North Care Packages,Adult Domiciliary Care,Third Party Payments,REVENUE
Wiltshire,http://opendatacommunities.org/id/unitary-authority/wiltshire,04/02/2020,1902500204,1668.82,Abney & Baker (Bath) Ltd ,146229,BA1 ,Community Services,West Care Packages,Adult Domiciliary Care,Third Party Payments,REVENUE
Wiltshire,http://opendatacommunities.org/id/unitary-authority/wiltshire,04/02/2020,1902500205,1166.31,Abney & Baker (Bath) Ltd ,146229,BA1 ,Community Services,West Care Packages,Adult Domiciliary Care,Third Party Payments,REVENUE
Wiltshire,http://opendatacommunities.org/id/unitary-authority/wiltshire,04/02/2020,1902500206,1909.09,Abney & Baker (Bath) Ltd ,146229,BA1 ,Community Services,North Care Packages,Adult Domiciliary Care,Third Party Payments,REVENUE
Wiltshire,http://opendatacommunities.org/id/unitary-authority/wiltshire,04/02/2020,1902500207,823.76,Abney & Baker (Bath) Ltd ,146229,BA1 ,Community Services,West Care Packages,Adult Domiciliary Care,Third Party Payments,REVENUE
Wiltshire,http://opendatacommunities.org/id/unitary-authority/wiltshire,04/02/2020,1902500208,1062.57,Abney & Baker (Bath) Ltd ,146229,BA1 ,Community Services,West Care Packages,Adult Domiciliary Care Contribution,Income,REVENUE
Wiltshire,http://opendatacommunities.org/id/unitary-authority/wiltshire,04/02/2020,1902500290,457.43,Abney & Baker (Bath) Ltd ,146229,BA1 ,Community Services,West Care Packages,Adult Domiciliary Care,Third Party Payments,REVENUE
Wiltshire,http://opendatacommunities.org/id/unitary-authority/wiltshire,04/02/2020,1902501523,419.22,Abney & Baker (Bath) Ltd ,146229,BA1 ,Community Services,CTPLD Placements,Adult Domiciliary Care,Third Party Payments,REVENUE
Wiltshire,http://opendatacommunities.org/id/unitary-authority/wiltshire,04/02/2020,1902501524,323.85,Abney & Baker (Bath) Ltd ,146229,BA1 ,Community Services,MH AOWA N&E Locality,Adult Domiciliary Care,Third Party Payments,REVENUE
Wiltshire,http://opendatacommunities.org/id/unitary-authority/wiltshire,12/02/2020,1902510453,1497.19,Abney & Baker (Bath) Ltd ,146229,BA1 ,Community Services,West Care Packages,Adult Domiciliary Care Contribution,Income,REVENUE
Wiltshire,http://opendatacommunities.org/id/unitary-authority/wiltshire,18/02/2020,1902513650,1193.42,Abney & Baker (Bath) Ltd ,146229,BA1 ,Community Services,MH OP West Locality,Adult Domiciliary Care,Third Party Payments,REVENUE
Wiltshire,http://opendatacommunities.org/id/unitary-authority/wiltshire,27/02/2020,1902518114,1453.74,Abney & Baker (Bath) Ltd ,146229,BA1 ,Community Services,North Care Packages,Adult Domiciliary Care,Third Party Payments,REVENUE
Wiltshire,http://opendatacommunities.org/id/unitary-authority/wiltshire,27/02/2020,1902518115,1056.96,Abney & Baker (Bath) Ltd ,146229,BA1 ,Community Services,North Care Packages,Adult Domiciliary Care,Third Party Payments,REVENUE
Wiltshire,http://opendatacommunities.org/id/unitary-authority/wiltshire,28/02/2020,1902518334,671.16,Abney & Baker (Bath) Ltd ,146229,BA1 ,Community Services,West Care Packages,Adult Domiciliary Care,Third Party Payments,REVENUE
Wiltshire,http://opendatacommunities.org/id/unitary-authority/wiltshire,28/02/2020,1902518335,698.7,Abney & Baker (Bath) Ltd ,146229,BA1 ,Community Services,CTPLD Placements,Adult Domiciliary Care,Third Party Payments,REVENUE
Wiltshire,http://opendatacommunities.org/id/unitary-authority/wiltshire,28/02/2020,1902518338,1900.62,Abney & Baker (Bath) Ltd ,146229,BA1 ,Community Services,West Care Packages,Adult Domiciliary Care,Third Party Payments,REVENUE
Wiltshire,http://opendatacommunities.org/id/unitary-authority/wiltshire,28/02/2020,1902518339,692.26,Abney & Baker (Bath) Ltd ,146229,BA1 ,Community Services,West Care Packages,Adult Domiciliary Care,Third Party Payments,REVENUE
Wiltshire,http://opendatacommunities.org/id/unitary-authority/wiltshire,28/02/2020,1902518340,939.12,Abney & Baker (Bath) Ltd ,146229,BA1 ,Community Services,West Care Packages,Adult Domiciliary Care,Third Party Payments,REVENUE
Wiltshire,http://opendatacommunities.org/id/unitary-authority/wiltshire,28/02/2020,1902518341,1975.56,Abney & Baker (Bath) Ltd ,146229,BA1 ,Community Services,West Care Packages,Adult Domiciliary Care Contribution,Income,REVENUE
Wiltshire,http://opendatacommunities.org/id/unitary-authority/wiltshire,28/02/2020,1902518343,1186.68,Abney & Baker (Bath) Ltd ,146229,BA1 ,Community Services,North Care Packages,Adult Domiciliary Care,Third Party Payments,REVENUE
Wiltshire,http://opendatacommunities.org/id/unitary-authority/wiltshire,28/02/2020,1902518344,2032.52,Abney & Baker (Bath) Ltd ,146229,BA1 ,Community Services,West Care Packages,Adult Domiciliary Care,Third Party Payments,REVENUE
Wiltshire,http://opendatacommunities.org/id/unitary-authority/wiltshire,28/02/2020,1902518345,428,Abney & Baker (Bath) Ltd ,146229,BA1 ,Community Services,West Care Packages,Adult Domiciliary Care Contribution,Income,REVENUE
Wiltshire,http://opendatacommunities.org/id/unitary-authority/wiltshire,28/02/2020,1902518346,2137.35,Abney & Baker (Bath) Ltd ,146229,BA1 ,Community Services,West Care Packages,Adult Domiciliary Care Contribution,Income,REVENUE
Wiltshire,http://opendatacommunities.org/id/unitary-authority/wiltshire,28/02/2020,1902518347,1437.45,Abney & Baker (Bath) Ltd ,146229,BA1 ,Community Services,North Care Packages,Adult Domiciliary Care,Third Party Payments,REVENUE
Wiltshire,http://opendatacommunities.org/id/unitary-authority/wiltshire,28/02/2020,1902518348,1435.48,Abney & Baker (Bath) Ltd ,146229,BA1 ,Community Services,West Care Packages,Adult Domiciliary Care Contribution,Income,REVENUE
Wiltshire,http://opendatacommunities.org/id/unitary-authority/wiltshire,28/02/2020,1902518349,1324,Abney & Baker (Bath) Ltd ,146229,BA1 ,Community Services,MH OP West Locality,Adult Domiciliary Care,Third Party Payments,REVENUE
Wiltshire,http://opendatacommunities.org/id/unitary-authority/wiltshire,28/02/2020,1902518350,623.84,Abney & Baker (Bath) Ltd ,146229,BA1 ,Community Services,North Care Packages,Adult Domiciliary Care,Third Party Payments,REVENUE
Wiltshire,http://opendatacommunities.org/id/unitary-authority/wiltshire,28/02/2020,1902518351,1501.84,Abney & Baker (Bath) Ltd ,146229,BA1 ,Community Services,West Care Packages,Adult Domiciliary Care,Third Party Payments,REVENUE
Wiltshire,http://opendatacommunities.org/id/unitary-authority/wiltshire,28/02/2020,1902518352,477.68,Abney & Baker (Bath) Ltd ,146229,BA1 ,Community Services,MH AOWA N&E Locality,Adult Domiciliary Care,Third Party Payments,REVENUE
Wiltshire,http://opendatacommunities.org/id/unitary-authority/wiltshire,28/02/2020,1902518353,1947.76,Abney & Baker (Bath) Ltd ,146229,BA1 ,Community Services,West Care Packages,Adult Domiciliary Care Contribution,Income,REVENUE
Wiltshire,http://opendatacommunities.org/id/unitary-authority/wiltshire,28/02/2020,1902518354,469.56,Abney & Baker (Bath) Ltd ,146229,BA1 ,Community Services,West Care Packages,Adult Domiciliary Care,Third Party Payments,REVENUE
Wiltshire,http://opendatacommunities.org/id/unitary-authority/wiltshire,28/02/2020,1902518355,1736,Abney & Baker (Bath) Ltd ,146229,BA1 ,Community Services,West Care Packages,Adult Domiciliary Care Contribution,Income,REVENUE
Wiltshire,http://opendatacommunities.org/id/unitary-authority/wiltshire,28/02/2020,1902518357,2125.8,Abney & Baker (Bath) Ltd ,146229,BA1 ,Community Services,West Care Packages,Adult Domiciliary Care,Third Party Payments,REVENUE
Wiltshire,http://opendatacommunities.org/id/unitary-authority/wiltshire,28/02/2020,1902518358,1083.28,Abney & Baker (Bath) Ltd ,146229,BA1 ,Community Services,West Care Packages,Adult Domiciliary Care,Third Party Payments,REVENUE
Wiltshire,http://opendatacommunities.org/id/unitary-authority/wiltshire,28/02/2020,1902518359,2032.52,Abney & Baker (Bath) Ltd ,146229,BA1 ,Community Services,North Care Packages,Adult Domiciliary Care,Third Party Payments,REVENUE
Wiltshire,http://opendatacommunities.org/id/unitary-authority/wiltshire,04/02/2020,1902501449,2367.36,Acacia London Residential Healthcar ,147333,KT6 ,Community Services,North Care Packages,Adult Care Nursing Placements - Spot,Third Party Payments,REVENUE
Wiltshire,http://opendatacommunities.org/id/unitary-authority/wiltshire,12/02/2020,1902510401,2889.96,Access Care Ltd ,110037,SP10,Community Services,North Care Packages,Adult Domiciliary Care,Third Party Payments,REVENUE
Wiltshire,http://opendatacommunities.org/id/unitary-authority/wiltshire,12/02/2020,1902510402,4755.24,Access Care Ltd ,110037,SP10,Community Services,Adult Care Gross Loa,Adult Domiciliary Care,Third Party Payments,REVENUE
Wiltshire,http://opendatacommunities.org/id/unitary-authority/wiltshire,05/02/2020,1902502300,6172.68,Accomplish Group Limited ,112775,SA1 ,Community Services,CTPLD Placements,Adult Residential Placements - Spot Purchase,Third Party Payments,REVENUE
Wiltshire,http://opendatacommunities.org/id/unitary-authority/wiltshire,05/02/2020,1902502301,6740,Accomplish Group Limited ,112775,SA1 ,Community Services,MH AOWA N&E Locality,Adult Residential Placements - Spot Purchase,Third Party Payments,REVENUE
Wiltshire,http://opendatacommunities.org/id/unitary-authority/wiltshire,05/02/2020,1902502302,7775.04,Accomplish Group Limited ,112775,SA1 ,Community Services,CTPLD Placements,Adult Residential Placements - Spot Purchase,Third Party Payments,REVENUE
Wiltshire,http://opendatacommunities.org/id/unitary-authority/wiltshire,05/02/2020,1902502303,8266,Accomplish Group Limited ,112775,SA1 ,Community Services,CTPLD Placements,Adult Residential Placements - Spot Purchase,Third Party Payments,REVENUE
Wiltshire,http://opendatacommunities.org/id/unitary-authority/wiltshire,05/02/2020,1902504175,2100,Ace Cabs ,139613,SP4 ,Neighbourhood & Planning,SEN Secondary Tspt,Transport Contracts,Third Party Payments,REVENUE
Wiltshire,http://opendatacommunities.org/id/unitary-authority/wiltshire,05/02/2020,1902504180,2100,Ace Cabs ,139613,SP4 ,Neighbourhood & Planning,SEN Primary Transprt,Transport Contracts,Third Party Payments,REVENUE
Wiltshire,http://opendatacommunities.org/id/unitary-authority/wiltshire,04/02/2020,1902501174,11333.32,Achieve Together ,110312,KT22,Community Services,CTPLD Placements,Adult Residential Placements - Spot Purchase,Third Party Payments,REVENUE
Wiltshire,http://opendatacommunities.org/id/unitary-authority/wiltshire,04/02/2020,1902501175,11785.24,Achieve Together ,110312,KT22,Community Services,CTPLD Placements,Adult Residential Placements - Spot Purchase,Third Party Payments,REVENUE
Wiltshire,http://opendatacommunities.org/id/unitary-authority/wiltshire,04/02/2020,1902501176,11832.16,Achieve Together ,110312,KT22,Community Services,CTPLD Placements,Adult Residential Placements - Spot Purchase,Third Party Payments,REVENUE
Wiltshire,http://opendatacommunities.org/id/unitary-authority/wiltshire,04/02/2020,1902501177,12206.32,Achieve Together ,110312,KT22,Community Services,CTPLD Placements,Adult Residential Placements - Spot Purchase,Third Party Payments,REVENUE
Wiltshire,http://opendatacommunities.org/id/unitary-authority/wiltshire,04/02/2020,1902501178,12642.68,Achieve Together ,110312,KT22,Community Services,CTPLD Placements,Adult Residential Placements - Spot Purchase,Third Party Payments,REVENUE
Wiltshire,http://opendatacommunities.org/id/unitary-authority/wiltshire,04/02/2020,1902501179,12884.92,Achieve Together ,110312,KT22,Community Services,CTPLD Placements,Adult Residential Placements - Spot Purchase,Third Party Payments,REVENUE
Wiltshire,http://opendatacommunities.org/id/unitary-authority/wiltshire,04/02/2020,1902501180,12985.56,Achieve Together ,110312,KT22,Community Services,CTPLD Placements,Adult Residential Placements - Spot Purchase,Third Party Payments,REVENUE
Wiltshire,http://opendatacommunities.org/id/unitary-authority/wiltshire,04/02/2020,1902501181,13137,Achieve Together ,110312,KT22,Community Services,CTPLD Placements,Adult Residential Placements - Spot Purchase,Third Party Payments,REVENUE
Wiltshire,http://opendatacommunities.org/id/unitary-authority/wiltshire,04/02/2020,1902501182,13209,Achieve Together ,110312,KT22,Community Services,CTPLD Placements,Adult Residential Placements - Spot Purchase,Third Party Payments,REVENUE
Wiltshire,http://opendatacommunities.org/id/unitary-authority/wiltshire,04/02/2020,1902501183,13418.6,Achieve Together ,110312,KT22,Community Services,CTPLD Placements,Adult Residential Placements - Spot Purchase,Third Party Payments,REVENUE
Wiltshire,http://opendatacommunities.org/id/unitary-authority/wiltshire,04/02/2020,1902501184,13469.24,Achieve Together ,110312,KT22,Community Services,CTPLD Placements,Adult Residential Placements - Spot Purchase,Third Party Payments,REVENUE
Wiltshire,http://opendatacommunities.org/id/unitary-authority/wiltshire,04/02/2020,1902501185,13507.88,Achieve Together ,110312,KT22,Community Services,CTPLD Placements,Adult Residential Placements - Spot Purchase,Third Party Payments,REVENUE
Wiltshire,http://opendatacommunities.org/id/unitary-authority/wiltshire,04/02/2020,1902501186,13844.96,Achieve Together ,110312,KT22,Community Services,CTPLD Placements,Adult Residential Placements - Spot Purchase,Third Party Payments,REVENUE
Wiltshire,http://opendatacommunities.org/id/unitary-authority/wiltshire,04/02/2020,1902501187,14442.6,Achieve Together ,110312,KT22,Community Services,CTPLD Placements,Adult Residential Placements - Spot Purchase,Third Party Payments,REVENUE
Wiltshire,http://opendatacommunities.org/id/unitary-authority/wiltshire,04/02/2020,1902501188,15316.24,Achieve Together ,110312,KT22,Community Services,CTPLD Placements,Adult Residential Placements - Spot Purchase,Third Party Payments,REVENUE
Wiltshire,http://opendatacommunities.org/id/unitary-authority/wiltshire,04/02/2020,1902501189,15672.44,Achieve Together ,110312,KT22,Community Services,CTPLD Placements,Adult Residential Placements - Spot Purchase,Third Party Payments,REVENUE
Wiltshire,http://opendatacommunities.org/id/unitary-authority/wiltshire,04/02/2020,1902501190,16041.28,Achieve Together ,110312,KT22,Community Services,CTPLD Placements,Adult Residential Placements - Spot Purchase,Third Party Payments,REVENUE
Wiltshire,http://opendatacommunities.org/id/unitary-authority/wiltshire,04/02/2020,1902501191,8564.12,Achieve Together ,110312,KT22,Community Services,CTPLD Placements,Adult Residential Placements - Spot Purchase,Third Party Payments,REVENUE
Wiltshire,http://opendatacommunities.org/id/unitary-authority/wiltshire,04/02/2020,1902501192,8673.68,Achieve Together ,110312,KT22,Community Services,CTPLD Placements,Adult Residential Placements - Spot Purchase,Third Party Payments,REVENUE
Wiltshire,http://opendatacommunities.org/id/unitary-authority/wiltshire,05/02/2020,1902503755,3669.76,Achieve Together ,110312,KT22,Community Services,West Care Packages,Supported Living,Third Party Payments,REVENUE
Wiltshire,http://opendatacommunities.org/id/unitary-authority/wiltshire,05/02/2020,1902503756,4118.32,Achieve Together ,110312,KT22,Community Services,MH AOWA West Localit,Supported Living,Third Party Payments,REVENUE
Wiltshire,http://opendatacommunities.org/id/unitary-authority/wiltshire,17/02/2020,1902512518,3733.8,Acorn Education Trust - New Close ,148417,BA12,Children & Education,Free Enttlmnt 3 & 4y,Childcare Free Entitlement Early Years,Supplies and Services,REVENUE
Wiltshire,http://opendatacommunities.org/id/unitary-authority/wiltshire,04/02/2020,1902501362,3788,Acorn Lodge ,131233,BH21,Community Services,South Care Packages,Adult Residential Placements - Spot Purchase,Third Party Payments,REVENUE
Wiltshire,http://opendatacommunities.org/id/unitary-authority/wiltshire,17/02/2020,5107403794,24656.89,Action For Children ,147106,WD18,Children & Education,IndepSpecialSchFees,Educational Fees,Supplies and Services,REVENUE
Wiltshire,http://opendatacommunities.org/id/unitary-authority/wiltshire,17/02/2020,5107403794,42820.44,Action For Children ,147106,WD18,Children & Education,Ext Placement & IFA,Educational Fees,Supplies and Services,REVENUE
Wiltshire,http://opendatacommunities.org/id/unitary-authority/wiltshire,18/02/2020,5107403796,25542.5,Action For Children ,147106,WD18,Children & Education,IndepSpecialSchFees,Educational Fees,Supplies and Services,REVENUE
Wiltshire,http://opendatacommunities.org/id/unitary-authority/wiltshire,18/02/2020,5107403796,25542.5,Action For Children ,147106,WD18,Children & Education,Ext Placement & IFA,Educational Fees,Supplies and Services,REVENUE
Wiltshire,http://opendatacommunities.org/id/unitary-authority/wiltshire,14/02/2020,1902511424,3000,Action on Addiction ,110046,SP3 ,Community Services,T4 Treatments,Rehabilitation,Third Party Payments,REVENUE
Wiltshire,http://opendatacommunities.org/id/unitary-authority/wiltshire,14/02/2020,1902511426,6975,Action on Addiction ,110046,SP3 ,Community Services,T4 Treatments,Rehabilitation,Third Party Payments,REVENUE
Wiltshire,http://opendatacommunities.org/id/unitary-authority/wiltshire,14/02/2020,1902511427,7750,Action on Addiction ,110046,SP3 ,Community Services,T4 Treatments,Rehabilitation,Third Party Payments,REVENUE
Wiltshire,http://opendatacommunities.org/id/unitary-authority/wiltshire,04/02/2020,1902501276,3880.56,Action on Hearing Loss ,112215,N1 1,Community Services,North Care Packages,Adult Residential Placements - Spot Purchase,Third Party Payments,REVENUE
Wiltshire,http://opendatacommunities.org/id/unitary-authority/wiltshire,04/02/2020,1902501277,6403.36,Action on Hearing Loss ,112215,N1 1,Community Services,South Care Packages,Adult Residential Placements - Spot Purchase,Third Party Payments,REVENUE
Wiltshire,http://opendatacommunities.org/id/unitary-authority/wiltshire,18/02/2020,1902513620,480,Action on Hearing Loss ,112215,N1 1,Community Services,North Care Packages,Supported Living,Third Party Payments,REVENUE
Wiltshire,http://opendatacommunities.org/id/unitary-authority/wiltshire,18/02/2020,5107403833,810,Action on Hearing Loss ,112215,N1 1,Community Services,Disabilities Comm Ct,Grants Expenditure,Supplies and Services,REVENUE
Wiltshire,http://opendatacommunities.org/id/unitary-authority/wiltshire,18/02/2020,5107403916,945,Action on Hearing Loss ,112215,N1 1,Community Services,Disabilities Comm Ct,Grants Expenditure,Supplies and Services,REVENUE
Wiltshire,http://opendatacommunities.org/id/unitary-authority/wiltshire,12/02/2020,5107401537,487,Adams Morey Ltd ,110053,SP2 ,Neighbourhood & Planning,Fleet,Vehicle Repairs & Maintenance,Transport Related,REVENUE
Wiltshire,http://opendatacommunities.org/id/unitary-authority/wiltshire,11/02/2020,5107402011,289.36,Adams Morey Ltd ,110053,SP2 ,Neighbourhood & Planning,Fleet,Vehicle Repairs & Maintenance,Transport Related,REVENUE
Wiltshire,http://opendatacommunities.org/id/unitary-authority/wiltshire,28/02/2020,5107402915,452.44,Adams Morey Ltd ,110053,SP2 ,Neighbourhood & Planning,Fleet,Vehicle Repairs & Maintenance,Transport Related,REVENUE
Wiltshire,http://opendatacommunities.org/id/unitary-authority/wiltshire,21/02/2020,5107403330,429.97,Adams Morey Ltd ,110053,SP2 ,Neighbourhood & Planning,Fleet,Vehicle Repairs & Maintenance,Transport Related,REVENUE
Wiltshire,http://opendatacommunities.org/id/unitary-authority/wiltshire,26/02/2020,5107404650,1250,Adept ,135637,M1 2,Resources,Corporate Directors,Professional Subscriptions/Memberships,Employee Related,REVENUE
Wiltshire,http://opendatacommunities.org/id/unitary-authority/wiltshire,11/02/2020,1902505897,445874,Adoption West ,148312,BA14,Children & Education,Apoption West - RAA,Other Contracts,Third Party Payments,REVENUE
Wiltshire,http://opendatacommunities.org/id/unitary-authority/wiltshire,11/02/2020,1902505906,19510,Adoption West ,148312,BA14,Children & Education,Apoption West - RAA,Other Contracts,Third Party Payments,REVENUE
Wiltshire,http://opendatacommunities.org/id/unitary-authority/wiltshire,18/02/2020,1902513744,3176.64,Adrains Engineering Psv ,100848,SN15,Neighbourhood & Planning,Mainstream Secondary,Transport Contracts,Third Party Payments,REVENUE
Wiltshire,http://opendatacommunities.org/id/unitary-authority/wiltshire,18/02/2020,1902513751,3459.58,Adrains Engineering Psv ,100848,SN15,Neighbourhood & Planning,Mainstream Primary,Transport Contracts,Third Party Payments,REVENUE
Wiltshire,http://opendatacommunities.org/id/unitary-authority/wiltshire,18/02/2020,1902513752,3565.79,Adrains Engineering Psv ,100848,SN15,Neighbourhood & Planning,Mainstream Secondary,Transport Contracts,Third Party Payments,REVENUE
Wiltshire,http://opendatacommunities.org/id/unitary-authority/wiltshire,18/02/2020,1902513753,3273.67,Adrains Engineering Psv ,100848,SN15,Neighbourhood & Planning,Mainstream Secondary,Transport Contracts,Third Party Payments,REVENUE
Wiltshire,http://opendatacommunities.org/id/unitary-authority/wiltshire,11/02/2020,1902506046,2632.5,Adrian Shephard Taxi Service ,146753,BA12,Neighbourhood & Planning,SEN Primary Transprt,Transport Contracts,Third Party Payments,REVENUE
Wiltshire,http://opendatacommunities.org/id/unitary-authority/wiltshire,20/02/2020,1902514891,520,Adrian's Taxi ,138861,SN10,Neighbourhood & Planning,Mainstream Primary,Transport Contracts,Third Party Payments,REVENUE
Wiltshire,http://opendatacommunities.org/id/unitary-authority/wiltshire,20/02/2020,1902514891,1560,Adrian's Taxi ,138861,SN10,Neighbourhood & Planning,SEN Secondary Tspt,Transport Contracts,Third Party Payments,REVENUE
Wiltshire,http://opendatacommunities.org/id/unitary-authority/wiltshire,04/02/2020,1902500108,4668.69,Advance Housing  and  Support Ltd ,110060,OX28,Neighbourhood & Planning,Housing Options,Transport - Mileage & Fuel,Transport Related,REVENUE
Wiltshire,http://opendatacommunities.org/id/unitary-authority/wiltshire,21/02/2020,1902514947,4668.69,Advance Housing  and  Support Ltd ,110060,OX28,Neighbourhood & Planning,Rough Sleepers,Grants Expenditure,Supplies and Services,REVENUE
Wiltshire,http://opendatacommunities.org/id/unitary-authority/wiltshire,05/02/2020,1902504177,1440,Ady Cars ,136208,SP11,Neighbourhood & Planning,SEN Secondary Tspt,Transport Contracts,Third Party Payments,REVENUE
Wiltshire,http://opendatacommunities.org/id/unitary-authority/wiltshire,14/02/2020,1902511485,3499.8,Ady Cars ,136208,SP11,Neighbourhood & Planning,SEN Secondary Tspt,Transport Contracts,Third Party Payments,REVENUE
Wiltshire,http://opendatacommunities.org/id/unitary-authority/wiltshire,10/02/2020,5107401855,6856,AECOM Ltd ,127871,SW19,Wiltshire Council,Wiltshire Council,Consultants Fees,Supplies and Services,CAPITAL
Wiltshire,http://opendatacommunities.org/id/unitary-authority/wiltshire,10/02/2020,5107403027,3500,AECOM Ltd ,127871,SW19,Wiltshire Council,Wiltshire Council,Professional Fees,Supplies and Services,CAPITAL
Wiltshire,http://opendatacommunities.org/id/unitary-authority/wiltshire,25/02/2020,5107404632,6856,AECOM Ltd ,127871,SW19,Wiltshire Council,Wiltshire Council,Consultants Fees,Supplies and Services,CAPITAL
Wiltshire,http://opendatacommunities.org/id/unitary-authority/wiltshire,26/02/2020,5107404713,3500,AECOM Ltd ,127871,SW19,Wiltshire Council,Wiltshire Council,Professional Fees,Supplies and Services,CAPITAL
Wiltshire,http://opendatacommunities.org/id/unitary-authority/wiltshire,14/02/2020,5107402204,7140,AET Flood Defence Limited ,144833,S18 ,Wiltshire Council,Wiltshire Council,Materials,Supplies and Services,CAPITAL
Wiltshire,http://opendatacommunities.org/id/unitary-authority/wiltshire,18/02/2020,1902513702,38500,Age UK Wiltshire ,100129,SN10,Community Services,ASC Community C&G,Grants Expenditure,Supplies and Services,REVENUE
Wiltshire,http://opendatacommunities.org/id/unitary-authority/wiltshire,12/02/2020,1902506253,1577.98,AginCare Live In Care Services Ltd ,110071,DT5 ,Community Services,North Care Packages,Adult Domiciliary Care Contribution,Income,REVENUE
Wiltshire,http://opendatacommunities.org/id/unitary-authority/wiltshire,12/02/2020,1902506254,2024.82,AginCare Live In Care Services Ltd ,110071,DT5 ,Community Services,South Care Packages,Adult Domiciliary Care Contribution,Income,REVENUE
Wiltshire,http://opendatacommunities.org/id/unitary-authority/wiltshire,12/02/2020,1902506255,1538.8,AginCare Live In Care Services Ltd ,110071,DT5 ,Community Services,North Care Packages,Adult Domiciliary Care Contribution,Income,REVENUE
Wiltshire,http://opendatacommunities.org/id/unitary-authority/wiltshire,12/02/2020,1902506256,1577.98,AginCare Live In Care Services Ltd ,110071,DT5 ,Community Services,North Care Packages,Adult Domiciliary Care Contribution,Income,REVENUE
Wiltshire,http://opendatacommunities.org/id/unitary-authority/wiltshire,12/02/2020,1902506257,1538.8,AginCare Live In Care Services Ltd ,110071,DT5 ,Community Services,North Care Packages,Adult Domiciliary Care Contribution,Income,REVENUE
Wiltshire,http://opendatacommunities.org/id/unitary-authority/wiltshire,12/02/2020,1902506258,1577.98,AginCare Live In Care Services Ltd ,110071,DT5 ,Community Services,North Care Packages,Adult Domiciliary Care Contribution,Income,REVENUE
Wiltshire,http://opendatacommunities.org/id/unitary-authority/wiltshire,12/02/2020,1902506259,1538.8,AginCare Live In Care Services Ltd ,110071,DT5 ,Community Services,North Care Packages,Adult Domiciliary Care Contribution,Income,REVENUE
Wiltshire,http://opendatacommunities.org/id/unitary-authority/wiltshire,24/02/2020,1902515445,49950,AginCare Live In Care Services Ltd ,110071,DT5 ,Community Services,BCF-Intermediate Cr,Adult Domiciliary Care,Third Party Payments,REVENUE
Wiltshire,http://opendatacommunities.org/id/unitary-authority/wiltshire,24/02/2020,1902515450,58050,AginCare Live In Care Services Ltd ,110071,DT5 ,Community Services,ASC Transformation,Adult Domiciliary Care,Third Party Payments,REVENUE
Wiltshire,http://opendatacommunities.org/id/unitary-authority/wiltshire,04/02/2020,1902500217,520.99,Agincare Ltd ,110069,DT5 ,Community Services,CTPLD Placements,Adult Domiciliary Care,Third Party Payments,REVENUE
Wiltshire,http://opendatacommunities.org/id/unitary-authority/wiltshire,04/02/2020,1902500218,1182.63,Agincare Ltd ,110069,DT5 ,Community Services,CTPLD Placements,Adult Domiciliary Care,Third Party Payments,REVENUE
Wiltshire,http://opendatacommunities.org/id/unitary-authority/wiltshire,10/02/2020,1902505618,578.68,Agincare Ltd ,110069,DT5 ,Community Services,CTPLD Placements,Adult Domiciliary Care,Third Party Payments,REVENUE
Wiltshire,http://opendatacommunities.org/id/unitary-authority/wiltshire,10/02/2020,1902505619,1048.02,Agincare Ltd ,110069,DT5 ,Community Services,North Care Packages,Adult Domiciliary Care,Third Party Payments,REVENUE
Wiltshire,http://opendatacommunities.org/id/unitary-authority/wiltshire,10/02/2020,1902505622,712.12,Agincare Ltd ,110069,DT5 ,Community Services,North Care Packages,Adult Domiciliary Care,Third Party Payments,REVENUE
Wiltshire,http://opendatacommunities.org/id/unitary-authority/wiltshire,10/02/2020,1902505623,1399.66,Agincare Ltd ,110069,DT5 ,Community Services,North Care Packages,Adult Domiciliary Care Contribution,Income,REVENUE
Wiltshire,http://opendatacommunities.org/id/unitary-authority/wiltshire,10/02/2020,1902505624,1106.49,Agincare Ltd ,110069,DT5 ,Community Services,MH AOWA N&E Locality,Adult Domiciliary Care,Third Party Payments,REVENUE
Wiltshire,http://opendatacommunities.org/id/unitary-authority/wiltshire,10/02/2020,1902505625,766.09,Agincare Ltd ,110069,DT5 ,Community Services,North Care Packages,Adult Domiciliary Care Contribution,Income,REVENUE
Wiltshire,http://opendatacommunities.org/id/unitary-authority/wiltshire,10/02/2020,1902505626,559.29,Agincare Ltd ,110069,DT5 ,Community Services,North Care Packages,Adult Domiciliary Care,Third Party Payments,REVENUE
Wiltshire,http://opendatacommunities.org/id/unitary-authority/wiltshire,10/02/2020,1902505850,416.79,Agincare Ltd ,110069,DT5 ,Community Services,North Care Packages,Adult Domiciliary Care,Third Party Payments,REVENUE
Wiltshire,http://opendatacommunities.org/id/unitary-authority/wiltshire,10/02/2020,1902505851,323.96,Agincare Ltd ,110069,DT5 ,Community Services,North Care Packages,Adult Domiciliary Care Contribution,Income,REVENUE
Wiltshire,http://opendatacommunities.org/id/unitary-authority/wiltshire,10/02/2020,1902505852,343.19,Agincare Ltd ,110069,DT5 ,Community Services,MH AOWA N&E Locality,Adult Domiciliary Care,Third Party Payments,REVENUE
Wiltshire,http://opendatacommunities.org/id/unitary-authority/wiltshire,10/02/2020,1902505853,889.39,Agincare Ltd ,110069,DT5 ,Community Services,CTPLD Placements,Adult Domiciliary Care,Third Party Payments,REVENUE
Wiltshire,http://opendatacommunities.org/id/unitary-authority/wiltshire,10/02/2020,1902505856,1342.84,Agincare Ltd ,110069,DT5 ,Community Services,North Care Packages,Adult Domiciliary Care Contribution,Income,REVENUE
Wiltshire,http://opendatacommunities.org/id/unitary-authority/wiltshire,10/02/2020,1902505858,412.48,Agincare Ltd ,110069,DT5 ,Community Services,North Care Packages,Adult Domiciliary Care Contribution,Income,REVENUE
Wiltshire,http://opendatacommunities.org/id/unitary-authority/wiltshire,10/02/2020,1902505859,1224.8,Agincare Ltd ,110069,DT5 ,Community Services,MH AOWA N&E Locality,Adult Domiciliary Care,Third Party Payments,REVENUE
Wiltshire,http://opendatacommunities.org/id/unitary-authority/wiltshire,10/02/2020,1902505860,376.12,Agincare Ltd ,110069,DT5 ,Community Services,North Care Packages,Adult Domiciliary Care Contribution,Income,REVENUE
Wiltshire,http://opendatacommunities.org/id/unitary-authority/wiltshire,10/02/2020,1902505861,960.31,Agincare Ltd ,110069,DT5 ,Community Services,West Care Packages,Adult Domiciliary Care,Third Party Payments,REVENUE
Wiltshire,http://opendatacommunities.org/id/unitary-authority/wiltshire,12/02/2020,1902506249,436.25,Agincare Ltd ,110069,DT5 ,Community Services,CTPLD Placements,Adult Domiciliary Care,Third Party Payments,REVENUE
Wiltshire,http://opendatacommunities.org/id/unitary-authority/wiltshire,12/02/2020,1902506250,936.8,Agincare Ltd ,110069,DT5 ,Community Services,MH OP West Locality,Adult Domiciliary Care,Third Party Payments,REVENUE
Wiltshire,http://opendatacommunities.org/id/unitary-authority/wiltshire,12/02/2020,1902506252,874.96,Agincare Ltd ,110069,DT5 ,Community Services,North Care Packages,Adult Domiciliary Care,Third Party Payments,REVENUE
Wiltshire,http://opendatacommunities.org/id/unitary-authority/wiltshire,12/02/2020,1902510403,639.14,Agincare Ltd ,110069,DT5 ,Community Services,CTPLD Placements,Adult Domiciliary Care Contribution,Income,REVENUE
Wiltshire,http://opendatacommunities.org/id/unitary-authority/wiltshire,12/02/2020,1902510405,571.96,Agincare Ltd ,110069,DT5 ,Community Services,North Care Packages,Adult Domiciliary Care,Third Party Payments,REVENUE
Wiltshire,http://opendatacommunities.org/id/unitary-authority/wiltshire,12/02/2020,1902510406,1383.74,Agincare Ltd ,110069,DT5 ,Community Services,North Care Packages,Adult Domiciliary Care,Third Party Payments,REVENUE
Wiltshire,http://opendatacommunities.org/id/unitary-authority/wiltshire,12/02/2020,1902510407,1125.72,Agincare Ltd ,110069,DT5 ,Community Services,MH AOWA N&E Locality,Adult Domiciliary Care,Third Party Payments,REVENUE
Wiltshire,http://opendatacommunities.org/id/unitary-authority/wiltshire,12/02/2020,1902510408,565.97,Agincare Ltd ,110069,DT5 ,Community Services,CTPLD Placements,Adult Domiciliary Care,Third Party Payments,REVENUE
Wiltshire,http://opendatacommunities.org/id/unitary-authority/wiltshire,12/02/2020,1902510410,739.27,Agincare Ltd ,110069,DT5 ,Community Services,North Care Packages,Adult Domiciliary Care,Third Party Payments,REVENUE
Wiltshire,http://opendatacommunities.org/id/unitary-authority/wiltshire,13/02/2020,1902510870,285.34,Agincare Ltd ,110069,DT5 ,Community Services,MH AOWA N&E Locality,Adult Domiciliary Care,Third Party Payments,REVENUE
Wiltshire,http://opendatacommunities.org/id/unitary-authority/wiltshire,13/02/2020,1902510871,913.42,Agincare Ltd ,110069,DT5 ,Community Services,CTPLD Placements,Adult Domiciliary Care,Third Party Payments,REVENUE
Wiltshire,http://opendatacommunities.org/id/unitary-authority/wiltshire,13/02/2020,1902510872,634.96,Agincare Ltd ,110069,DT5 ,Community Services,North Care Packages,Adult Domiciliary Care Contribution,Income,REVENUE
Wiltshire,http://opendatacommunities.org/id/unitary-authority/wiltshire,13/02/2020,1902510873,937.17,Agincare Ltd ,110069,DT5 ,Community Services,West Care Packages,Adult Domiciliary Care,Third Party Payments,REVENUE
Wiltshire,http://opendatacommunities.org/id/unitary-authority/wiltshire,14/02/2020,1902511547,1311,Agincare Ltd ,110069,DT5 ,Community Services,North Care Packages,Adult Domiciliary Care,Third Party Payments,REVENUE
Wiltshire,http://opendatacommunities.org/id/unitary-authority/wiltshire,14/02/2020,1902511548,1764.74,Agincare Ltd ,110069,DT5 ,Community Services,West Care Packages,Adult Domiciliary Care,Third Party Payments,REVENUE
Wiltshire,http://opendatacommunities.org/id/unitary-authority/wiltshire,14/02/2020,1902511549,2531.15,Agincare Ltd ,110069,DT5 ,Community Services,North Care Packages,Adult Domiciliary Care Contribution,Income,REVENUE
Wiltshire,http://opendatacommunities.org/id/unitary-authority/wiltshire,14/02/2020,1902511550,412.48,Agincare Ltd ,110069,DT5 ,Community Services,North Care Packages,Adult Domiciliary Care Contribution,Income,REVENUE
Wiltshire,http://opendatacommunities.org/id/unitary-authority/wiltshire,14/02/2020,1902511551,1240.12,Agincare Ltd ,110069,DT5 ,Community Services,MH AOWA N&E Locality,Adult Domiciliary Care,Third Party Payments,REVENUE
Wiltshire,http://opendatacommunities.org/id/unitary-authority/wiltshire,18/02/2020,1902513615,1666.95,Agincare Ltd ,110069,DT5 ,Community Services,MH AOWA N&E Locality,Adult Domiciliary Care,Third Party Payments,REVENUE
Wiltshire,http://opendatacommunities.org/id/unitary-authority/wiltshire,04/02/2020,1902500454,740,Akcess Ltd ,101402,SN2 ,Community Services,West Care Packages,Transport Contracts,Third Party Payments,REVENUE
Wiltshire,http://opendatacommunities.org/id/unitary-authority/wiltshire,04/02/2020,1902500454,1480,Akcess Ltd ,101402,SN2 ,Community Services,CTPLD Placements,Transport Contracts,Third Party Payments,REVENUE
Wiltshire,http://opendatacommunities.org/id/unitary-authority/wiltshire,06/02/2020,1902505083,674.63,Akcess Ltd ,101402,SN2 ,Neighbourhood & Planning,Mainstream 16+ Sec,Transport Contracts,Third Party Payments,REVENUE
Wiltshire,http://opendatacommunities.org/id/unitary-authority/wiltshire,06/02/2020,1902505083,2867.17,Akcess Ltd ,101402,SN2 ,Neighbourhood & Planning,SEN Secondary Tspt,Transport Contracts,Third Party Payments,REVENUE
Wiltshire,http://opendatacommunities.org/id/unitary-authority/wiltshire,06/02/2020,1902505084,1790,Akcess Ltd ,101402,SN2 ,Neighbourhood & Planning,Mainstream Primary,Transport Contracts,Third Party Payments,REVENUE
Wiltshire,http://opendatacommunities.org/id/unitary-authority/wiltshire,06/02/2020,1902505085,880,Akcess Ltd ,101402,SN2 ,Neighbourhood & Planning,Mainstream Secondary,Transport Contracts,Third Party Payments,REVENUE
Wiltshire,http://opendatacommunities.org/id/unitary-authority/wiltshire,06/02/2020,1902505087,2945,Akcess Ltd ,101402,SN2 ,Neighbourhood & Planning,SEN Secondary Tspt,Transport Contracts,Third Party Payments,REVENUE
Wiltshire,http://opendatacommunities.org/id/unitary-authority/wiltshire,06/02/2020,1902505088,2375,Akcess Ltd ,101402,SN2 ,Neighbourhood & Planning,SEN Secondary Tspt,Transport Contracts,Third Party Payments,REVENUE
Wiltshire,http://opendatacommunities.org/id/unitary-authority/wiltshire,06/02/2020,1902505089,980.4,Akcess Ltd ,101402,SN2 ,Neighbourhood & Planning,SEN Secondary Tspt,Transport Contracts,Third Party Payments,REVENUE
Wiltshire,http://opendatacommunities.org/id/unitary-authority/wiltshire,06/02/2020,1902505089,1470.6,Akcess Ltd ,101402,SN2 ,Neighbourhood & Planning,SEN 16+ Transport,Transport Contracts,Third Party Payments,REVENUE
Wiltshire,http://opendatacommunities.org/id/unitary-authority/wiltshire,06/02/2020,1902505090,2177.16,Akcess Ltd ,101402,SN2 ,Neighbourhood & Planning,Mainstream Primary,Transport Contracts,Third Party Payments,REVENUE
Wiltshire,http://opendatacommunities.org/id/unitary-authority/wiltshire,06/02/2020,1902505091,2666.67,Akcess Ltd ,101402,SN2 ,Neighbourhood & Planning,Mainstream Secondary,Transport Contracts,Third Party Payments,REVENUE
Wiltshire,http://opendatacommunities.org/id/unitary-authority/wiltshire,06/02/2020,1902505092,1780,Akcess Ltd ,101402,SN2 ,Neighbourhood & Planning,Mainstream Primary,Transport Contracts,Third Party Payments,REVENUE
Wiltshire,http://opendatacommunities.org/id/unitary-authority/wiltshire,06/02/2020,1902505093,1706.83,Akcess Ltd ,101402,SN2 ,Neighbourhood & Planning,Mainstream Primary,Transport Contracts,Third Party Payments,REVENUE
Wiltshire,http://opendatacommunities.org/id/unitary-authority/wiltshire,06/02/2020,1902505094,1025.04,Akcess Ltd ,101402,SN2 ,Community Services,West Care Packages,Transport Contracts,Third Party Payments,REVENUE
Wiltshire,http://opendatacommunities.org/id/unitary-authority/wiltshire,06/02/2020,1902505094,2230.96,Akcess Ltd ,101402,SN2 ,Community Services,CTPLD Placements,Transport Contracts,Third Party Payments,REVENUE
Wiltshire,http://opendatacommunities.org/id/unitary-authority/wiltshire,06/02/2020,1902505095,2087.12,Akcess Ltd ,101402,SN2 ,Neighbourhood & Planning,Mainstream Primary,Transport Contracts,Third Party Payments,REVENUE
Wiltshire,http://opendatacommunities.org/id/unitary-authority/wiltshire,06/02/2020,1902505096,3100,Akcess Ltd ,101402,SN2 ,Neighbourhood & Planning,Mainstream Secondary,Transport Contracts,Third Party Payments,REVENUE
Wiltshire,http://opendatacommunities.org/id/unitary-authority/wiltshire,06/02/2020,1902505097,12948,Akcess Ltd ,101402,SN2 ,Neighbourhood & Planning,SEN Secondary Tspt,Transport Contracts,Third Party Payments,REVENUE
Wiltshire,http://opendatacommunities.org/id/unitary-authority/wiltshire,05/02/2020,1902503671,1009.84,Alabare Christian Care Centre ,100837,SP2 ,Community Services,CTPLD Placements,Supported Living,Third Party Payments,REVENUE
Wiltshire,http://opendatacommunities.org/id/unitary-authority/wiltshire,05/02/2020,1902503672,1453.92,Alabare Christian Care Centre ,100837,SP2 ,Community Services,CTPLD Placements,Supported Living,Third Party Payments,REVENUE
Wiltshire,http://opendatacommunities.org/id/unitary-authority/wiltshire,05/02/2020,1902503677,1508.4,Alabare Christian Care Centre ,100837,SP2 ,Community Services,CTPLD Placements,Supported Living,Third Party Payments,REVENUE
Wiltshire,http://opendatacommunities.org/id/unitary-authority/wiltshire,05/02/2020,1902503678,1752,Alabare Christian Care Centre ,100837,SP2 ,Community Services,CTPLD Placements,Supported Living,Third Party Payments,REVENUE
Wiltshire,http://opendatacommunities.org/id/unitary-authority/wiltshire,05/02/2020,1902503679,1830.12,Alabare Christian Care Centre ,100837,SP2 ,Community Services,South Care Packages,Supported Living,Third Party Payments,REVENUE
Wiltshire,http://opendatacommunities.org/id/unitary-authority/wiltshire,05/02/2020,1902503680,1922,Alabare Christian Care Centre ,100837,SP2 ,Community Services,CTPLD Placements,Supported Living,Third Party Payments,REVENUE
Wiltshire,http://opendatacommunities.org/id/unitary-authority/wiltshire,05/02/2020,1902503681,2109.36,Alabare Christian Care Centre ,100837,SP2 ,Community Services,CTPLD Placements,Supported Living,Third Party Payments,REVENUE
Wiltshire,http://opendatacommunities.org/id/unitary-authority/wiltshire,05/02/2020,1902503682,2170.6,Alabare Christian Care Centre ,100837,SP2 ,Community Services,CTPLD Placements,Supported Living,Third Party Payments,REVENUE
Wiltshire,http://opendatacommunities.org/id/unitary-authority/wiltshire,05/02/2020,1902503686,2194.96,Alabare Christian Care Centre ,100837,SP2 ,Community Services,CTPLD Placements,Supported Living,Third Party Payments,REVENUE
Wiltshire,http://opendatacommunities.org/id/unitary-authority/wiltshire,05/02/2020,1902503687,2200.6,Alabare Christian Care Centre ,100837,SP2 ,Community Services,CTPLD Placements,Supported Living,Third Party Payments,REVENUE
Wiltshire,http://opendatacommunities.org/id/unitary-authority/wiltshire,05/02/2020,1902503688,2305.8,Alabare Christian Care Centre ,100837,SP2 ,Community Services,CTPLD Placements,Supported Living,Third Party Payments,REVENUE
Wiltshire,http://opendatacommunities.org/id/unitary-authority/wiltshire,05/02/2020,1902503689,2649.4,Alabare Christian Care Centre ,100837,SP2 ,Community Services,CTPLD Placements,Supported Living,Third Party Payments,REVENUE
Wiltshire,http://opendatacommunities.org/id/unitary-authority/wiltshire,05/02/2020,1902503690,2776.52,Alabare Christian Care Centre ,100837,SP2 ,Community Services,CTPLD Placements,Supported Living,Third Party Payments,REVENUE
Wiltshire,http://opendatacommunities.org/id/unitary-authority/wiltshire,05/02/2020,1902503691,2932.24,Alabare Christian Care Centre ,100837,SP2 ,Community Services,CTPLD Placements,Supported Living,Third Party Payments,REVENUE
Wiltshire,http://opendatacommunities.org/id/unitary-authority/wiltshire,05/02/2020,1902503692,3094.52,Alabare Christian Care Centre ,100837,SP2 ,Community Services,CTPLD Placements,Supported Living,Third Party Payments,REVENUE
Wiltshire,http://opendatacommunities.org/id/unitary-authority/wiltshire,05/02/2020,1902503693,3124.48,Alabare Christian Care Centre ,100837,SP2 ,Community Services,CTPLD Placements,Supported Living,Third Party Payments,REVENUE
Wiltshire,http://opendatacommunities.org/id/unitary-authority/wiltshire,05/02/2020,1902503694,3206.12,Alabare Christian Care Centre ,100837,SP2 ,Community Services,CTPLD Placements,Supported Living,Third Party Payments,REVENUE
Wiltshire,http://opendatacommunities.org/id/unitary-authority/wiltshire,05/02/2020,1902503695,3369.04,Alabare Christian Care Centre ,100837,SP2 ,Community Services,CTPLD Placements,Supported Living,Third Party Payments,REVENUE
Wiltshire,http://opendatacommunities.org/id/unitary-authority/wiltshire,05/02/2020,1902503696,3532.52,Alabare Christian Care Centre ,100837,SP2 ,Community Services,CTPLD Placements,Supported Living,Third Party Payments,REVENUE
Wiltshire,http://opendatacommunities.org/id/unitary-authority/wiltshire,05/02/2020,1902503697,3552.52,Alabare Christian Care Centre ,100837,SP2 ,Community Services,CTPLD Placements,Supported Living,Third Party Payments,REVENUE
Wiltshire,http://opendatacommunities.org/id/unitary-authority/wiltshire,05/02/2020,1902503698,365,Alabare Christian Care Centre ,100837,SP2 ,Community Services,MH AOWA South Locali,Supported Living,Third Party Payments,REVENUE
Wiltshire,http://opendatacommunities.org/id/unitary-authority/wiltshire,05/02/2020,1902503699,3788.04,Alabare Christian Care Centre ,100837,SP2 ,Community Services,CTPLD Placements,Supported Living,Third Party Payments,REVENUE
Wiltshire,http://opendatacommunities.org/id/unitary-authority/wiltshire,05/02/2020,1902503700,3976.24,Alabare Christian Care Centre ,100837,SP2 ,Community Services,South Care Packages,Supported Living,Third Party Payments,REVENUE
Wiltshire,http://opendatacommunities.org/id/unitary-authority/wiltshire,05/02/2020,1902503701,401.52,Alabare Christian Care Centre ,100837,SP2 ,Community Services,MH AOWA South Locali,Supported Living,Third Party Payments,REVENUE
Wiltshire,http://opendatacommunities.org/id/unitary-authority/wiltshire,05/02/2020,1902503702,401.52,Alabare Christian Care Centre ,100837,SP2 ,Community Services,CTPLD Placements,Supported Living,Third Party Payments,REVENUE
Wiltshire,http://opendatacommunities.org/id/unitary-authority/wiltshire,05/02/2020,1902503703,4043.52,Alabare Christian Care Centre ,100837,SP2 ,Community Services,CTPLD Placements,Supported Living,Third Party Payments,REVENUE
Wiltshire,http://opendatacommunities.org/id/unitary-authority/wiltshire,05/02/2020,1902503704,4155.12,Alabare Christian Care Centre ,100837,SP2 ,Community Services,CTPLD Placements,Supported Living,Third Party Payments,REVENUE
Wiltshire,http://opendatacommunities.org/id/unitary-authority/wiltshire,05/02/2020,1902503705,438,Alabare Christian Care Centre ,100837,SP2 ,Community Services,CTPLD Placements,Supported Living,Third Party Payments,REVENUE
Wiltshire,http://opendatacommunities.org/id/unitary-authority/wiltshire,05/02/2020,1902503706,511,Alabare Christian Care Centre ,100837,SP2 ,Community Services,MH AOWA South Locali,Supported Living,Third Party Payments,REVENUE
Wiltshire,http://opendatacommunities.org/id/unitary-authority/wiltshire,05/02/2020,1902503707,511,Alabare Christian Care Centre ,100837,SP2 ,Community Services,CTPLD Placements,Supported Living,Third Party Payments,REVENUE
Wiltshire,http://opendatacommunities.org/id/unitary-authority/wiltshire,05/02/2020,1902503708,584,Alabare Christian Care Centre ,100837,SP2 ,Community Services,MH AOWA South Locali,Supported Living,Third Party Payments,REVENUE
Wiltshire,http://opendatacommunities.org/id/unitary-authority/wiltshire,05/02/2020,1902503709,644.84,Alabare Christian Care Centre ,100837,SP2 ,Community Services,CTPLD Placements,Supported Living,Third Party Payments,REVENUE
Wiltshire,http://opendatacommunities.org/id/unitary-authority/wiltshire,05/02/2020,1902503711,730,Alabare Christian Care Centre ,100837,SP2 ,Community Services,MH AOWA South Locali,Supported Living,Third Party Payments,REVENUE
Wiltshire,http://opendatacommunities.org/id/unitary-authority/wiltshire,05/02/2020,1902503712,766.52,Alabare Christian Care Centre ,100837,SP2 ,Community Services,CTPLD Placements,Supported Living,Third Party Payments,REVENUE
Wiltshire,http://opendatacommunities.org/id/unitary-authority/wiltshire,05/02/2020,1902503713,9064.56,Alabare Christian Care Centre ,100837,SP2 ,Community Services,CTPLD Placements,Supported Living,Third Party Payments,REVENUE
Wiltshire,http://opendatacommunities.org/id/unitary-authority/wiltshire,05/02/2020,1902503714,955.08,Alabare Christian Care Centre ,100837,SP2 ,Community Services,CTPLD Placements,Supported Living,Third Party Payments,REVENUE
Wiltshire,http://opendatacommunities.org/id/unitary-authority/wiltshire,24/02/2020,1902515301,480,Alabare Christian Care Centre ,100837,SP2 ,Community Services,MH AOWA South Locali,Adult Day Care Contracts,Third Party Payments,REVENUE
Wiltshire,http://opendatacommunities.org/id/unitary-authority/wiltshire,24/02/2020,1902515304,320,Alabare Christian Care Centre ,100837,SP2 ,Community Services,MH AOWA N&E Locality,Adult Day Care Contracts,Third Party Payments,REVENUE
Wiltshire,http://opendatacommunities.org/id/unitary-authority/wiltshire,24/02/2020,1902515305,320,Alabare Christian Care Centre ,100837,SP2 ,Community Services,CTPLD Placements,Adult Day Care Contracts,Third Party Payments,REVENUE
Wiltshire,http://opendatacommunities.org/id/unitary-authority/wiltshire,24/02/2020,1902515306,480,Alabare Christian Care Centre ,100837,SP2 ,Community Services,MH AOWA South Locali,Adult Day Care Contracts,Third Party Payments,REVENUE
Wiltshire,http://opendatacommunities.org/id/unitary-authority/wiltshire,24/02/2020,1902515309,640,Alabare Christian Care Centre ,100837,SP2 ,Community Services,South Care Packages,Adult Day Care Contracts,Third Party Payments,REVENUE
Wiltshire,http://opendatacommunities.org/id/unitary-authority/wiltshire,24/02/2020,1902515312,480,Alabare Christian Care Centre ,100837,SP2 ,Community Services,CTPLD Placements,Adult Day Care Contracts,Third Party Payments,REVENUE
Wiltshire,http://opendatacommunities.org/id/unitary-authority/wiltshire,24/02/2020,1902515313,520,Alabare Christian Care Centre ,100837,SP2 ,Community Services,CTPLD Placements,Adult Day Care Contracts,Third Party Payments,REVENUE
Wiltshire,http://opendatacommunities.org/id/unitary-authority/wiltshire,26/02/2020,1902516962,480,Alabare Christian Care Centre ,100837,SP2 ,Community Services,MH AOWA South Locali,Adult Day Care Contracts,Third Party Payments,REVENUE
Wiltshire,http://opendatacommunities.org/id/unitary-authority/wiltshire,26/02/2020,1902516963,320,Alabare Christian Care Centre ,100837,SP2 ,Community Services,CTPLD Placements,Adult Day Care Contracts,Third Party Payments,REVENUE
Wiltshire,http://opendatacommunities.org/id/unitary-authority/wiltshire,26/02/2020,1902516966,360,Alabare Christian Care Centre ,100837,SP2 ,Community Services,CTPLD Placements,Adult Day Care Contracts,Third Party Payments,REVENUE
Wiltshire,http://opendatacommunities.org/id/unitary-authority/wiltshire,26/02/2020,1902516968,360,Alabare Christian Care Centre ,100837,SP2 ,Community Services,CTPLD Placements,Adult Day Care Contracts,Third Party Payments,REVENUE
Wiltshire,http://opendatacommunities.org/id/unitary-authority/wiltshire,26/02/2020,1902516970,320,Alabare Christian Care Centre ,100837,SP2 ,Community Services,CTPLD Placements,Adult Day Care Contracts,Third Party Payments,REVENUE
Wiltshire,http://opendatacommunities.org/id/unitary-authority/wiltshire,26/02/2020,1902516971,360,Alabare Christian Care Centre ,100837,SP2 ,Community Services,CTPLD Placements,Adult Day Care Contracts,Third Party Payments,REVENUE
Wiltshire,http://opendatacommunities.org/id/unitary-authority/wiltshire,26/02/2020,1902516972,360,Alabare Christian Care Centre ,100837,SP2 ,Community Services,CTPLD Placements,Adult Day Care Contracts,Third Party Payments,REVENUE
Wiltshire,http://opendatacommunities.org/id/unitary-authority/wiltshire,26/02/2020,1902516973,560,Alabare Christian Care Centre ,100837,SP2 ,Community Services,South Care Packages,Adult Day Care - Spot Income Contribution,Income,REVENUE
Wiltshire,http://opendatacommunities.org/id/unitary-authority/wiltshire,26/02/2020,1902516974,320,Alabare Christian Care Centre ,100837,SP2 ,Community Services,CTPLD Placements,Adult Day Care Contracts,Third Party Payments,REVENUE
Wiltshire,http://opendatacommunities.org/id/unitary-authority/wiltshire,26/02/2020,1902516975,560,Alabare Christian Care Centre ,100837,SP2 ,Community Services,CTPLD Placements,Adult Day Care Contracts,Third Party Payments,REVENUE
Wiltshire,http://opendatacommunities.org/id/unitary-authority/wiltshire,26/02/2020,1902516976,520,Alabare Christian Care Centre ,100837,SP2 ,Community Services,CTPLD Placements,Adult Day Care - Spot Income Contribution,Income,REVENUE
Wiltshire,http://opendatacommunities.org/id/unitary-authority/wiltshire,26/02/2020,1902516979,680,Alabare Christian Care Centre ,100837,SP2 ,Community Services,South Care Packages,Adult Day Care Contracts,Third Party Payments,REVENUE
Wiltshire,http://opendatacommunities.org/id/unitary-authority/wiltshire,26/02/2020,1902516980,520,Alabare Christian Care Centre ,100837,SP2 ,Community Services,CTPLD Placements,Adult Day Care Contracts,Third Party Payments,REVENUE
Wiltshire,http://opendatacommunities.org/id/unitary-authority/wiltshire,26/02/2020,1902516981,320,Alabare Christian Care Centre ,100837,SP2 ,Community Services,CTPLD Placements,Adult Day Care Contracts,Third Party Payments,REVENUE
Wiltshire,http://opendatacommunities.org/id/unitary-authority/wiltshire,26/02/2020,1902516982,320,Alabare Christian Care Centre ,100837,SP2 ,Community Services,CTPLD Placements,Adult Day Care Contracts,Third Party Payments,REVENUE
Wiltshire,http://opendatacommunities.org/id/unitary-authority/wiltshire,26/02/2020,1902516983,581,Alabare Christian Care Centre ,100837,SP2 ,Community Services,CTPLD Placements,Adult Day Care - Spot Income Contribution,Income,REVENUE
Wiltshire,http://opendatacommunities.org/id/unitary-authority/wiltshire,26/02/2020,1902516984,320,Alabare Christian Care Centre ,100837,SP2 ,Community Services,CTPLD Placements,Adult Day Care Contracts,Third Party Payments,REVENUE
Wiltshire,http://opendatacommunities.org/id/unitary-authority/wiltshire,26/02/2020,1902516986,320,Alabare Christian Care Centre ,100837,SP2 ,Community Services,CTPLD Placements,Adult Day Care Contracts,Third Party Payments,REVENUE
Wiltshire,http://opendatacommunities.org/id/unitary-authority/wiltshire,28/02/2020,1902518274,400,Alabare Christian Care Centre ,100837,SP2 ,Community Services,CTPLD Placements,Adult Day Care Contracts,Third Party Payments,REVENUE
Wiltshire,http://opendatacommunities.org/id/unitary-authority/wiltshire,27/02/2020,1902513628,274.4,Albare Christian Care Centres ,113386,SP2 ,Community Services,MH AOWA South Locali,Adult Domiciliary Care,Third Party Payments,REVENUE
Wiltshire,http://opendatacommunities.org/id/unitary-authority/wiltshire,27/02/2020,1902513630,274.4,Albare Christian Care Centres ,113386,SP2 ,Community Services,MH AOWA South Locali,Adult Domiciliary Care,Third Party Payments,REVENUE
Wiltshire,http://opendatacommunities.org/id/unitary-authority/wiltshire,27/02/2020,1902515173,274.4,Albare Christian Care Centres ,113386,SP2 ,Community Services,MH AOWA South Locali,Adult Domiciliary Care,Third Party Payments,REVENUE
Wiltshire,http://opendatacommunities.org/id/unitary-authority/wiltshire,27/02/2020,1902517915,3540.8,Albare Christian Care Centres ,113386,SP2 ,Community Services,MH AOWA South Locali,Adult Domiciliary Care,Third Party Payments,REVENUE
Wiltshire,http://opendatacommunities.org/id/unitary-authority/wiltshire,12/02/2020,1902505489,6337.43,Albino Builders Ltd ,141742,BA4 ,Wiltshire Council,Wiltshire Council,Other Contracts,Third Party Payments,CAPITAL
Wiltshire,http://opendatacommunities.org/id/unitary-authority/wiltshire,25/02/2020,1902515494,2100,Albion Chambers ,113388,BS1 ,Wiltshire Council,Wiltshire Council,Cost of Asset Disposal,Balance Sheet Accounts,REVENUE
Wiltshire,http://opendatacommunities.org/id/unitary-authority/wiltshire,04/02/2020,1902501468,3000,Aldbourne Nursing Home ,110090,SN8 ,Community Services,Home Loans,Adult Care Nursing Placements - Spot,Third Party Payments,REVENUE
Wiltshire,http://opendatacommunities.org/id/unitary-authority/wiltshire,19/02/2020,5107403963,497,Alere Toxicology Plc ,131373,OX14,Children & Education,Supp & Safe West 2,Other Social & Welfare Costs,Third Party Payments,REVENUE
Wiltshire,http://opendatacommunities.org/id/unitary-authority/wiltshire,05/02/2020,1902504895,3400,Alexandra Care Centre ,147242,BH8 ,Community Services,MH AOWA N&E Locality,Adult Residential Placements - Spot Purchase,Third Party Payments,REVENUE
Wiltshire,http://opendatacommunities.org/id/unitary-authority/wiltshire,04/02/2020,1902501373,6237.48,Alexandra Homes (Bristol) Ltd ,131787,BS15,Community Services,MH AOWA West Localit,Adult Residential Placements - Spot Purchase,Third Party Payments,REVENUE
Wiltshire,http://opendatacommunities.org/id/unitary-authority/wiltshire,05/02/2020,1902503631,4097.3,Alina Homecare - Disabilty Support ,139903,BH12,Community Services,CTPLD Placements,Supported Living Contribution,Income,REVENUE
Wiltshire,http://opendatacommunities.org/id/unitary-authority/wiltshire,06/02/2020,1902505254,2160.82,Alina Homecare - Disabilty Support ,139903,BH12,Community Services,MH OP West Locality,Adult Domiciliary Care,Third Party Payments,REVENUE
Wiltshire,http://opendatacommunities.org/id/unitary-authority/wiltshire,06/02/2020,1902505255,2062.48,Alina Homecare - Disabilty Support ,139903,BH12,Community Services,West Care Packages,Adult Domiciliary Care,Third Party Payments,REVENUE
Wiltshire,http://opendatacommunities.org/id/unitary-authority/wiltshire,06/02/2020,1902505256,255.18,Alina Homecare - Disabilty Support ,139903,BH12,Community Services,West Care Packages,Adult Domiciliary Care Contribution,Income,REVENUE
Wiltshire,http://opendatacommunities.org/id/unitary-authority/wiltshire,06/02/2020,1902505258,1755.6,Alina Homecare - Disabilty Support ,139903,BH12,Community Services,North Care Packages,Adult Domiciliary Care,Third Party Payments,REVENUE
Wiltshire,http://opendatacommunities.org/id/unitary-authority/wiltshire,06/02/2020,1902505259,795.6,Alina Homecare - Disabilty Support ,139903,BH12,Community Services,CTPLD Placements,Adult Domiciliary Care Contribution,Income,REVENUE
Wiltshire,http://opendatacommunities.org/id/unitary-authority/wiltshire,06/02/2020,1902505260,1281.84,Alina Homecare - Disabilty Support ,139903,BH12,Community Services,West Care Packages,Adult Domiciliary Care,Third Party Payments,REVENUE
Wiltshire,http://opendatacommunities.org/id/unitary-authority/wiltshire,06/02/2020,1902505261,1685.88,Alina Homecare - Disabilty Support ,139903,BH12,Community Services,MH AOWA West Localit,Adult Domiciliary Care,Third Party Payments,REVENUE
Wiltshire,http://opendatacommunities.org/id/unitary-authority/wiltshire,06/02/2020,1902505262,438.02,Alina Homecare - Disabilty Support ,139903,BH12,Community Services,West Care Packages,Adult Domiciliary Care,Third Party Payments,REVENUE
Wiltshire,http://opendatacommunities.org/id/unitary-authority/wiltshire,06/02/2020,1902505263,1714.37,Alina Homecare - Disabilty Support ,139903,BH12,Community Services,West Care Packages,Adult Domiciliary Care,Third Party Payments,REVENUE
Wiltshire,http://opendatacommunities.org/id/unitary-authority/wiltshire,06/02/2020,1902505264,421.58,Alina Homecare - Disabilty Support ,139903,BH12,Community Services,West Care Packages,Adult Domiciliary Care,Third Party Payments,REVENUE
Wiltshire,http://opendatacommunities.org/id/unitary-authority/wiltshire,06/02/2020,1902505265,338.47,Alina Homecare - Disabilty Support ,139903,BH12,Community Services,West Care Packages,Adult Domiciliary Care Contribution,Income,REVENUE
Wiltshire,http://opendatacommunities.org/id/unitary-authority/wiltshire,06/02/2020,1902505266,756.62,Alina Homecare - Disabilty Support ,139903,BH12,Community Services,CTPLD Placements,Adult Domiciliary Care,Third Party Payments,REVENUE
Wiltshire,http://opendatacommunities.org/id/unitary-authority/wiltshire,06/02/2020,1902505267,899.25,Alina Homecare - Disabilty Support ,139903,BH12,Community Services,West Care Packages,Adult Domiciliary Care Contribution,Income,REVENUE
Wiltshire,http://opendatacommunities.org/id/unitary-authority/wiltshire,06/02/2020,1902505268,467.9,Alina Homecare - Disabilty Support ,139903,BH12,Community Services,CTPLD Placements,Adult Domiciliary Care,Third Party Payments,REVENUE
Wiltshire,http://opendatacommunities.org/id/unitary-authority/wiltshire,06/02/2020,1902505269,264.76,Alina Homecare - Disabilty Support ,139903,BH12,Community Services,CTPLD Placements,Adult Domiciliary Care Contribution,Income,REVENUE
Wiltshire,http://opendatacommunities.org/id/unitary-authority/wiltshire,06/02/2020,1902505271,273.98,Alina Homecare - Disabilty Support ,139903,BH12,Community Services,CTPLD Placements,Adult Domiciliary Care Contribution,Income,REVENUE
Wiltshire,http://opendatacommunities.org/id/unitary-authority/wiltshire,06/02/2020,1902505272,424,Alina Homecare - Disabilty Support ,139903,BH12,Community Services,South Care Packages,Adult Domiciliary Care,Third Party Payments,REVENUE
Wiltshire,http://opendatacommunities.org/id/unitary-authority/wiltshire,06/02/2020,1902505274,832.02,Alina Homecare - Disabilty Support ,139903,BH12,Community Services,South Care Packages,Adult Domiciliary Care,Third Party Payments,REVENUE
Wiltshire,http://opendatacommunities.org/id/unitary-authority/wiltshire,06/02/2020,1902505275,522.4,Alina Homecare - Disabilty Support ,139903,BH12,Community Services,South Care Packages,Adult Domiciliary Care Contribution,Income,REVENUE
Wiltshire,http://opendatacommunities.org/id/unitary-authority/wiltshire,06/02/2020,1902505278,368.34,Alina Homecare - Disabilty Support ,139903,BH12,Community Services,CTPLD Placements,Adult Domiciliary Care,Third Party Payments,REVENUE
Wiltshire,http://opendatacommunities.org/id/unitary-authority/wiltshire,12/02/2020,1902506295,487.81,Alina Homecare - Disabilty Support ,139903,BH12,Community Services,CTPLD Placements,Adult Domiciliary Care,Third Party Payments,REVENUE
Wiltshire,http://opendatacommunities.org/id/unitary-authority/wiltshire,12/02/2020,1902506296,1708.44,Alina Homecare - Disabilty Support ,139903,BH12,Community Services,South Care Packages,Adult Domiciliary Care,Third Party Payments,REVENUE
Wiltshire,http://opendatacommunities.org/id/unitary-authority/wiltshire,12/02/2020,1902506298,7731.76,Alina Homecare - Disabilty Support ,139903,BH12,Community Services,CTPLD Placements,Supported Living,Third Party Payments,REVENUE
Wiltshire,http://opendatacommunities.org/id/unitary-authority/wiltshire,13/02/2020,1902510938,493.2,Alina Homecare - Disabilty Support ,139903,BH12,Community Services,South Care Packages,Adult Domiciliary Care,Third Party Payments,REVENUE
Wiltshire,http://opendatacommunities.org/id/unitary-authority/wiltshire,17/02/2020,1902512676,358.38,Alina Homecare - Disabilty Support ,139903,BH12,Community Services,CTPLD Placements,Adult Domiciliary Care,Third Party Payments,REVENUE
Wiltshire,http://opendatacommunities.org/id/unitary-authority/wiltshire,17/02/2020,1902512677,740.52,Alina Homecare - Disabilty Support ,139903,BH12,Community Services,West Care Packages,Adult Domiciliary Care,Third Party Payments,REVENUE
Wiltshire,http://opendatacommunities.org/id/unitary-authority/wiltshire,17/02/2020,1902512678,658.35,Alina Homecare - Disabilty Support ,139903,BH12,Community Services,South Care Packages,Adult Domiciliary Care,Third Party Payments,REVENUE
Wiltshire,http://opendatacommunities.org/id/unitary-authority/wiltshire,17/02/2020,1902512679,438.45,Alina Homecare - Disabilty Support ,139903,BH12,Community Services,South Care Packages,Adult Domiciliary Care Contribution,Income,REVENUE
Wiltshire,http://opendatacommunities.org/id/unitary-authority/wiltshire,17/02/2020,1902512682,751.01,Alina Homecare - Disabilty Support ,139903,BH12,Community Services,South Care Packages,Adult Domiciliary Care,Third Party Payments,REVENUE
Wiltshire,http://opendatacommunities.org/id/unitary-authority/wiltshire,17/02/2020,1902512683,368.34,Alina Homecare - Disabilty Support ,139903,BH12,Community Services,CTPLD Placements,Adult Domiciliary Care,Third Party Payments,REVENUE
Wiltshire,http://opendatacommunities.org/id/unitary-authority/wiltshire,17/02/2020,1902512684,606.23,Alina Homecare - Disabilty Support ,139903,BH12,Community Services,South Care Packages,Adult Domiciliary Care Contribution,Income,REVENUE
Wiltshire,http://opendatacommunities.org/id/unitary-authority/wiltshire,17/02/2020,1902512685,1298.28,Alina Homecare - Disabilty Support ,139903,BH12,Community Services,South Care Packages,Adult Domiciliary Care,Third Party Payments,REVENUE
Wiltshire,http://opendatacommunities.org/id/unitary-authority/wiltshire,17/02/2020,1902512686,373.26,Alina Homecare - Disabilty Support ,139903,BH12,Community Services,South Care Packages,Adult Domiciliary Care,Third Party Payments,REVENUE
Wiltshire,http://opendatacommunities.org/id/unitary-authority/wiltshire,28/02/2020,1902518269,539.97,Alina Homecare - Disabilty Support ,139903,BH12,Community Services,South Care Packages,Adult Domiciliary Care Contribution,Income,REVENUE
Wiltshire,http://opendatacommunities.org/id/unitary-authority/wiltshire,05/02/2020,1902503346,3686.12,Alliance Home Care ,110986,SN15,Community Services,MH OP N&E Locality,Adult Residential Placements - Spot Purchase,Third Party Payments,REVENUE
Wiltshire,http://opendatacommunities.org/id/unitary-authority/wiltshire,05/02/2020,1902503347,1536,Alliance Home Care ,110986,SN15,Community Services,MH AOWA N&E Locality,Adult Residential Placements - Spot Purchase,Third Party Payments,REVENUE
Wiltshire,http://opendatacommunities.org/id/unitary-authority/wiltshire,05/02/2020,1902503348,3346.28,Alliance Home Care ,110986,SN15,Community Services,MH AOWA N&E Locality,Adult Residential Placements - Spot Purchase,Third Party Payments,REVENUE
Wiltshire,http://opendatacommunities.org/id/unitary-authority/wiltshire,05/02/2020,1902503349,3600,Alliance Home Care ,110986,SN15,Community Services,MH OP N&E Locality,Adult Residential Placements - Spot Purchase,Third Party Payments,REVENUE
Wiltshire,http://opendatacommunities.org/id/unitary-authority/wiltshire,05/02/2020,1902503350,3601.96,Alliance Home Care ,110986,SN15,Community Services,MH AOWA N&E Locality,Adult Residential Placements - Spot Purchase,Third Party Payments,REVENUE
Wiltshire,http://opendatacommunities.org/id/unitary-authority/wiltshire,05/02/2020,1902503351,3764.28,Alliance Home Care ,110986,SN15,Community Services,MH AOWA N&E Locality,Adult Residential Placements - Spot Purchase,Third Party Payments,REVENUE
Wiltshire,http://opendatacommunities.org/id/unitary-authority/wiltshire,05/02/2020,1902503352,3805.16,Alliance Home Care ,110986,SN15,Community Services,MH AOWA N&E Locality,Adult Residential Placements - Spot Purchase,Third Party Payments,REVENUE
Wiltshire,http://opendatacommunities.org/id/unitary-authority/wiltshire,05/02/2020,1902503353,3805.16,Alliance Home Care ,110986,SN15,Community Services,MH AOWA N&E Locality,Adult Residential Placements - Spot Purchase,Third Party Payments,REVENUE
Wiltshire,http://opendatacommunities.org/id/unitary-authority/wiltshire,05/02/2020,1902503354,3805.16,Alliance Home Care ,110986,SN15,Community Services,MH AOWA N&E Locality,Adult Residential Placements - Spot Purchase,Third Party Payments,REVENUE
Wiltshire,http://opendatacommunities.org/id/unitary-authority/wiltshire,05/02/2020,1902503355,3805.16,Alliance Home Care ,110986,SN15,Community Services,MH AOWA N&E Locality,Adult Residential Placements - Spot Purchase,Third Party Payments,REVENUE
Wiltshire,http://opendatacommunities.org/id/unitary-authority/wiltshire,05/02/2020,1902503356,3818,Alliance Home Care ,110986,SN15,Community Services,MH AOWA N&E Locality,Adult Residential Placements - Spot Purchase,Third Party Payments,REVENUE
Wiltshire,http://opendatacommunities.org/id/unitary-authority/wiltshire,05/02/2020,1902503357,3827.52,Alliance Home Care ,110986,SN15,Community Services,MH AOWA N&E Locality,Adult Residential Placements - Spot Purchase,Third Party Payments,REVENUE
Wiltshire,http://opendatacommunities.org/id/unitary-authority/wiltshire,19/02/2020,5107401791,7500,Alliance Leisure Ltd ,145071,TA6 ,Wiltshire Council,Wiltshire Council,Professional Fees,Supplies and Services,CAPITAL
Wiltshire,http://opendatacommunities.org/id/unitary-authority/wiltshire,25/02/2020,1902516636,4371.23,Allied Healthcare  UK  Ltd ,110113,ST18,Community Services,West Care Packages,Adult Domiciliary Care,Third Party Payments,REVENUE
Wiltshire,http://opendatacommunities.org/id/unitary-authority/wiltshire,17/02/2020,1902512059,9212.4,Allsorts Pre-school Nursery ,113437,SN4 ,Children & Education,Free Enttlmnt 3 & 4y,Childcare Free Entitlement Early Years,Supplies and Services,REVENUE
Wiltshire,http://opendatacommunities.org/id/unitary-authority/wiltshire,17/02/2020,1902512060,2516.36,Allsorts Pre-school Nursery ,113437,SN4 ,Children & Education,Free Entitlement 2 Y,Childcare Free Entitlement Early Years,Supplies and Services,REVENUE
Wiltshire,http://opendatacommunities.org/id/unitary-authority/wiltshire,12/02/2020,1902506312,653.66,Alltogether Care LLP ,143884,DT4 ,Community Services,South Care Packages,Adult Domiciliary Care,Third Party Payments,REVENUE
Wiltshire,http://opendatacommunities.org/id/unitary-authority/wiltshire,12/02/2020,1902506313,1122.47,Alltogether Care LLP ,143884,DT4 ,Community Services,South Care Packages,Adult Domiciliary Care,Third Party Payments,REVENUE
Wiltshire,http://opendatacommunities.org/id/unitary-authority/wiltshire,12/02/2020,1902506314,380.06,Alltogether Care LLP ,143884,DT4 ,Community Services,South Care Packages,Adult Domiciliary Care,Third Party Payments,REVENUE
Wiltshire,http://opendatacommunities.org/id/unitary-authority/wiltshire,12/02/2020,1902506315,511.49,Alltogether Care LLP ,143884,DT4 ,Community Services,South Care Packages,Adult Domiciliary Care,Third Party Payments,REVENUE
Wiltshire,http://opendatacommunities.org/id/unitary-authority/wiltshire,10/02/2020,5107401086,695.64,Alpha Plus Training  and  Translati Ltd,110120,TA4 ,Resources,Refugee Programme,Professional Fees,Supplies and Services,REVENUE
Wiltshire,http://opendatacommunities.org/id/unitary-authority/wiltshire,10/02/2020,5107401356,255.8,Alpha Plus Training  and  Translati Ltd,110120,TA4 ,Children & Education,UASC Under 18 Years,Professional Fees,Supplies and Services,REVENUE
Wiltshire,http://opendatacommunities.org/id/unitary-authority/wiltshire,12/02/2020,5107402313,255.8,Alpha Plus Training  and  Translati Ltd,110120,TA4 ,Children & Education,UASC Under 18 Years,Professional Fees,Supplies and Services,REVENUE
Wiltshire,http://opendatacommunities.org/id/unitary-authority/wiltshire,12/02/2020,5107402314,1236.7,Alpha Plus Training  and  Translati Ltd,110120,TA4 ,Children & Education,UASC Under 18 Years,Professional Fees,Supplies and Services,REVENUE
Wiltshire,http://opendatacommunities.org/id/unitary-authority/wiltshire,17/02/2020,5107402345,265.68,Alpha Plus Training  and  Translati Ltd,110120,TA4 ,Children & Education,UASC Under 18 Years,Professional Fees,Supplies and Services,REVENUE
Wiltshire,http://opendatacommunities.org/id/unitary-authority/wiltshire,24/02/2020,5107402346,255.8,Alpha Plus Training  and  Translati Ltd,110120,TA4 ,Children & Education,UASC Under 18 Years,Professional Fees,Supplies and Services,REVENUE
Wiltshire,http://opendatacommunities.org/id/unitary-authority/wiltshire,24/02/2020,5107402700,360.35,Alpha Plus Training  and  Translati Ltd,110120,TA4 ,Children & Education,UASC Over 18 Years,Professional Fees,Supplies and Services,REVENUE
Wiltshire,http://opendatacommunities.org/id/unitary-authority/wiltshire,25/02/2020,5107402701,295.74,Alpha Plus Training  and  Translati Ltd,110120,TA4 ,Children & Education,UASC Under 18 Years,Professional Fees,Supplies and Services,REVENUE
Wiltshire,http://opendatacommunities.org/id/unitary-authority/wiltshire,28/02/2020,5107403894,297.54,Alpha Plus Training  and  Translati Ltd,110120,TA4 ,Children & Education,UASC Under 18 Years,Professional Fees,Supplies and Services,REVENUE
Wiltshire,http://opendatacommunities.org/id/unitary-authority/wiltshire,28/02/2020,5107404104,342.74,Alpha Plus Training  and  Translati Ltd,110120,TA4 ,Children & Education,UASC Over 18 Years,Professional Fees,Supplies and Services,REVENUE
Wiltshire,http://opendatacommunities.org/id/unitary-authority/wiltshire,28/02/2020,5107404114,256.69,Alpha Plus Training  and  Translati Ltd,110120,TA4 ,Children & Education,UASC Under 18 Years,Professional Fees,Supplies and Services,REVENUE
Wiltshire,http://opendatacommunities.org/id/unitary-authority/wiltshire,28/02/2020,5107404302,435,Alpha Plus Training  and  Translati Ltd,110120,TA4 ,Children & Education,HQ Social Care,Other Social & Welfare Costs,Third Party Payments,REVENUE
Wiltshire,http://opendatacommunities.org/id/unitary-authority/wiltshire,24/02/2020,5107404307,264.75,Alpha Plus Training  and  Translati Ltd,110120,TA4 ,Children & Education,HQ Social Care,Other Social & Welfare Costs,Third Party Payments,REVENUE
Wiltshire,http://opendatacommunities.org/id/unitary-authority/wiltshire,24/02/2020,5107404309,550.29,Alpha Plus Training  and  Translati Ltd,110120,TA4 ,Children & Education,HQ Social Care,Other Social & Welfare Costs,Third Party Payments,REVENUE
Wiltshire,http://opendatacommunities.org/id/unitary-authority/wiltshire,24/02/2020,5107404334,293.1,Alpha Plus Training  and  Translati Ltd,110120,TA4 ,Children & Education,HQ Social Care,Other Social & Welfare Costs,Third Party Payments,REVENUE
Wiltshire,http://opendatacommunities.org/id/unitary-authority/wiltshire,11/02/2020,1902506008,992,Alpha Taxis ,100124,BA14,Community Services,CTPLD Placements,Transport Contracts,Third Party Payments,REVENUE
Wiltshire,http://opendatacommunities.org/id/unitary-authority/wiltshire,11/02/2020,1902506010,480,Alpha Taxis ,100124,BA14,Neighbourhood & Planning,Mainstream Primary,Transport Contracts,Third Party Payments,REVENUE
Wiltshire,http://opendatacommunities.org/id/unitary-authority/wiltshire,11/02/2020,1902506011,1800,Alpha Taxis ,100124,BA14,Neighbourhood & Planning,SEN 16+ Transport,Transport Contracts,Third Party Payments,REVENUE
Wiltshire,http://opendatacommunities.org/id/unitary-authority/wiltshire,11/02/2020,1902506012,1938,Alpha Taxis ,100124,BA14,Neighbourhood & Planning,SEN Secondary Tspt,Transport Contracts,Third Party Payments,REVENUE
Wiltshire,http://opendatacommunities.org/id/unitary-authority/wiltshire,11/02/2020,1902506013,1216.8,Alpha Taxis ,100124,BA14,Neighbourhood & Planning,SEN Primary Transprt,Transport Contracts,Third Party Payments,REVENUE
Wiltshire,http://opendatacommunities.org/id/unitary-authority/wiltshire,11/02/2020,1902506014,562.4,Alpha Taxis ,100124,BA14,Neighbourhood & Planning,SEN Secondary Tspt,Transport Contracts,Third Party Payments,REVENUE
Wiltshire,http://opendatacommunities.org/id/unitary-authority/wiltshire,11/02/2020,1902506014,843.6,Alpha Taxis ,100124,BA14,Neighbourhood & Planning,SEN Primary Transprt,Transport Contracts,Third Party Payments,REVENUE
Wiltshire,http://opendatacommunities.org/id/unitary-authority/wiltshire,11/02/2020,1902506015,1356.6,Alpha Taxis ,100124,BA14,Neighbourhood & Planning,SEN Primary Transprt,Transport Contracts,Third Party Payments,REVENUE
Wiltshire,http://opendatacommunities.org/id/unitary-authority/wiltshire,11/02/2020,1902506016,1386,Alpha Taxis ,100124,BA14,Neighbourhood & Planning,SEN Primary Transprt,Transport Contracts,Third Party Payments,REVENUE
Wiltshire,http://opendatacommunities.org/id/unitary-authority/wiltshire,11/02/2020,1902506017,684,Alpha Taxis ,100124,BA14,Neighbourhood & Planning,SEN Secondary Tspt,Transport Contracts,Third Party Payments,REVENUE
Wiltshire,http://opendatacommunities.org/id/unitary-authority/wiltshire,11/02/2020,1902506018,952,Alpha Taxis ,100124,BA14,Community Services,CTPLD Placements,Transport Contracts,Third Party Payments,REVENUE
Wiltshire,http://opendatacommunities.org/id/unitary-authority/wiltshire,11/02/2020,1902506019,266.5,Alpha Taxis ,100124,BA14,Community Services,CTPLD Placements,Transport Contracts,Third Party Payments,REVENUE
Wiltshire,http://opendatacommunities.org/id/unitary-authority/wiltshire,11/02/2020,1902506020,1330,Alpha Taxis ,100124,BA14,Neighbourhood & Planning,SEN Primary Transprt,Transport Contracts,Third Party Payments,REVENUE
Wiltshire,http://opendatacommunities.org/id/unitary-authority/wiltshire,11/02/2020,1902506022,447.87,Alpha Taxis ,100124,BA14,Neighbourhood & Planning,SEN Primary Transprt,Transport Contracts,Third Party Payments,REVENUE
Wiltshire,http://opendatacommunities.org/id/unitary-authority/wiltshire,11/02/2020,1902506022,895.73,Alpha Taxis ,100124,BA14,Neighbourhood & Planning,SEN Secondary Tspt,Transport Contracts,Third Party Payments,REVENUE
Wiltshire,http://opendatacommunities.org/id/unitary-authority/wiltshire,11/02/2020,1902506023,367.5,Alpha Taxis ,100124,BA14,Community Services,West Care Packages,Transport Contracts,Third Party Payments,REVENUE
Wiltshire,http://opendatacommunities.org/id/unitary-authority/wiltshire,11/02/2020,1902506024,682,Alpha Taxis ,100124,BA14,Neighbourhood & Planning,SEN 16+ Transport,Transport Contracts,Third Party Payments,REVENUE
Wiltshire,http://opendatacommunities.org/id/unitary-authority/wiltshire,11/02/2020,1902506025,1998,Alpha Taxis ,100124,BA14,Neighbourhood & Planning,SEN Primary Transprt,Transport Contracts,Third Party Payments,REVENUE
Wiltshire,http://opendatacommunities.org/id/unitary-authority/wiltshire,11/02/2020,1902506026,825,Alpha Taxis ,100124,BA14,Neighbourhood & Planning,SEN Secondary Tspt,Transport Contracts,Third Party Payments,REVENUE
Wiltshire,http://opendatacommunities.org/id/unitary-authority/wiltshire,11/02/2020,1902506027,400,Alpha Taxis ,100124,BA14,Neighbourhood & Planning,SEN Secondary Tspt,Transport Contracts,Third Party Payments,REVENUE
Wiltshire,http://opendatacommunities.org/id/unitary-authority/wiltshire,12/02/2020,1902510730,668.2,Alpha Taxis ,100124,BA14,Community Services,CTPLD Placements,Transport Contracts,Third Party Payments,REVENUE
Wiltshire,http://opendatacommunities.org/id/unitary-authority/wiltshire,12/02/2020,1902510730,680,Alpha Taxis ,100124,BA14,Children & Education,BehaviourSuppService,Transport Contracts,Third Party Payments,REVENUE
Wiltshire,http://opendatacommunities.org/id/unitary-authority/wiltshire,12/02/2020,1902510737,437.2,Alpha Taxis ,100124,BA14,Neighbourhood & Planning,Mainstream 16+ FE,Transport Contracts,Third Party Payments,REVENUE
Wiltshire,http://opendatacommunities.org/id/unitary-authority/wiltshire,12/02/2020,1902510737,655.8,Alpha Taxis ,100124,BA14,Neighbourhood & Planning,SEN 16+ Transport,Transport Contracts,Third Party Payments,REVENUE
Wiltshire,http://opendatacommunities.org/id/unitary-authority/wiltshire,12/02/2020,1902510752,316.5,Alpha Taxis ,100124,BA14,Children & Education,CIC Team South,Transport Contracts,Third Party Payments,REVENUE
Wiltshire,http://opendatacommunities.org/id/unitary-authority/wiltshire,12/02/2020,1902510752,949.5,Alpha Taxis ,100124,BA14,Neighbourhood & Planning,Mainstream Secondary,Transport Contracts,Third Party Payments,REVENUE
Wiltshire,http://opendatacommunities.org/id/unitary-authority/wiltshire,18/02/2020,1902513771,1891,Alpha Taxis ,100124,BA14,Neighbourhood & Planning,SEN Secondary Tspt,Transport Contracts,Third Party Payments,REVENUE
Wiltshire,http://opendatacommunities.org/id/unitary-authority/wiltshire,13/02/2020,1902511303,4060,Alpha Taxis (Tidworth) ,137541,SP9 ,Children & Education,BehaviourSuppService,Transport Contracts,Third Party Payments,REVENUE
Wiltshire,http://opendatacommunities.org/id/unitary-authority/wiltshire,13/02/2020,1902511304,780.27,Alpha Taxis (Tidworth) ,137541,SP9 ,Neighbourhood & Planning,SEN Secondary Tspt,Transport Contracts,Third Party Payments,REVENUE
Wiltshire,http://opendatacommunities.org/id/unitary-authority/wiltshire,13/02/2020,1902511304,1347.73,Alpha Taxis (Tidworth) ,137541,SP9 ,Neighbourhood & Planning,SEN Primary Transprt,Transport Contracts,Third Party Payments,REVENUE
Wiltshire,http://opendatacommunities.org/id/unitary-authority/wiltshire,04/02/2020,5107402482,875,ALSOprint ,146639,CR0 ,Neighbourhood & Planning,Off Street Parking,Property Maintenance,Premises Related,REVENUE
Wiltshire,http://opendatacommunities.org/id/unitary-authority/wiltshire,04/02/2020,1902501491,294,Alzheimers Support ,110127,BA14,Community Services,West Care Packages,Adult Day Care Contracts,Third Party Payments,REVENUE
Wiltshire,http://opendatacommunities.org/id/unitary-authority/wiltshire,25/02/2020,1902516406,336,Alzheimers Support ,110127,BA14,Community Services,West Care Packages,Adult Domiciliary Care,Third Party Payments,REVENUE
Wiltshire,http://opendatacommunities.org/id/unitary-authority/wiltshire,27/02/2020,5107404726,18873.53,Alzheimers Support ,110127,BA14,Community Services,ASC Community C&G,Grants Expenditure,Supplies and Services,REVENUE
Wiltshire,http://opendatacommunities.org/id/unitary-authority/wiltshire,27/02/2020,5107404773,32458.33,Alzheimers Support ,110127,BA14,Community Services,ASC Community C&G,Grants Expenditure,Supplies and Services,REVENUE
Wiltshire,http://opendatacommunities.org/id/unitary-authority/wiltshire,17/02/2020,5107403691,3314.7,Amicus Foster Care Limited ,126050,BS2 ,Children & Education,Ext Placement & IFA,Childrens Agency Placement,Third Party Payments,REVENUE
Wiltshire,http://opendatacommunities.org/id/unitary-authority/wiltshire,17/02/2020,5107403694,3314.7,Amicus Foster Care Limited ,126050,BS2 ,Children & Education,Ext Placement & IFA,Childrens Agency Placement,Third Party Payments,REVENUE
Wiltshire,http://opendatacommunities.org/id/unitary-authority/wiltshire,17/02/2020,5107403697,3390.39,Amicus Foster Care Limited ,126050,BS2 ,Children & Education,Ext Placement & IFA,Childrens Agency Placement,Third Party Payments,REVENUE
Wiltshire,http://opendatacommunities.org/id/unitary-authority/wiltshire,17/02/2020,5107403698,4285.91,Amicus Foster Care Limited ,126050,BS2 ,Children & Education,Ext Placement & IFA,Childrens Agency Placement,Third Party Payments,REVENUE
Wiltshire,http://opendatacommunities.org/id/unitary-authority/wiltshire,17/02/2020,5107403699,3593.39,Amicus Foster Care Limited ,126050,BS2 ,Children & Education,Ext Placement & IFA,Childrens Agency Placement,Third Party Payments,REVENUE
Wiltshire,http://opendatacommunities.org/id/unitary-authority/wiltshire,12/02/2020,1902506316,1946.7,Amicus Homecare Limited ,144149,BA2 ,Community Services,West Care Packages,Adult Domiciliary Care Contribution,Income,REVENUE
Wiltshire,http://opendatacommunities.org/id/unitary-authority/wiltshire,05/02/2020,1902497768,698.27,AMP Clean Energy ,144036,EX20,Neighbourhood & Planning,Biomass Prog Schools,Other Fuels,Premises Related,REVENUE
Wiltshire,http://opendatacommunities.org/id/unitary-authority/wiltshire,06/02/2020,1902497769,2219.01,AMP Clean Energy ,144036,EX20,Neighbourhood & Planning,Biomass Prog Schools,Other Fuels,Premises Related,REVENUE
Wiltshire,http://opendatacommunities.org/id/unitary-authority/wiltshire,06/02/2020,1902497770,1054.44,AMP Clean Energy ,144036,EX20,Neighbourhood & Planning,Biomass Prog Schools,Other Fuels,Premises Related,REVENUE
Wiltshire,http://opendatacommunities.org/id/unitary-authority/wiltshire,06/02/2020,1902497771,1171.6,AMP Clean Energy ,144036,EX20,Neighbourhood & Planning,Biomass Prog Schools,Other Fuels,Premises Related,REVENUE
Wiltshire,http://opendatacommunities.org/id/unitary-authority/wiltshire,06/02/2020,1902497772,1171.6,AMP Clean Energy ,144036,EX20,Neighbourhood & Planning,Biomass Prog Schools,Other Fuels,Premises Related,REVENUE
Wiltshire,http://opendatacommunities.org/id/unitary-authority/wiltshire,13/02/2020,1902505004,2113.57,AMP Clean Energy ,144036,EX20,Neighbourhood & Planning,Biomass Prog Schools,Other Fuels,Premises Related,REVENUE
Wiltshire,http://opendatacommunities.org/id/unitary-authority/wiltshire,13/02/2020,1902505005,1701.16,AMP Clean Energy ,144036,EX20,Neighbourhood & Planning,Biomass Prog Schools,Other Fuels,Premises Related,REVENUE
Wiltshire,http://opendatacommunities.org/id/unitary-authority/wiltshire,13/02/2020,1902505006,857.61,AMP Clean Energy ,144036,EX20,Neighbourhood & Planning,Biomass Prog Schools,Other Fuels,Premises Related,REVENUE
Wiltshire,http://opendatacommunities.org/id/unitary-authority/wiltshire,13/02/2020,1902505007,937.28,AMP Clean Energy ,144036,EX20,Neighbourhood & Planning,Biomass Prog Schools,Other Fuels,Premises Related,REVENUE
Wiltshire,http://opendatacommunities.org/id/unitary-authority/wiltshire,06/02/2020,1902505008,881.04,AMP Clean Energy ,144036,EX20,Neighbourhood & Planning,Biomass Prog Schools,Other Fuels,Premises Related,REVENUE
Wiltshire,http://opendatacommunities.org/id/unitary-authority/wiltshire,13/02/2020,1902505009,941.97,AMP Clean Energy ,144036,EX20,Neighbourhood & Planning,Biomass Prog Schools,Other Fuels,Premises Related,REVENUE
Wiltshire,http://opendatacommunities.org/id/unitary-authority/wiltshire,14/02/2020,1902505010,941.97,AMP Clean Energy ,144036,EX20,Neighbourhood & Planning,Biomass Prog Schools,Other Fuels,Premises Related,REVENUE
Wiltshire,http://opendatacommunities.org/id/unitary-authority/wiltshire,14/02/2020,1902505011,590.49,AMP Clean Energy ,144036,EX20,Neighbourhood & Planning,Biomass Prog Schools,Other Fuels,Premises Related,REVENUE
Wiltshire,http://opendatacommunities.org/id/unitary-authority/wiltshire,28/02/2020,1902514838,1752.71,AMP Clean Energy ,144036,EX20,Neighbourhood & Planning,Biomass Prog Schools,Other Fuels,Premises Related,REVENUE
Wiltshire,http://opendatacommunities.org/id/unitary-authority/wiltshire,28/02/2020,1902514839,1405.92,AMP Clean Energy ,144036,EX20,Neighbourhood & Planning,Biomass Prog Schools,Other Fuels,Premises Related,REVENUE
Wiltshire,http://opendatacommunities.org/id/unitary-authority/wiltshire,28/02/2020,1902514840,1675.39,AMP Clean Energy ,144036,EX20,Neighbourhood & Planning,Biomass Prog Schools,Other Fuels,Premises Related,REVENUE
Wiltshire,http://opendatacommunities.org/id/unitary-authority/wiltshire,05/02/2020,1902502546,772.64,AMS Care Wiltshire ,130764,SN4 ,Community Services,Placement Block Cont,Adult Nursing Place- Block Contract Contribution,Income,REVENUE
Wiltshire,http://opendatacommunities.org/id/unitary-authority/wiltshire,05/02/2020,1902502547,772.64,AMS Care Wiltshire ,130764,SN4 ,Community Services,Placement Block Cont,Adult Nursing Place- Block Contract Contribution,Income,REVENUE
Wiltshire,http://opendatacommunities.org/id/unitary-authority/wiltshire,05/02/2020,1902502548,772.64,AMS Care Wiltshire ,130764,SN4 ,Community Services,Placement Block Cont,Adult Nursing Place- Block Contract Contribution,Income,REVENUE
Wiltshire,http://opendatacommunities.org/id/unitary-authority/wiltshire,05/02/2020,1902502554,2744.64,AMS Care Wiltshire ,130764,SN4 ,Community Services,Placement Block Cont,Adult Care Nursing Placements- Block Contract,Third Party Payments,REVENUE
Wiltshire,http://opendatacommunities.org/id/unitary-authority/wiltshire,05/02/2020,1902502555,2744.64,AMS Care Wiltshire ,130764,SN4 ,Community Services,Placement Block Cont,Adult Care Nursing Placements- Block Contract,Third Party Payments,REVENUE
Wiltshire,http://opendatacommunities.org/id/unitary-authority/wiltshire,05/02/2020,1902502556,2744.64,AMS Care Wiltshire ,130764,SN4 ,Community Services,Placement Block Cont,Adult Care Nursing Placements- Block Contract,Third Party Payments,REVENUE
Wiltshire,http://opendatacommunities.org/id/unitary-authority/wiltshire,05/02/2020,1902502557,2744.64,AMS Care Wiltshire ,130764,SN4 ,Community Services,Placement Block Cont,Adult Care Nursing Placements- Block Contract,Third Party Payments,REVENUE
Wiltshire,http://opendatacommunities.org/id/unitary-authority/wiltshire,05/02/2020,1902502558,2744.64,AMS Care Wiltshire ,130764,SN4 ,Community Services,Placement Block Cont,Adult Care Nursing Placements- Block Contract,Third Party Payments,REVENUE
Wiltshire,http://opendatacommunities.org/id/unitary-authority/wiltshire,05/02/2020,1902502559,2744.64,AMS Care Wiltshire ,130764,SN4 ,Community Services,Placement Block Cont,Adult Care Nursing Placements- Block Contract,Third Party Payments,REVENUE
Wiltshire,http://opendatacommunities.org/id/unitary-authority/wiltshire,05/02/2020,1902502560,2744.64,AMS Care Wiltshire ,130764,SN4 ,Community Services,Placement Block Cont,Adult Care Nursing Placements- Block Contract,Third Party Payments,REVENUE
Wiltshire,http://opendatacommunities.org/id/unitary-authority/wiltshire,05/02/2020,1902502561,2744.64,AMS Care Wiltshire ,130764,SN4 ,Community Services,Placement Block Cont,Adult Care Nursing Placements- Block Contract,Third Party Payments,REVENUE
Wiltshire,http://opendatacommunities.org/id/unitary-authority/wiltshire,05/02/2020,1902502562,2744.64,AMS Care Wiltshire ,130764,SN4 ,Community Services,Placement Block Cont,Adult Care Nursing Placements- Block Contract,Third Party Payments,REVENUE
Wiltshire,http://opendatacommunities.org/id/unitary-authority/wiltshire,05/02/2020,1902502563,2744.64,AMS Care Wiltshire ,130764,SN4 ,Community Services,Placement Block Cont,Adult Care Nursing Placements- Block Contract,Third Party Payments,REVENUE
Wiltshire,http://opendatacommunities.org/id/unitary-authority/wiltshire,05/02/2020,1902502564,2744.64,AMS Care Wiltshire ,130764,SN4 ,Community Services,Placement Block Cont,Adult Care Nursing Placements- Block Contract,Third Party Payments,REVENUE
Wiltshire,http://opendatacommunities.org/id/unitary-authority/wiltshire,05/02/2020,1902502565,2744.64,AMS Care Wiltshire ,130764,SN4 ,Community Services,Placement Block Cont,Adult Care Nursing Placements- Block Contract,Third Party Payments,REVENUE
Wiltshire,http://opendatacommunities.org/id/unitary-authority/wiltshire,05/02/2020,1902502566,2744.64,AMS Care Wiltshire ,130764,SN4 ,Community Services,Placement Block Cont,Adult Care Nursing Placements- Block Contract,Third Party Payments,REVENUE
Wiltshire,http://opendatacommunities.org/id/unitary-authority/wiltshire,05/02/2020,1902502567,2744.64,AMS Care Wiltshire ,130764,SN4 ,Community Services,Placement Block Cont,Adult Care Nursing Placements- Block Contract,Third Party Payments,REVENUE
Wiltshire,http://opendatacommunities.org/id/unitary-authority/wiltshire,05/02/2020,1902502568,2744.64,AMS Care Wiltshire ,130764,SN4 ,Community Services,Placement Block Cont,Adult Care Nursing Placements- Block Contract,Third Party Payments,REVENUE
Wiltshire,http://opendatacommunities.org/id/unitary-authority/wiltshire,05/02/2020,1902502569,2744.64,AMS Care Wiltshire ,130764,SN4 ,Community Services,Placement Block Cont,Adult Care Nursing Placements- Block Contract,Third Party Payments,REVENUE
Wiltshire,http://opendatacommunities.org/id/unitary-authority/wiltshire,05/02/2020,1902502570,2744.64,AMS Care Wiltshire ,130764,SN4 ,Community Services,Placement Block Cont,Adult Care Nursing Placements- Block Contract,Third Party Payments,REVENUE
Wiltshire,http://opendatacommunities.org/id/unitary-authority/wiltshire,05/02/2020,1902502571,2744.64,AMS Care Wiltshire ,130764,SN4 ,Community Services,Placement Block Cont,Adult Care Nursing Placements- Block Contract,Third Party Payments,REVENUE
Wiltshire,http://opendatacommunities.org/id/unitary-authority/wiltshire,05/02/2020,1902502572,2744.64,AMS Care Wiltshire ,130764,SN4 ,Community Services,Placement Block Cont,Adult Care Nursing Placements- Block Contract,Third Party Payments,REVENUE
Wiltshire,http://opendatacommunities.org/id/unitary-authority/wiltshire,05/02/2020,1902502573,2744.64,AMS Care Wiltshire ,130764,SN4 ,Community Services,Placement Block Cont,Adult Care Nursing Placements- Block Contract,Third Party Payments,REVENUE
Wiltshire,http://opendatacommunities.org/id/unitary-authority/wiltshire,05/02/2020,1902502574,2744.64,AMS Care Wiltshire ,130764,SN4 ,Community Services,Placement Block Cont,Adult Care Nursing Placements- Block Contract,Third Party Payments,REVENUE
Wiltshire,http://opendatacommunities.org/id/unitary-authority/wiltshire,05/02/2020,1902502575,2744.64,AMS Care Wiltshire ,130764,SN4 ,Community Services,South Care Packages,Adult Care Nursing Placements - Spot,Third Party Payments,REVENUE
Wiltshire,http://opendatacommunities.org/id/unitary-authority/wiltshire,05/02/2020,1902502576,2603,AMS Care Wiltshire ,130764,SN4 ,Community Services,Adult Care Gross Loa,Adult Care Nursing Placements - Spot,Third Party Payments,REVENUE
Wiltshire,http://opendatacommunities.org/id/unitary-authority/wiltshire,05/02/2020,1902502577,2744.64,AMS Care Wiltshire ,130764,SN4 ,Community Services,Adult Care Gross Loa,Adult Care Nursing Placements - Spot,Third Party Payments,REVENUE
Wiltshire,http://opendatacommunities.org/id/unitary-authority/wiltshire,05/02/2020,1902502578,2525.28,AMS Care Wiltshire ,130764,SN4 ,Community Services,Placement Block Cont,Adult Care Nursing Placements- Block Contract,Third Party Payments,REVENUE
Wiltshire,http://opendatacommunities.org/id/unitary-authority/wiltshire,05/02/2020,1902502579,2525.28,AMS Care Wiltshire ,130764,SN4 ,Community Services,Placement Block Cont,Adult Care Nursing Placements- Block Contract,Third Party Payments,REVENUE
Wiltshire,http://opendatacommunities.org/id/unitary-authority/wiltshire,05/02/2020,1902502580,2525.28,AMS Care Wiltshire ,130764,SN4 ,Community Services,Placement Block Cont,Adult Care Nursing Placements- Block Contract,Third Party Payments,REVENUE
Wiltshire,http://opendatacommunities.org/id/unitary-authority/wiltshire,05/02/2020,1902502581,2525.28,AMS Care Wiltshire ,130764,SN4 ,Community Services,Placement Block Cont,Adult Care Nursing Placements- Block Contract,Third Party Payments,REVENUE
Wiltshire,http://opendatacommunities.org/id/unitary-authority/wiltshire,05/02/2020,1902502582,2525.28,AMS Care Wiltshire ,130764,SN4 ,Community Services,Placement Block Cont,Adult Care Nursing Placements- Block Contract,Third Party Payments,REVENUE
Wiltshire,http://opendatacommunities.org/id/unitary-authority/wiltshire,05/02/2020,1902502583,2525.28,AMS Care Wiltshire ,130764,SN4 ,Community Services,Placement Block Cont,Adult Care Nursing Placements- Block Contract,Third Party Payments,REVENUE
Wiltshire,http://opendatacommunities.org/id/unitary-authority/wiltshire,05/02/2020,1902502584,2525.28,AMS Care Wiltshire ,130764,SN4 ,Community Services,North Care Packages,Adult Care Nursing Placements - Spot,Third Party Payments,REVENUE
Wiltshire,http://opendatacommunities.org/id/unitary-authority/wiltshire,05/02/2020,1902502585,3312.96,AMS Care Wiltshire ,130764,SN4 ,Community Services,North Care Packages,Adult Residential Placements - Spot Purchase,Third Party Payments,REVENUE
Wiltshire,http://opendatacommunities.org/id/unitary-authority/wiltshire,05/02/2020,5107402727,18019.4,AMS Care Wiltshire ,130764,SN4 ,Community Services,BCF-Intermediate Cr,Adult Care Nursing Placements- Block Contract,Third Party Payments,REVENUE
Wiltshire,http://opendatacommunities.org/id/unitary-authority/wiltshire,28/02/2020,5107404893,18019.4,AMS Care Wiltshire ,130764,SN4 ,Community Services,BCF-Intermediate Cr,Adult Care Nursing Placements- Block Contract,Third Party Payments,REVENUE
Wiltshire,http://opendatacommunities.org/id/unitary-authority/wiltshire,05/02/2020,1902504328,6000,Andover Nursing Home ,110142,SP10,Community Services,MH AOWA South Locali,Adult Care Nursing Placements - Spot,Third Party Payments,REVENUE
Wiltshire,http://opendatacommunities.org/id/unitary-authority/wiltshire,10/02/2020,1902505708,533.34,Andy Taxis Limited ,100874,SP4 ,Neighbourhood & Planning,Mainstream Secondary,Transport Contracts,Third Party Payments,REVENUE
Wiltshire,http://opendatacommunities.org/id/unitary-authority/wiltshire,10/02/2020,1902505708,1066.66,Andy Taxis Limited ,100874,SP4 ,Neighbourhood & Planning,Mainstream 16+ Sec,Transport Contracts,Third Party Payments,REVENUE
Wiltshire,http://opendatacommunities.org/id/unitary-authority/wiltshire,10/02/2020,1902505502,1111.11,Andybus  and  Coach Ltd ,100132,SN16,Neighbourhood & Planning,Mainstream Primary,Transport Contracts,Third Party Payments,REVENUE
Wiltshire,http://opendatacommunities.org/id/unitary-authority/wiltshire,10/02/2020,1902505502,18171.56,Andybus  and  Coach Ltd ,100132,SN16,Neighbourhood & Planning,Mainstream Secondary,Transport Contracts,Third Party Payments,REVENUE
Wiltshire,http://opendatacommunities.org/id/unitary-authority/wiltshire,10/02/2020,1902505509,3085.16,Andybus  and  Coach Ltd ,100132,SN16,Neighbourhood & Planning,Mainstream Secondary,Transport Contracts,Third Party Payments,REVENUE
Wiltshire,http://opendatacommunities.org/id/unitary-authority/wiltshire,24/02/2020,5107404364,295.89,Antalis Limited ,122876,LE67,Resources,DesignPrintTrowbridg,Stationery,Supplies and Services,REVENUE
Wiltshire,http://opendatacommunities.org/id/unitary-authority/wiltshire,26/02/2020,1902500099,1000,Any Body can Cook ,125066,BA12,Community Services,Area Board Chippen,Area Board Grants,Supplies and Services,REVENUE
Wiltshire,http://opendatacommunities.org/id/unitary-authority/wiltshire,19/02/2020,1902514058,3535.63,Aon Limited ,113554,CF10,Neighbourhood & Planning,Asset Management,Tenants� Contents Insurance,Premises Related,REVENUE
Wiltshire,http://opendatacommunities.org/id/unitary-authority/wiltshire,14/02/2020,5107403579,1950,APA Consultants Ltd ,113361,SN10,Neighbourhood & Planning,Dev Management,Consultants Fees,Supplies and Services,REVENUE
Wiltshire,http://opendatacommunities.org/id/unitary-authority/wiltshire,19/02/2020,1902511335,4112.44,APAM Ltd re Nexus Properties ,147980,M17 ,Resources,FM Leisure Centres,Premises Rental,Premises Related,REVENUE
Wiltshire,http://opendatacommunities.org/id/unitary-authority/wiltshire,12/02/2020,1902506324,252,Apex Prime Care Ltd ,148170,SO40,Community Services,West Care Packages,Adult Domiciliary Care,Third Party Payments,REVENUE
Wiltshire,http://opendatacommunities.org/id/unitary-authority/wiltshire,12/02/2020,1902506325,514.5,Apex Prime Care Ltd ,148170,SO40,Community Services,South Care Packages,Adult Domiciliary Care,Third Party Payments,REVENUE
Wiltshire,http://opendatacommunities.org/id/unitary-authority/wiltshire,12/02/2020,1902506326,1136.1,Apex Prime Care Ltd ,148170,SO40,Community Services,West Care Packages,Adult Domiciliary Care,Third Party Payments,REVENUE
Wiltshire,http://opendatacommunities.org/id/unitary-authority/wiltshire,12/02/2020,1902506328,340.2,Apex Prime Care Ltd ,148170,SO40,Community Services,West Care Packages,Adult Domiciliary Care,Third Party Payments,REVENUE
Wiltshire,http://opendatacommunities.org/id/unitary-authority/wiltshire,12/02/2020,1902506329,349.13,Apex Prime Care Ltd ,148170,SO40,Community Services,South Care Packages,Adult Domiciliary Care,Third Party Payments,REVENUE
Wiltshire,http://opendatacommunities.org/id/unitary-authority/wiltshire,12/02/2020,1902506330,1575,Apex Prime Care Ltd ,148170,SO40,Community Services,West Care Packages,Adult Domiciliary Care,Third Party Payments,REVENUE
Wiltshire,http://opendatacommunities.org/id/unitary-authority/wiltshire,17/02/2020,1902512125,16780,Appletree Nursery 1026 ,110163,SN11,Children & Education,Free Enttlmnt 3 & 4y,Childcare Free Entitlement Early Years,Supplies and Services,REVENUE
Wiltshire,http://opendatacommunities.org/id/unitary-authority/wiltshire,17/02/2020,1902512126,2926,Appletree Nursery 1026 ,110163,SN11,Children & Education,Free Entitlement 2 Y,Childcare Free Entitlement Early Years,Supplies and Services,REVENUE
Wiltshire,http://opendatacommunities.org/id/unitary-authority/wiltshire,17/02/2020,5107403791,4320,Apricot Learning Online ,135069,GL54,Children & Education,SEN EHE & AP,Educational Fees,Supplies and Services,REVENUE
Wiltshire,http://opendatacommunities.org/id/unitary-authority/wiltshire,18/02/2020,5107403810,5800,Apricot Learning Online ,135069,GL54,Children & Education,SEN EHE & AP,Educational Fees,Supplies and Services,REVENUE
Wiltshire,http://opendatacommunities.org/id/unitary-authority/wiltshire,24/02/2020,5107402249,2135.45,APS Group ,148025,SK3 ,Resources,Customer Services,Printing,Supplies and Services,REVENUE
Wiltshire,http://opendatacommunities.org/id/unitary-authority/wiltshire,24/02/2020,5107404349,276.4,Aquaid South Coast ,110167,SO50,Neighbourhood & Planning,Amesbury,Equipment Hire,Supplies and Services,REVENUE
Wiltshire,http://opendatacommunities.org/id/unitary-authority/wiltshire,17/02/2020,5107403612,695,Aquatech Drainage Mr Chris Uden,135011,DT1 ,Wiltshire Council,Wiltshire Council,Property Maintenance,Premises Related,CAPITAL
Wiltshire,http://opendatacommunities.org/id/unitary-authority/wiltshire,05/02/2020,1902502348,3600,Arbory Residential Home ,113587,SP11,Community Services,MH OP South Locality,Adult Residential Placements - Spot Purchase,Third Party Payments,REVENUE
Wiltshire,http://opendatacommunities.org/id/unitary-authority/wiltshire,05/02/2020,1902502349,2476.99,Arbory Residential Home ,113587,SP11,Community Services,South Care Packages,Adult Residential Place - Spot Purchase,Income,REVENUE
Wiltshire,http://opendatacommunities.org/id/unitary-authority/wiltshire,05/02/2020,1902502350,3476.98,Arbory Residential Home ,113587,SP11,Community Services,South Care Packages,Adult Residential Place - Spot Purchase,Income,REVENUE
Wiltshire,http://opendatacommunities.org/id/unitary-authority/wiltshire,05/02/2020,1902502351,846.3,Arbory Residential Home ,113587,SP11,Community Services,South Care Packages,Adult Residential Place - Spot Purchase,Income,REVENUE
Wiltshire,http://opendatacommunities.org/id/unitary-authority/wiltshire,05/02/2020,1902503754,1900,Arch Care Services Ltd ,110169,BS21,Community Services,MH AOWA West Localit,Supported Living,Third Party Payments,REVENUE
Wiltshire,http://opendatacommunities.org/id/unitary-authority/wiltshire,04/02/2020,5107402512,346.22,Arco Limited ,130295,HU1 ,Neighbourhood & Planning,DLO,Equipment Purchase,Supplies and Services,REVENUE
Wiltshire,http://opendatacommunities.org/id/unitary-authority/wiltshire,19/02/2020,5107404013,456.88,Arco Limited ,130295,HU1 ,Neighbourhood & Planning,DLO,Equipment Purchase,Supplies and Services,REVENUE
Wiltshire,http://opendatacommunities.org/id/unitary-authority/wiltshire,05/02/2020,5107402782,338.14,Argos Business Solutions ,113600,MK9 ,Community Services,Bradbury Manor Resp,Furniture / Office Equipment Purchase,Supplies and Services,REVENUE
Wiltshire,http://opendatacommunities.org/id/unitary-authority/wiltshire,05/02/2020,1902503191,2175,Arliemoor Care Homes ,110174,EX22,Community Services,MH AOWA West Localit,Adult Domiciliary Care,Third Party Payments,REVENUE
Wiltshire,http://opendatacommunities.org/id/unitary-authority/wiltshire,05/02/2020,1902504329,2272,Arliemoor Care Homes ,110174,EX22,Community Services,MH AOWA West Localit,Adult Residential Placements - Spot Purchase,Third Party Payments,REVENUE
Wiltshire,http://opendatacommunities.org/id/unitary-authority/wiltshire,05/02/2020,1902504330,2859.36,Arliemoor Care Homes ,110174,EX22,Community Services,MH AOWA South Locali,Adult Residential Placements - Spot Purchase,Third Party Payments,REVENUE
Wiltshire,http://opendatacommunities.org/id/unitary-authority/wiltshire,05/02/2020,1902504331,4977.6,Arliemoor Care Homes ,110174,EX22,Community Services,MH AOWA West Localit,Adult Residential Placements - Spot Purchase,Third Party Payments,REVENUE
Wiltshire,http://opendatacommunities.org/id/unitary-authority/wiltshire,10/02/2020,1902505788,1047.36,Arrow Care Services Ltd ,146643,SN12,Community Services,MH AOWA West Localit,Adult Domiciliary Care,Third Party Payments,REVENUE
Wiltshire,http://opendatacommunities.org/id/unitary-authority/wiltshire,10/02/2020,1902505790,1309.2,Arrow Care Services Ltd ,146643,SN12,Community Services,MH AOWA West Localit,Adult Domiciliary Care,Third Party Payments,REVENUE
Wiltshire,http://opendatacommunities.org/id/unitary-authority/wiltshire,10/02/2020,1902505791,1047.36,Arrow Care Services Ltd ,146643,SN12,Community Services,MH AOWA West Localit,Adult Domiciliary Care,Third Party Payments,REVENUE
Wiltshire,http://opendatacommunities.org/id/unitary-authority/wiltshire,10/02/2020,1902505792,2671.76,Arrow Care Services Ltd ,146643,SN12,Community Services,West Care Packages,Adult Domiciliary Care,Third Party Payments,REVENUE
Wiltshire,http://opendatacommunities.org/id/unitary-authority/wiltshire,10/02/2020,1902505793,767.32,Arrow Care Services Ltd ,146643,SN12,Community Services,West Care Packages,Adult Domiciliary Care Contribution,Income,REVENUE
Wiltshire,http://opendatacommunities.org/id/unitary-authority/wiltshire,10/02/2020,1902505794,412.16,Arrow Care Services Ltd ,146643,SN12,Community Services,West Care Packages,Adult Domiciliary Care,Third Party Payments,REVENUE
Wiltshire,http://opendatacommunities.org/id/unitary-authority/wiltshire,10/02/2020,1902505795,1795.08,Arrow Care Services Ltd ,146643,SN12,Community Services,West Care Packages,Adult Domiciliary Care,Third Party Payments,REVENUE
Wiltshire,http://opendatacommunities.org/id/unitary-authority/wiltshire,10/02/2020,1902505797,1236.48,Arrow Care Services Ltd ,146643,SN12,Community Services,West Care Packages,Adult Domiciliary Care,Third Party Payments,REVENUE
Wiltshire,http://opendatacommunities.org/id/unitary-authority/wiltshire,10/02/2020,1902505880,397.44,Arrow Care Services Ltd ,146643,SN12,Community Services,MH OP West Locality,Adult Domiciliary Care,Third Party Payments,REVENUE
Wiltshire,http://opendatacommunities.org/id/unitary-authority/wiltshire,10/02/2020,1902505881,1368.2,Arrow Care Services Ltd ,146643,SN12,Community Services,West Care Packages,Adult Domiciliary Care,Third Party Payments,REVENUE
Wiltshire,http://opendatacommunities.org/id/unitary-authority/wiltshire,10/02/2020,1902505882,501.86,Arrow Care Services Ltd ,146643,SN12,Community Services,MH AOWA West Localit,Adult Domiciliary Care,Third Party Payments,REVENUE
Wiltshire,http://opendatacommunities.org/id/unitary-authority/wiltshire,10/02/2020,1902505883,780.16,Arrow Care Services Ltd ,146643,SN12,Community Services,West Care Packages,Adult Domiciliary Care,Third Party Payments,REVENUE
Wiltshire,http://opendatacommunities.org/id/unitary-authority/wiltshire,12/02/2020,1902506318,448.77,Arrow Care Services Ltd ,146643,SN12,Community Services,West Care Packages,Adult Domiciliary Care,Third Party Payments,REVENUE
Wiltshire,http://opendatacommunities.org/id/unitary-authority/wiltshire,12/02/2020,1902506319,261.84,Arrow Care Services Ltd ,146643,SN12,Community Services,MH AOWA West Localit,Adult Domiciliary Care,Third Party Payments,REVENUE
Wiltshire,http://opendatacommunities.org/id/unitary-authority/wiltshire,12/02/2020,1902506320,668.79,Arrow Care Services Ltd ,146643,SN12,Community Services,West Care Packages,Adult Domiciliary Care Contribution,Income,REVENUE
Wiltshire,http://opendatacommunities.org/id/unitary-authority/wiltshire,14/02/2020,1902511693,343.81,Asda Pharmacy ,137247,SN12,Neighbourhood & Planning,Smoking-Mgt & Commss,Public Health Commissioning,Supplies and Services,REVENUE
Wiltshire,http://opendatacommunities.org/id/unitary-authority/wiltshire,05/02/2020,1902504596,2940.64,Ashbourne Court Care Home ,133906,SP10,Community Services,South Care Packages,Adult Care Nursing Placements - Spot,Third Party Payments,REVENUE
Wiltshire,http://opendatacommunities.org/id/unitary-authority/wiltshire,04/02/2020,1902501428,3896.88,Ashness Care ,143773,N15 ,Community Services,MH AOWA N&E Locality,Adult Residential Placements - Spot Purchase,Third Party Payments,REVENUE
Wiltshire,http://opendatacommunities.org/id/unitary-authority/wiltshire,17/02/2020,1902512033,4296.6,Ashton Keynes Playgroup 249 ,110188,SN6 ,Children & Education,Free Enttlmnt 3 & 4y,Childcare Free Entitlement Early Years,Supplies and Services,REVENUE
Wiltshire,http://opendatacommunities.org/id/unitary-authority/wiltshire,17/02/2020,1902512034,425.6,Ashton Keynes Playgroup 249 ,110188,SN6 ,Children & Education,Free Entitlement 2 Y,Childcare Free Entitlement Early Years,Supplies and Services,REVENUE
Wiltshire,http://opendatacommunities.org/id/unitary-authority/wiltshire,05/02/2020,1902502664,1841.76,Ashton Manor Nursing Home ,139060,GU10,Community Services,South Care Packages,Adult Care Nursing Placements - Spot,Third Party Payments,REVENUE
Wiltshire,http://opendatacommunities.org/id/unitary-authority/wiltshire,10/02/2020,1902494714,3809.57,Askews & Holts Library Services Ltd ,101034,PR1 ,Community Services,Libraries,Books & Publications,Supplies and Services,REVENUE
Wiltshire,http://opendatacommunities.org/id/unitary-authority/wiltshire,24/02/2020,1902500131,396.32,Askews & Holts Library Services Ltd ,101034,PR1 ,Community Services,Erlestoke Library,Books & Publications,Supplies and Services,REVENUE
Wiltshire,http://opendatacommunities.org/id/unitary-authority/wiltshire,24/02/2020,1902500131,6049.87,Askews & Holts Library Services Ltd ,101034,PR1 ,Community Services,Libraries,Books & Publications,Supplies and Services,REVENUE
Wiltshire,http://opendatacommunities.org/id/unitary-authority/wiltshire,04/02/2020,5107401902,1790,Asphalt Recycling UK Ltd ,149290,SN26,Neighbourhood & Planning,Off Street Parking,Property Maintenance,Premises Related,REVENUE
Wiltshire,http://opendatacommunities.org/id/unitary-authority/wiltshire,24/02/2020,5107403779,1590,Asphalt Recycling UK Ltd ,149290,SN26,Neighbourhood & Planning,Off Street Parking,Property Maintenance,Premises Related,REVENUE
Wiltshire,http://opendatacommunities.org/id/unitary-authority/wiltshire,18/02/2020,5107403830,490,Asphalt Recycling UK Ltd ,149290,SN26,Neighbourhood & Planning,Off Street Parking,Property Maintenance,Premises Related,REVENUE
Wiltshire,http://opendatacommunities.org/id/unitary-authority/wiltshire,18/02/2020,5107403844,390,Asphalt Recycling UK Ltd ,149290,SN26,Neighbourhood & Planning,Off Street Parking,Property Maintenance,Premises Related,REVENUE
Wiltshire,http://opendatacommunities.org/id/unitary-authority/wiltshire,18/02/2020,5107403846,750,Asphalt Recycling UK Ltd ,149290,SN26,Neighbourhood & Planning,Off Street Parking,Property Maintenance,Premises Related,REVENUE
Wiltshire,http://opendatacommunities.org/id/unitary-authority/wiltshire,28/02/2020,5107404564,6773,Asphalt Recycling UK Ltd ,149290,SN26,Neighbourhood & Planning,Off Street Parking,Property Maintenance,Premises Related,REVENUE
Wiltshire,http://opendatacommunities.org/id/unitary-authority/wiltshire,05/02/2020,1902504187,1140,Aspire Taxis ,101274,SP2 ,Neighbourhood & Planning,SEN Secondary Tspt,Transport Contracts,Third Party Payments,REVENUE
Wiltshire,http://opendatacommunities.org/id/unitary-authority/wiltshire,05/02/2020,1902504188,1098,Aspire Taxis ,101274,SP2 ,Neighbourhood & Planning,SEN Secondary Tspt,Transport Contracts,Third Party Payments,REVENUE
Wiltshire,http://opendatacommunities.org/id/unitary-authority/wiltshire,05/02/2020,1902504189,1200,Aspire Taxis ,101274,SP2 ,Neighbourhood & Planning,SEN Primary Transprt,Transport Contracts,Third Party Payments,REVENUE
Wiltshire,http://opendatacommunities.org/id/unitary-authority/wiltshire,05/02/2020,1902504190,1330,Aspire Taxis ,101274,SP2 ,Neighbourhood & Planning,Mainstream Primary,Transport Contracts,Third Party Payments,REVENUE
Wiltshire,http://opendatacommunities.org/id/unitary-authority/wiltshire,05/02/2020,1902504191,845.5,Aspire Taxis ,101274,SP2 ,Neighbourhood & Planning,SEN Primary Transprt,Transport Contracts,Third Party Payments,REVENUE
Wiltshire,http://opendatacommunities.org/id/unitary-authority/wiltshire,05/02/2020,1902504191,845.5,Aspire Taxis ,101274,SP2 ,Neighbourhood & Planning,SEN Secondary Tspt,Transport Contracts,Third Party Payments,REVENUE
Wiltshire,http://opendatacommunities.org/id/unitary-authority/wiltshire,05/02/2020,1902504192,646,Aspire Taxis ,101274,SP2 ,Neighbourhood & Planning,SEN Primary Transprt,Transport Contracts,Third Party Payments,REVENUE
Wiltshire,http://opendatacommunities.org/id/unitary-authority/wiltshire,05/02/2020,1902504192,646,Aspire Taxis ,101274,SP2 ,Neighbourhood & Planning,SEN Secondary Tspt,Transport Contracts,Third Party Payments,REVENUE
Wiltshire,http://opendatacommunities.org/id/unitary-authority/wiltshire,05/02/2020,1902504193,1804.04,Aspire Taxis ,101274,SP2 ,Neighbourhood & Planning,SEN Primary Transprt,Transport Contracts,Third Party Payments,REVENUE
Wiltshire,http://opendatacommunities.org/id/unitary-authority/wiltshire,05/02/2020,1902504193,1804.06,Aspire Taxis ,101274,SP2 ,Neighbourhood & Planning,SEN Secondary Tspt,Transport Contracts,Third Party Payments,REVENUE
Wiltshire,http://opendatacommunities.org/id/unitary-authority/wiltshire,05/02/2020,1902504194,973.75,Aspire Taxis ,101274,SP2 ,Neighbourhood & Planning,SEN Secondary Tspt,Transport Contracts,Third Party Payments,REVENUE
Wiltshire,http://opendatacommunities.org/id/unitary-authority/wiltshire,05/02/2020,1902504194,2921.25,Aspire Taxis ,101274,SP2 ,Neighbourhood & Planning,SEN Primary Transprt,Transport Contracts,Third Party Payments,REVENUE
Wiltshire,http://opendatacommunities.org/id/unitary-authority/wiltshire,05/02/2020,1902504195,1311,Aspire Taxis ,101274,SP2 ,Neighbourhood & Planning,SEN Primary Transprt,Transport Contracts,Third Party Payments,REVENUE
Wiltshire,http://opendatacommunities.org/id/unitary-authority/wiltshire,05/02/2020,1902504196,1613.1,Aspire Taxis ,101274,SP2 ,Neighbourhood & Planning,SEN Secondary Tspt,Transport Contracts,Third Party Payments,REVENUE
Wiltshire,http://opendatacommunities.org/id/unitary-authority/wiltshire,05/02/2020,1902504197,580,Aspire Taxis ,101274,SP2 ,Neighbourhood & Planning,SEN Primary Transprt,Transport Contracts,Third Party Payments,REVENUE
Wiltshire,http://opendatacommunities.org/id/unitary-authority/wiltshire,05/02/2020,1902504198,2100,Aspire Taxis ,101274,SP2 ,Neighbourhood & Planning,SEN Secondary Tspt,Transport Contracts,Third Party Payments,REVENUE
Wiltshire,http://opendatacommunities.org/id/unitary-authority/wiltshire,05/02/2020,1902504199,1424.81,Aspire Taxis ,101274,SP2 ,Neighbourhood & Planning,SEN Secondary Tspt,Transport Contracts,Third Party Payments,REVENUE
Wiltshire,http://opendatacommunities.org/id/unitary-authority/wiltshire,05/02/2020,1902504200,1580,Aspire Taxis ,101274,SP2 ,Neighbourhood & Planning,SEN Secondary Tspt,Transport Contracts,Third Party Payments,REVENUE
Wiltshire,http://opendatacommunities.org/id/unitary-authority/wiltshire,05/02/2020,1902504202,1200,Aspire Taxis ,101274,SP2 ,Neighbourhood & Planning,SEN Primary Transprt,Transport Contracts,Third Party Payments,REVENUE
Wiltshire,http://opendatacommunities.org/id/unitary-authority/wiltshire,05/02/2020,1902504203,900,Aspire Taxis ,101274,SP2 ,Neighbourhood & Planning,Mainstream Primary,Transport Contracts,Third Party Payments,REVENUE
Wiltshire,http://opendatacommunities.org/id/unitary-authority/wiltshire,05/02/2020,1902504204,2200,Aspire Taxis ,101274,SP2 ,Neighbourhood & Planning,Mainstream Primary,Transport Contracts,Third Party Payments,REVENUE
Wiltshire,http://opendatacommunities.org/id/unitary-authority/wiltshire,05/02/2020,1902504205,880,Aspire Taxis ,101274,SP2 ,Community Services,CTPLD Placements,Transport Contracts,Third Party Payments,REVENUE
Wiltshire,http://opendatacommunities.org/id/unitary-authority/wiltshire,05/02/2020,1902504206,1760,Aspire Taxis ,101274,SP2 ,Community Services,CTPLD Placements,Transport Contracts,Third Party Payments,REVENUE
Wiltshire,http://opendatacommunities.org/id/unitary-authority/wiltshire,05/02/2020,1902504207,277.08,Aspire Taxis ,101274,SP2 ,Neighbourhood & Planning,Mainstream Secondary,Transport Contracts,Third Party Payments,REVENUE
Wiltshire,http://opendatacommunities.org/id/unitary-authority/wiltshire,05/02/2020,1902504207,3047.92,Aspire Taxis ,101274,SP2 ,Neighbourhood & Planning,Mainstream Primary,Transport Contracts,Third Party Payments,REVENUE
Wiltshire,http://opendatacommunities.org/id/unitary-authority/wiltshire,05/02/2020,1902504208,1615,Aspire Taxis ,101274,SP2 ,Neighbourhood & Planning,Mainstream Primary,Transport Contracts,Third Party Payments,REVENUE
Wiltshire,http://opendatacommunities.org/id/unitary-authority/wiltshire,05/02/2020,1902504209,800,Aspire Taxis ,101274,SP2 ,Neighbourhood & Planning,Mainstream Secondary,Transport Contracts,Third Party Payments,REVENUE
Wiltshire,http://opendatacommunities.org/id/unitary-authority/wiltshire,05/02/2020,1902504210,665,Aspire Taxis ,101274,SP2 ,Neighbourhood & Planning,Mainstream Primary,Transport Contracts,Third Party Payments,REVENUE
Wiltshire,http://opendatacommunities.org/id/unitary-authority/wiltshire,05/02/2020,1902504211,495,Aspire Taxis ,101274,SP2 ,Community Services,CTPLD Placements,Transport Contracts,Third Party Payments,REVENUE
Wiltshire,http://opendatacommunities.org/id/unitary-authority/wiltshire,05/02/2020,1902504212,386.67,Aspire Taxis ,101274,SP2 ,Neighbourhood & Planning,Mainstream Secondary,Transport Contracts,Third Party Payments,REVENUE
Wiltshire,http://opendatacommunities.org/id/unitary-authority/wiltshire,05/02/2020,1902504212,773.33,Aspire Taxis ,101274,SP2 ,Neighbourhood & Planning,SEN Secondary Tspt,Transport Contracts,Third Party Payments,REVENUE
Wiltshire,http://opendatacommunities.org/id/unitary-authority/wiltshire,05/02/2020,1902504213,853.1,Aspire Taxis ,101274,SP2 ,Neighbourhood & Planning,Mainstream Primary,Transport Contracts,Third Party Payments,REVENUE
Wiltshire,http://opendatacommunities.org/id/unitary-authority/wiltshire,05/02/2020,1902504214,900,Aspire Taxis ,101274,SP2 ,Neighbourhood & Planning,SEN Primary Transprt,Transport Contracts,Third Party Payments,REVENUE
Wiltshire,http://opendatacommunities.org/id/unitary-authority/wiltshire,05/02/2020,1902504216,360,Aspire Taxis ,101274,SP2 ,Community Services,CTPLD Placements,Transport Contracts,Third Party Payments,REVENUE
Wiltshire,http://opendatacommunities.org/id/unitary-authority/wiltshire,18/02/2020,1902513726,970,Aspire Taxis ,101274,SP2 ,Neighbourhood & Planning,SEN Primary Transprt,Transport Contracts,Third Party Payments,REVENUE
Wiltshire,http://opendatacommunities.org/id/unitary-authority/wiltshire,18/02/2020,1902513740,2910,Aspire Taxis ,101274,SP2 ,Neighbourhood & Planning,SEN Primary Transprt,Transport Contracts,Third Party Payments,REVENUE
Wiltshire,http://opendatacommunities.org/id/unitary-authority/wiltshire,21/02/2020,1902515136,1698,Aspire Taxis ,101274,SP2 ,Neighbourhood & Planning,SEN 16+ Transport,Transport Contracts,Third Party Payments,REVENUE
Wiltshire,http://opendatacommunities.org/id/unitary-authority/wiltshire,05/02/2020,1902502787,1739.57,Assured Healthcare Solutions Ltd ,149399,CV23,Community Services,MH AOWA N&E Locality,Adult Care Nursing Placements - Spot,Third Party Payments,REVENUE
Wiltshire,http://opendatacommunities.org/id/unitary-authority/wiltshire,05/02/2020,1902502788,1948.32,Assured Healthcare Solutions Ltd ,149399,CV23,Community Services,MH AOWA N&E Locality,Adult Care Nursing Placements - Spot,Third Party Payments,REVENUE
Wiltshire,http://opendatacommunities.org/id/unitary-authority/wiltshire,05/02/2020,1902502789,1948.32,Assured Healthcare Solutions Ltd ,149399,CV23,Community Services,MH AOWA N&E Locality,Adult Care Nursing Placements - Spot,Third Party Payments,REVENUE
Wiltshire,http://opendatacommunities.org/id/unitary-authority/wiltshire,05/02/2020,1902502790,1948.32,Assured Healthcare Solutions Ltd ,149399,CV23,Community Services,MH AOWA N&E Locality,Adult Care Nursing Placements - Spot,Third Party Payments,REVENUE
Wiltshire,http://opendatacommunities.org/id/unitary-authority/wiltshire,05/02/2020,1902502791,1948.32,Assured Healthcare Solutions Ltd ,149399,CV23,Community Services,MH AOWA N&E Locality,Adult Care Nursing Placements - Spot,Third Party Payments,REVENUE
Wiltshire,http://opendatacommunities.org/id/unitary-authority/wiltshire,17/02/2020,1902512455,10769.5,Atelier Nursery Ltd ,145940,SN15,Children & Education,Free Enttlmnt 3 & 4y,Childcare Free Entitlement Early Years,Supplies and Services,REVENUE
Wiltshire,http://opendatacommunities.org/id/unitary-authority/wiltshire,17/02/2020,1902512456,1463,Atelier Nursery Ltd ,145940,SN15,Children & Education,Free Entitlement 2 Y,Childcare Free Entitlement Early Years,Supplies and Services,REVENUE
Wiltshire,http://opendatacommunities.org/id/unitary-authority/wiltshire,04/02/2020,1902501459,5440,Atfield House Care Home ,148400,TW7 ,Community Services,South Care Packages,Adult Residential Placements - Spot Purchase,Third Party Payments,REVENUE
Wiltshire,http://opendatacommunities.org/id/unitary-authority/wiltshire,14/02/2020,1902511671,1295,Atkins Ltd ,110197,KT18,Wiltshire Council,Wiltshire Council,Highways Contracts,Third Party Payments,CAPITAL
Wiltshire,http://opendatacommunities.org/id/unitary-authority/wiltshire,14/02/2020,1902511671,4000,Atkins Ltd ,110197,KT18,Neighbourhood & Planning,Transport Plan & DC,Highways Contracts,Third Party Payments,REVENUE
Wiltshire,http://opendatacommunities.org/id/unitary-authority/wiltshire,14/02/2020,1902511671,6126.58,Atkins Ltd ,110197,KT18,Neighbourhood & Planning,RTPI,Highways Contracts,Third Party Payments,REVENUE
Wiltshire,http://opendatacommunities.org/id/unitary-authority/wiltshire,14/02/2020,1902511671,6531,Atkins Ltd ,110197,KT18,Neighbourhood & Planning,Traffic Signal Mtc,Highways Contracts,Third Party Payments,REVENUE
Wiltshire,http://opendatacommunities.org/id/unitary-authority/wiltshire,14/02/2020,1902511671,10500,Atkins Ltd ,110197,KT18,Wiltshire Council,Wiltshire Council,Highways Contracts,Third Party Payments,CAPITAL
Wiltshire,http://opendatacommunities.org/id/unitary-authority/wiltshire,14/02/2020,1902511671,11407.75,Atkins Ltd ,110197,KT18,Wiltshire Council,Wiltshire Council,Highways Contracts,Third Party Payments,CAPITAL
Wiltshire,http://opendatacommunities.org/id/unitary-authority/wiltshire,14/02/2020,1902511671,18155.5,Atkins Ltd ,110197,KT18,Neighbourhood & Planning,Street Lighting,Highways Contracts,Third Party Payments,REVENUE
Wiltshire,http://opendatacommunities.org/id/unitary-authority/wiltshire,14/02/2020,1902511671,19117.56,Atkins Ltd ,110197,KT18,Wiltshire Council,Wiltshire Council,Highways Contracts,Third Party Payments,CAPITAL
Wiltshire,http://opendatacommunities.org/id/unitary-authority/wiltshire,14/02/2020,1902511671,120263.1,Atkins Ltd ,110197,KT18,Wiltshire Council,Wiltshire Council,Highways Contracts,Third Party Payments,CAPITAL
Wiltshire,http://opendatacommunities.org/id/unitary-authority/wiltshire,25/02/2020,1902515464,500,Atkins Ltd ,110197,KT18,Wiltshire Council,Wiltshire Council,Highways Contracts,Third Party Payments,CAPITAL
Wiltshire,http://opendatacommunities.org/id/unitary-authority/wiltshire,25/02/2020,1902515464,1017.75,Atkins Ltd ,110197,KT18,Wiltshire Council,Wiltshire Council,Highways Contracts,Third Party Payments,CAPITAL
Wiltshire,http://opendatacommunities.org/id/unitary-authority/wiltshire,25/02/2020,1902515464,1414.5,Atkins Ltd ,110197,KT18,Wiltshire Council,Wiltshire Council,Highways Contracts,Third Party Payments,CAPITAL
Wiltshire,http://opendatacommunities.org/id/unitary-authority/wiltshire,25/02/2020,1902515464,1450,Atkins Ltd ,110197,KT18,Wiltshire Council,Wiltshire Council,Highways Contracts,Third Party Payments,CAPITAL
Wiltshire,http://opendatacommunities.org/id/unitary-authority/wiltshire,25/02/2020,1902515464,2296.11,Atkins Ltd ,110197,KT18,Wiltshire Council,Wiltshire Council,Highways Contracts,Third Party Payments,CAPITAL
Wiltshire,http://opendatacommunities.org/id/unitary-authority/wiltshire,25/02/2020,1902515464,2396.47,Atkins Ltd ,110197,KT18,Wiltshire Council,Wiltshire Council,Highways Contracts,Third Party Payments,CAPITAL
Wiltshire,http://opendatacommunities.org/id/unitary-authority/wiltshire,25/02/2020,1902515464,2815.25,Atkins Ltd ,110197,KT18,Neighbourhood & Planning,Bridge Routine Mtc,Highways Contracts,Third Party Payments,REVENUE
Wiltshire,http://opendatacommunities.org/id/unitary-authority/wiltshire,25/02/2020,1902515464,2930,Atkins Ltd ,110197,KT18,Wiltshire Council,Wiltshire Council,Highways Contracts,Third Party Payments,CAPITAL
Wiltshire,http://opendatacommunities.org/id/unitary-authority/wiltshire,25/02/2020,1902515464,3087.75,Atkins Ltd ,110197,KT18,Neighbourhood & Planning,Highw Hedges & Trees,Highways Contracts,Third Party Payments,REVENUE
Wiltshire,http://opendatacommunities.org/id/unitary-authority/wiltshire,25/02/2020,1902515464,4550,Atkins Ltd ,110197,KT18,Wiltshire Council,Wiltshire Council,Highways Contracts,Third Party Payments,CAPITAL
Wiltshire,http://opendatacommunities.org/id/unitary-authority/wiltshire,25/02/2020,1902515464,6126.58,Atkins Ltd ,110197,KT18,Neighbourhood & Planning,RTPI,Highways Contracts,Third Party Payments,REVENUE
Wiltshire,http://opendatacommunities.org/id/unitary-authority/wiltshire,25/02/2020,1902515464,6410,Atkins Ltd ,110197,KT18,Wiltshire Council,Wiltshire Council,Highways Contracts,Third Party Payments,CAPITAL
Wiltshire,http://opendatacommunities.org/id/unitary-authority/wiltshire,25/02/2020,1902515464,8754.09,Atkins Ltd ,110197,KT18,Wiltshire Council,Wiltshire Council,Highways Contracts,Third Party Payments,CAPITAL
Wiltshire,http://opendatacommunities.org/id/unitary-authority/wiltshire,25/02/2020,1902515464,9566.57,Atkins Ltd ,110197,KT18,Wiltshire Council,Wiltshire Council,Highways Contracts,Third Party Payments,CAPITAL
Wiltshire,http://opendatacommunities.org/id/unitary-authority/wiltshire,25/02/2020,1902515464,12714,Atkins Ltd ,110197,KT18,Neighbourhood & Planning,Traffic Signal Mtc,Highways Contracts,Third Party Payments,REVENUE
Wiltshire,http://opendatacommunities.org/id/unitary-authority/wiltshire,25/02/2020,1902515464,12799.5,Atkins Ltd ,110197,KT18,Wiltshire Council,Wiltshire Council,Highways Contracts,Third Party Payments,CAPITAL
Wiltshire,http://opendatacommunities.org/id/unitary-authority/wiltshire,25/02/2020,1902515464,17045.62,Atkins Ltd ,110197,KT18,Wiltshire Council,Wiltshire Council,Highways Contracts,Third Party Payments,CAPITAL
Wiltshire,http://opendatacommunities.org/id/unitary-authority/wiltshire,25/02/2020,1902515464,22919,Atkins Ltd ,110197,KT18,Neighbourhood & Planning,Street Lighting,Highways Contracts,Third Party Payments,REVENUE
Wiltshire,http://opendatacommunities.org/id/unitary-authority/wiltshire,25/02/2020,1902515464,28429.17,Atkins Ltd ,110197,KT18,Wiltshire Council,Wiltshire Council,Highways Contracts,Third Party Payments,CAPITAL
Wiltshire,http://opendatacommunities.org/id/unitary-authority/wiltshire,25/02/2020,1902515464,269706.54,Atkins Ltd ,110197,KT18,Wiltshire Council,Wiltshire Council,Highways Contracts,Third Party Payments,CAPITAL
Wiltshire,http://opendatacommunities.org/id/unitary-authority/wiltshire,25/02/2020,1902515464,304890.26,Atkins Ltd ,110197,KT18,Wiltshire Council,Wiltshire Council,Highways Contracts,Third Party Payments,CAPITAL
Wiltshire,http://opendatacommunities.org/id/unitary-authority/wiltshire,06/02/2020,5107402855,2856.21,Atkins Ltd ,110197,KT18,Wiltshire Council,Wiltshire Council,Consultants Fees,Supplies and Services,CAPITAL
Wiltshire,http://opendatacommunities.org/id/unitary-authority/wiltshire,20/02/2020,1902514381,2978.14,Ats Euromaster Ltd ,113709,B6 5,Neighbourhood & Planning,Fleet,Vehicle Tyres,Transport Related,REVENUE
Wiltshire,http://opendatacommunities.org/id/unitary-authority/wiltshire,04/02/2020,1902501395,6801.2,Autism Care Wiltshire ,136507,SN25,Community Services,CTPLD Placements,Adult Residential Placements - Spot Purchase,Third Party Payments,REVENUE
Wiltshire,http://opendatacommunities.org/id/unitary-authority/wiltshire,04/02/2020,1902501162,6007.4,Autism Specialised care Homes ,110205,BS10,Community Services,CTPLD Placements,Adult Residential Placements - Spot Purchase,Third Party Payments,REVENUE
Wiltshire,http://opendatacommunities.org/id/unitary-authority/wiltshire,04/02/2020,1902501163,7332.32,Autism West Midlands ,110206,WR9 ,Community Services,CTPLD Placements,Adult Residential Placements - Spot Purchase,Third Party Payments,REVENUE
Wiltshire,http://opendatacommunities.org/id/unitary-authority/wiltshire,07/02/2020,5107401950,321.21,Automotive Leasing Ltd ,113729,SL1 ,Neighbourhood & Planning,Fleet,Vehicle Hire,Transport Related,REVENUE
Wiltshire,http://opendatacommunities.org/id/unitary-authority/wiltshire,10/02/2020,1902505863,589.44,Autonomy Care Limited ,126128,SN12,Community Services,West Care Packages,Supported Living,Third Party Payments,REVENUE
Wiltshire,http://opendatacommunities.org/id/unitary-authority/wiltshire,18/02/2020,1902513632,436,Autonomy Care Limited ,126128,SN12,Community Services,North Care Packages,Adult Domiciliary Care,Third Party Payments,REVENUE
Wiltshire,http://opendatacommunities.org/id/unitary-authority/wiltshire,21/02/2020,1902515105,13315.31,Autonomy Care Limited ,126128,SN12,Community Services,CTPLD Placements,Supported Living,Third Party Payments,REVENUE
Wiltshire,http://opendatacommunities.org/id/unitary-authority/wiltshire,21/02/2020,1902515106,2159.76,Autonomy Care Limited ,126128,SN12,Community Services,CTPLD Placements,Supported Living,Third Party Payments,REVENUE
Wiltshire,http://opendatacommunities.org/id/unitary-authority/wiltshire,21/02/2020,1902515107,2523.96,Autonomy Care Limited ,126128,SN12,Community Services,CTPLD Placements,Supported Living,Third Party Payments,REVENUE
Wiltshire,http://opendatacommunities.org/id/unitary-authority/wiltshire,21/02/2020,1902515108,264.75,Autonomy Care Limited ,126128,SN12,Community Services,CTPLD Placements,Supported Living,Third Party Payments,REVENUE
Wiltshire,http://opendatacommunities.org/id/unitary-authority/wiltshire,21/02/2020,1902515109,729.62,Autonomy Care Limited ,126128,SN12,Community Services,North Care Packages,Supported Living Contribution,Income,REVENUE
Wiltshire,http://opendatacommunities.org/id/unitary-authority/wiltshire,21/02/2020,1902515110,571.51,Autonomy Care Limited ,126128,SN12,Community Services,West Care Packages,Supported Living,Third Party Payments,REVENUE
Wiltshire,http://opendatacommunities.org/id/unitary-authority/wiltshire,24/02/2020,1902515333,4608.66,Autonomy Care Limited ,126128,SN12,Community Services,CTPLD Placements,Supported Living,Third Party Payments,REVENUE
Wiltshire,http://opendatacommunities.org/id/unitary-authority/wiltshire,24/02/2020,1902515334,2539.7,Autonomy Care Limited ,126128,SN12,Community Services,CTPLD Placements,Supported Living,Third Party Payments,REVENUE
Wiltshire,http://opendatacommunities.org/id/unitary-authority/wiltshire,24/02/2020,1902515335,29131.3,Autonomy Care Limited ,126128,SN12,Community Services,CTPLD Placements,Supported Living Contribution,Income,REVENUE
Wiltshire,http://opendatacommunities.org/id/unitary-authority/wiltshire,28/02/2020,5107404936,18099.2,Autonomy Care Limited ,126128,SN12,Children & Education,0-25 extnl disabty p,Other Social & Welfare Costs,Third Party Payments,REVENUE
Wiltshire,http://opendatacommunities.org/id/unitary-authority/wiltshire,05/02/2020,1902503333,10708,Autonomy Life Ltd ,110896,SN12,Community Services,CTPLD Placements,Adult Residential Placements - Spot Purchase,Third Party Payments,REVENUE
Wiltshire,http://opendatacommunities.org/id/unitary-authority/wiltshire,05/02/2020,1902503334,16799.36,Autonomy Life Ltd ,110896,SN12,Community Services,CTPLD Placements,Adult Residential Placements - Spot Purchase,Third Party Payments,REVENUE
Wiltshire,http://opendatacommunities.org/id/unitary-authority/wiltshire,05/02/2020,1902503335,5777.64,Autonomy Life Ltd ,110896,SN12,Community Services,West Care Packages,Adult Residential Placements - Spot Purchase,Third Party Payments,REVENUE
Wiltshire,http://opendatacommunities.org/id/unitary-authority/wiltshire,05/02/2020,1902503336,6791.76,Autonomy Life Ltd ,110896,SN12,Community Services,CTPLD Placements,Adult Residential Placements - Spot Purchase,Third Party Payments,REVENUE
Wiltshire,http://opendatacommunities.org/id/unitary-authority/wiltshire,05/02/2020,1902503337,7036.92,Autonomy Life Ltd ,110896,SN12,Community Services,North Care Packages,Adult Residential Placements - Spot Purchase,Third Party Payments,REVENUE
Wiltshire,http://opendatacommunities.org/id/unitary-authority/wiltshire,05/02/2020,1902503338,7537.56,Autonomy Life Ltd ,110896,SN12,Community Services,CTPLD Placements,Adult Residential Placements - Spot Purchase,Third Party Payments,REVENUE
Wiltshire,http://opendatacommunities.org/id/unitary-authority/wiltshire,06/02/2020,5107402846,15398.13,Autonomy Plus Limited ,146109,SN12,Children & Education,0-25 extnl disabty p,Childrens Agency Placement,Third Party Payments,REVENUE
Wiltshire,http://opendatacommunities.org/id/unitary-authority/wiltshire,06/02/2020,5107402847,16112.4,Autonomy Plus Limited ,146109,SN12,Children & Education,0-25 extnl disabty p,Childrens Agency Placement,Third Party Payments,REVENUE
Wiltshire,http://opendatacommunities.org/id/unitary-authority/wiltshire,06/02/2020,5107402848,15398.13,Autonomy Plus Limited ,146109,SN12,Children & Education,0-25 extnl disabty p,Childrens Agency Placement,Third Party Payments,REVENUE
Wiltshire,http://opendatacommunities.org/id/unitary-authority/wiltshire,06/02/2020,5107402849,15398.13,Autonomy Plus Limited ,146109,SN12,Children & Education,0-25 extnl disabty p,Childrens Agency Placement,Third Party Payments,REVENUE
Wiltshire,http://opendatacommunities.org/id/unitary-authority/wiltshire,20/02/2020,1902514240,2356,Avenue Surgery ,110214,BA12,Neighbourhood & Planning,Sexual Health Commun,Public Health Commissioning,Supplies and Services,REVENUE
Wiltshire,http://opendatacommunities.org/id/unitary-authority/wiltshire,20/02/2020,1902514282,2406,Avenue Surgery ,110214,BA12,Neighbourhood & Planning,Sexual Health Commun,Public Health Commissioning,Supplies and Services,REVENUE
Wiltshire,http://opendatacommunities.org/id/unitary-authority/wiltshire,21/02/2020,1902514342,9432,Avenue Surgery ,110214,BA12,Neighbourhood & Planning,NHS Health Checks,Public Health Commissioning,Supplies and Services,REVENUE
Wiltshire,http://opendatacommunities.org/id/unitary-authority/wiltshire,05/02/2020,1902502525,2236.56,Avery Healthcare Cepen Lodge ,126733,DL1 ,Community Services,North Care Packages,Adult Residential Place - Spot Purchase,Income,REVENUE
Wiltshire,http://opendatacommunities.org/id/unitary-authority/wiltshire,05/02/2020,1902502526,798.77,Avery Healthcare Cepen Lodge ,126733,DL1 ,Community Services,North Care Packages,Adult Residential Place - Spot Purchase,Income,REVENUE
Wiltshire,http://opendatacommunities.org/id/unitary-authority/wiltshire,05/02/2020,1902502527,3104.16,Avery Healthcare Cepen Lodge ,126733,DL1 ,Community Services,North Care Packages,Adult Residential Placements - Spot Purchase,Third Party Payments,REVENUE
Wiltshire,http://opendatacommunities.org/id/unitary-authority/wiltshire,05/02/2020,1902502528,3104.16,Avery Healthcare Cepen Lodge ,126733,DL1 ,Community Services,North Care Packages,Adult Residential Placements - Spot Purchase,Third Party Payments,REVENUE
Wiltshire,http://opendatacommunities.org/id/unitary-authority/wiltshire,05/02/2020,1902502529,3104.16,Avery Healthcare Cepen Lodge ,126733,DL1 ,Community Services,North Care Packages,Adult Residential Placements - Spot Purchase,Third Party Payments,REVENUE
Wiltshire,http://opendatacommunities.org/id/unitary-authority/wiltshire,05/02/2020,1902502530,3104.16,Avery Healthcare Cepen Lodge ,126733,DL1 ,Community Services,North Care Packages,Adult Residential Placements - Spot Purchase,Third Party Payments,REVENUE
Wiltshire,http://opendatacommunities.org/id/unitary-authority/wiltshire,05/02/2020,1902502531,3104.16,Avery Healthcare Cepen Lodge ,126733,DL1 ,Community Services,North Care Packages,Adult Residential Placements - Spot Purchase,Third Party Payments,REVENUE
Wiltshire,http://opendatacommunities.org/id/unitary-authority/wiltshire,05/02/2020,1902502532,2741.48,Avery Healthcare Cepen Lodge ,126733,DL1 ,Community Services,North Care Packages,Adult Residential Placements - Spot Purchase,Third Party Payments,REVENUE
Wiltshire,http://opendatacommunities.org/id/unitary-authority/wiltshire,05/02/2020,1902502533,2741.48,Avery Healthcare Cepen Lodge ,126733,DL1 ,Community Services,North Care Packages,Adult Residential Placements - Spot Purchase,Third Party Payments,REVENUE
Wiltshire,http://opendatacommunities.org/id/unitary-authority/wiltshire,05/02/2020,1902502534,2573.8,Avery Healthcare Cepen Lodge ,126733,DL1 ,Community Services,North Care Packages,Adult Residential Placements - Spot Purchase,Third Party Payments,REVENUE
Wiltshire,http://opendatacommunities.org/id/unitary-authority/wiltshire,05/02/2020,1902502535,2573.8,Avery Healthcare Cepen Lodge ,126733,DL1 ,Community Services,North Care Packages,Adult Residential Placements - Spot Purchase,Third Party Payments,REVENUE
Wiltshire,http://opendatacommunities.org/id/unitary-authority/wiltshire,05/02/2020,1902502536,2573.8,Avery Healthcare Cepen Lodge ,126733,DL1 ,Community Services,North Care Packages,Adult Residential Placements - Spot Purchase,Third Party Payments,REVENUE
Wiltshire,http://opendatacommunities.org/id/unitary-authority/wiltshire,05/02/2020,1902502537,2573.8,Avery Healthcare Cepen Lodge ,126733,DL1 ,Community Services,MH OP N&E Locality,Adult Residential Placements - Spot Purchase,Third Party Payments,REVENUE
Wiltshire,http://opendatacommunities.org/id/unitary-authority/wiltshire,05/02/2020,1902502538,2573.8,Avery Healthcare Cepen Lodge ,126733,DL1 ,Community Services,MH OP N&E Locality,Adult Residential Placements - Spot Purchase,Third Party Payments,REVENUE
Wiltshire,http://opendatacommunities.org/id/unitary-authority/wiltshire,05/02/2020,1902502540,2573.8,Avery Healthcare Cepen Lodge ,126733,DL1 ,Community Services,MH OP N&E Locality,Adult Residential Placements - Spot Purchase,Third Party Payments,REVENUE
Wiltshire,http://opendatacommunities.org/id/unitary-authority/wiltshire,05/02/2020,1902502541,551.53,Avery Healthcare Cepen Lodge ,126733,DL1 ,Community Services,MH OP N&E Locality,Adult Residential Placements - Spot Purchase,Third Party Payments,REVENUE
Wiltshire,http://opendatacommunities.org/id/unitary-authority/wiltshire,05/02/2020,1902502542,2573.36,Avery Healthcare Cepen Lodge ,126733,DL1 ,Community Services,North Care Packages,Adult Residential Placements - Spot Purchase,Third Party Payments,REVENUE
Wiltshire,http://opendatacommunities.org/id/unitary-authority/wiltshire,05/02/2020,1902502543,2741.48,Avery Healthcare Cepen Lodge ,126733,DL1 ,Community Services,North Care Packages,Adult Residential Placements - Spot Purchase,Third Party Payments,REVENUE
Wiltshire,http://opendatacommunities.org/id/unitary-authority/wiltshire,05/02/2020,1902502544,2946.28,Avery Healthcare Cepen Lodge ,126733,DL1 ,Community Services,North Care Packages,Adult Residential Placements - Spot Purchase,Third Party Payments,REVENUE
Wiltshire,http://opendatacommunities.org/id/unitary-authority/wiltshire,04/02/2020,1902501474,3208.56,Avery Healthcare Ltd- Langford Sali ,112676,NN4 ,Community Services,Home Loans,Adult Care Nursing Placements - Spot,Third Party Payments,REVENUE
Wiltshire,http://opendatacommunities.org/id/unitary-authority/wiltshire,05/02/2020,1902504504,3285.56,Avery Healthcare Ltd- Langford Sali ,112676,NN4 ,Community Services,MH OP South Locality,Adult Care Nursing Placements - Spot,Third Party Payments,REVENUE
Wiltshire,http://opendatacommunities.org/id/unitary-authority/wiltshire,05/02/2020,1902504505,3256.4,Avery Healthcare Ltd- Langford Sali ,112676,NN4 ,Community Services,South Care Packages,Adult Care Nursing Placements - Spot,Third Party Payments,REVENUE
Wiltshire,http://opendatacommunities.org/id/unitary-authority/wiltshire,05/02/2020,1902504506,4400,Avery Healthcare Ltd- Langford Sali ,112676,NN4 ,Community Services,Adult Care Gross Loa,Adult Care Nursing Placements - Spot,Third Party Payments,REVENUE
Wiltshire,http://opendatacommunities.org/id/unitary-authority/wiltshire,05/02/2020,1902504507,2783.64,Avery Healthcare Ltd- Langford Sali ,112676,NN4 ,Community Services,South Care Packages,Adult Care Nursing Placements - Spot,Third Party Payments,REVENUE
Wiltshire,http://opendatacommunities.org/id/unitary-authority/wiltshire,05/02/2020,1902504508,2783.64,Avery Healthcare Ltd- Langford Sali ,112676,NN4 ,Community Services,South Care Packages,Adult Care Nursing Placements - Spot,Third Party Payments,REVENUE
Wiltshire,http://opendatacommunities.org/id/unitary-authority/wiltshire,05/02/2020,1902504509,2783.64,Avery Healthcare Ltd- Langford Sali ,112676,NN4 ,Community Services,South Care Packages,Adult Care Nursing Placements - Spot,Third Party Payments,REVENUE
Wiltshire,http://opendatacommunities.org/id/unitary-authority/wiltshire,05/02/2020,1902504510,894.74,Avery Healthcare Ltd- Langford Sali ,112676,NN4 ,Community Services,South Care Packages,Adult Care Nursing Placements - Spot,Third Party Payments,REVENUE
Wiltshire,http://opendatacommunities.org/id/unitary-authority/wiltshire,05/02/2020,1902504511,3104.16,Avery Healthcare Ltd- Langford Sali ,112676,NN4 ,Community Services,South Care Packages,Adult Residential Placements - Spot Purchase,Third Party Payments,REVENUE
Wiltshire,http://opendatacommunities.org/id/unitary-authority/wiltshire,05/02/2020,1902504512,3104.16,Avery Healthcare Ltd- Langford Sali ,112676,NN4 ,Community Services,South Care Packages,Adult Residential Placements - Spot Purchase,Third Party Payments,REVENUE
Wiltshire,http://opendatacommunities.org/id/unitary-authority/wiltshire,05/02/2020,1902504513,3104.16,Avery Healthcare Ltd- Langford Sali ,112676,NN4 ,Community Services,South Care Packages,Adult Residential Placements - Spot Purchase,Third Party Payments,REVENUE
Wiltshire,http://opendatacommunities.org/id/unitary-authority/wiltshire,05/02/2020,1902504514,3104.16,Avery Healthcare Ltd- Langford Sali ,112676,NN4 ,Community Services,South Care Packages,Adult Residential Placements - Spot Purchase,Third Party Payments,REVENUE
Wiltshire,http://opendatacommunities.org/id/unitary-authority/wiltshire,05/02/2020,1902504515,3104.16,Avery Healthcare Ltd- Langford Sali ,112676,NN4 ,Community Services,West Care Packages,Adult Residential Placements - Spot Purchase,Third Party Payments,REVENUE
Wiltshire,http://opendatacommunities.org/id/unitary-authority/wiltshire,05/02/2020,1902504516,554.31,Avery Healthcare Ltd- Langford Sali ,112676,NN4 ,Community Services,South Care Packages,Adult Residential Placements - Spot Purchase,Third Party Payments,REVENUE
Wiltshire,http://opendatacommunities.org/id/unitary-authority/wiltshire,05/02/2020,1902504517,2593.84,Avery Healthcare Ltd- Langford Sali ,112676,NN4 ,Community Services,South Care Packages,Adult Residential Placements - Spot Purchase,Third Party Payments,REVENUE
Wiltshire,http://opendatacommunities.org/id/unitary-authority/wiltshire,18/02/2020,1902497224,1375,Avery Weigh-tronix ,127898,B66 ,Neighbourhood & Planning,Winter Maintenance,ICT - Support arrangements,Supplies and Services,REVENUE
Wiltshire,http://opendatacommunities.org/id/unitary-authority/wiltshire,11/02/2020,1902506062,2020,Avid Taxis and Private Hire ,146394,SP9 ,Neighbourhood & Planning,SEN Secondary Tspt,Transport Contracts,Third Party Payments,REVENUE
Wiltshire,http://opendatacommunities.org/id/unitary-authority/wiltshire,21/02/2020,1902515275,7721.75,Avon and W Wilts MHC NHS Trust ,110216,BA1 ,Community Services,Mental Health Teams,Premises Rental,Premises Related,REVENUE
Wiltshire,http://opendatacommunities.org/id/unitary-authority/wiltshire,05/02/2020,1902504495,2630.76,Avon Care Homes Ltd - Sutton Veny H ,112612,BA5 ,Community Services,West Care Packages,Adult Care Nursing Placements - Spot,Third Party Payments,REVENUE
Wiltshire,http://opendatacommunities.org/id/unitary-authority/wiltshire,05/02/2020,1902504496,2695.2,Avon Care Homes Ltd - Sutton Veny H ,112612,BA5 ,Community Services,North Care Packages,Adult Residential Placements - Spot Purchase,Third Party Payments,REVENUE
Wiltshire,http://opendatacommunities.org/id/unitary-authority/wiltshire,05/02/2020,1902504497,3090,Avon Care Homes Ltd - Sutton Veny H ,112612,BA5 ,Community Services,South Care Packages,Adult Residential Placements - Spot Purchase,Third Party Payments,REVENUE
Wiltshire,http://opendatacommunities.org/id/unitary-authority/wiltshire,05/02/2020,1902504498,3090,Avon Care Homes Ltd - Sutton Veny H ,112612,BA5 ,Community Services,South Care Packages,Adult Residential Placements - Spot Purchase,Third Party Payments,REVENUE
Wiltshire,http://opendatacommunities.org/id/unitary-authority/wiltshire,05/02/2020,1902504499,3090,Avon Care Homes Ltd - Sutton Veny H ,112612,BA5 ,Community Services,South Care Packages,Adult Residential Placements - Spot Purchase,Third Party Payments,REVENUE
Wiltshire,http://opendatacommunities.org/id/unitary-authority/wiltshire,05/02/2020,1902504500,3090,Avon Care Homes Ltd - Sutton Veny H ,112612,BA5 ,Community Services,South Care Packages,Adult Residential Placements - Spot Purchase,Third Party Payments,REVENUE
Wiltshire,http://opendatacommunities.org/id/unitary-authority/wiltshire,05/02/2020,1902504501,3862.5,Avon Care Homes Ltd - Sutton Veny H ,112612,BA5 ,Community Services,South Care Packages,Adult Residential Placements - Spot Purchase,Third Party Payments,REVENUE
Wiltshire,http://opendatacommunities.org/id/unitary-authority/wiltshire,05/02/2020,1902504502,1953.46,Avon Care Homes Ltd - Sutton Veny H ,112612,BA5 ,Community Services,West Care Packages,Adult Care Nursing Placements - Spot,Third Party Payments,REVENUE
Wiltshire,http://opendatacommunities.org/id/unitary-authority/wiltshire,05/02/2020,1902504503,2187.88,Avon Care Homes Ltd - Sutton Veny H ,112612,BA5 ,Community Services,West Care Packages,Adult Care Nursing Placements - Spot,Third Party Payments,REVENUE
Wiltshire,http://opendatacommunities.org/id/unitary-authority/wiltshire,05/02/2020,5107400491,16679,Avon Court Care Home ,110218,LS16,Community Services,BCF-Intermediate Cr,Adult Care Nursing Placements- Block Contract,Third Party Payments,REVENUE
Wiltshire,http://opendatacommunities.org/id/unitary-authority/wiltshire,05/02/2020,5107400492,17629,Avon Court Care Home ,110218,LS16,Community Services,BCF-Intermediate Cr,Adult Care Nursing Placements- Block Contract,Third Party Payments,REVENUE
Wiltshire,http://opendatacommunities.org/id/unitary-authority/wiltshire,05/02/2020,5107402653,16679,Avon Court Care Home ,110218,LS16,Community Services,BCF-Intermediate Cr,Adult Care Nursing Placements- Block Contract,Third Party Payments,REVENUE
Wiltshire,http://opendatacommunities.org/id/unitary-authority/wiltshire,05/02/2020,5107402654,10841.35,Avon Court Care Home ,110218,LS16,Community Services,BCF-Intermediate Cr,Adult Care Nursing Placements- Block Contract,Third Party Payments,REVENUE
Wiltshire,http://opendatacommunities.org/id/unitary-authority/wiltshire,05/02/2020,5107402656,13343.2,Avon Court Care Home ,110218,LS16,Community Services,BCF-Intermediate Cr,Adult Care Nursing Placements- Block Contract,Third Party Payments,REVENUE
Wiltshire,http://opendatacommunities.org/id/unitary-authority/wiltshire,05/02/2020,5107402715,17629,Avon Court Care Home ,110218,LS16,Community Services,BCF-Intermediate Cr,Adult Care Nursing Placements- Block Contract,Third Party Payments,REVENUE
Wiltshire,http://opendatacommunities.org/id/unitary-authority/wiltshire,05/02/2020,5107402716,7933.05,Avon Court Care Home ,110218,LS16,Community Services,BCF-Intermediate Cr,Adult Care Nursing Placements- Block Contract,Third Party Payments,REVENUE
Wiltshire,http://opendatacommunities.org/id/unitary-authority/wiltshire,05/02/2020,5107402717,1762.9,Avon Court Care Home ,110218,LS16,Community Services,BCF-Intermediate Cr,Adult Care Nursing Placements- Block Contract,Third Party Payments,REVENUE
Wiltshire,http://opendatacommunities.org/id/unitary-authority/wiltshire,05/02/2020,5107402718,14103.2,Avon Court Care Home ,110218,LS16,Community Services,BCF-Intermediate Cr,Adult Care Nursing Placements- Block Contract,Third Party Payments,REVENUE
Wiltshire,http://opendatacommunities.org/id/unitary-authority/wiltshire,28/02/2020,5107404881,16679,Avon Court Care Home ,110218,LS16,Community Services,BCF-Intermediate Cr,Adult Care Nursing Placements- Block Contract,Third Party Payments,REVENUE
Wiltshire,http://opendatacommunities.org/id/unitary-authority/wiltshire,28/02/2020,5107404887,17629,Avon Court Care Home ,110218,LS16,Community Services,BCF-Intermediate Cr,Adult Care Nursing Placements- Block Contract,Third Party Payments,REVENUE
Wiltshire,http://opendatacommunities.org/id/unitary-authority/wiltshire,04/02/2020,5107401681,324.35,Avon Trophies Limited ,110223,SN10,Children & Education,School Effectvnss Tm,Marketing and Promotions,Supplies and Services,REVENUE
Wiltshire,http://opendatacommunities.org/id/unitary-authority/wiltshire,20/02/2020,1902514243,1302,Avon Valley Practice ,131697,SN9 ,Neighbourhood & Planning,Sexual Health Commun,Public Health Commissioning,Supplies and Services,REVENUE
Wiltshire,http://opendatacommunities.org/id/unitary-authority/wiltshire,20/02/2020,1902514285,1370,Avon Valley Practice ,131697,SN9 ,Neighbourhood & Planning,Sexual Health Commun,Public Health Commissioning,Supplies and Services,REVENUE
Wiltshire,http://opendatacommunities.org/id/unitary-authority/wiltshire,21/02/2020,1902514345,624,Avon Valley Practice ,131697,SN9 ,Neighbourhood & Planning,NHS Health Checks,Public Health Commissioning,Supplies and Services,REVENUE
Wiltshire,http://opendatacommunities.org/id/unitary-authority/wiltshire,04/02/2020,1902501164,3088.36,Avonpark Village (Care Homes) Limit ,110227,BA2 ,Community Services,West Care Packages,Adult Care Nursing Placements - Spot,Third Party Payments,REVENUE
Wiltshire,http://opendatacommunities.org/id/unitary-authority/wiltshire,04/02/2020,1902501165,4167.36,Avonpark Village (Care Homes) Limit ,110227,BA2 ,Community Services,MH OP South Locality,Adult Care Nursing Placements - Spot,Third Party Payments,REVENUE
Wiltshire,http://opendatacommunities.org/id/unitary-authority/wiltshire,04/02/2020,1902501166,2799.72,Avonpark Village (Care Homes) Limit ,110227,BA2 ,Community Services,MH OP West Locality,Adult Residential Placements - Spot Purchase,Third Party Payments,REVENUE
Wiltshire,http://opendatacommunities.org/id/unitary-authority/wiltshire,04/02/2020,1902501167,4640,Avonpark Village (Care Homes) Limit ,110227,BA2 ,Community Services,MH OP West Locality,Adult Residential Placements - Spot Purchase,Third Party Payments,REVENUE
Wiltshire,http://opendatacommunities.org/id/unitary-authority/wiltshire,04/02/2020,1902501168,4640,Avonpark Village (Care Homes) Limit ,110227,BA2 ,Community Services,MH OP West Locality,Adult Residential Placements - Spot Purchase,Third Party Payments,REVENUE
Wiltshire,http://opendatacommunities.org/id/unitary-authority/wiltshire,04/02/2020,1902501169,4640,Avonpark Village (Care Homes) Limit ,110227,BA2 ,Community Services,MH OP West Locality,Adult Residential Placements - Spot Purchase,Third Party Payments,REVENUE
Wiltshire,http://opendatacommunities.org/id/unitary-authority/wiltshire,04/02/2020,1902501170,4900,Avonpark Village (Care Homes) Limit ,110227,BA2 ,Community Services,West Care Packages,Adult Residential Placements - Spot Purchase,Third Party Payments,REVENUE
Wiltshire,http://opendatacommunities.org/id/unitary-authority/wiltshire,12/02/2020,1902505487,400,Axle Weight Technology Limited ,123646,WA7 ,Neighbourhood & Planning,Winter Maintenance,Vehicle Repairs & Maintenance,Transport Related,REVENUE
Wiltshire,http://opendatacommunities.org/id/unitary-authority/wiltshire,05/02/2020,1902501887,1025,B & M Windows  and  Doors Ltd ,101694,SP2 ,Neighbourhood & Planning,DLO,Premises Related Other Maintenance Costs,Premises Related,REVENUE
Wiltshire,http://opendatacommunities.org/id/unitary-authority/wiltshire,05/02/2020,1902504240,783.13,B & M Windows  and  Doors Ltd ,101694,SP2 ,Neighbourhood & Planning,DLO,Premises Related Other Maintenance Costs,Premises Related,REVENUE
